Workbook

Sheet Cover
BS1: =COUNTA(BS3:BS50) -> 6 | BT1: =COUNTA(BT3:BT50) -> 9 | BU1: 7 | BV1: 8 | BW1: 5 | BX1: 6 | BY1: 6 | BZ1: 3 | CA1: 5 | CB1: 5 | CC1: 8 | CD1: 8 | CE1: =COUNTA(CE3:CE50) -> 8 | CF1: =COUNTA(CF3:CF50) -> 4 | CH1: =16-COUNTBLANK(CI3:CI22) -> 3 | CQ1: Once-off adjustments to base | DG1: Personnel | EZ1: Inflator | FA1: 0.056
AA2: 749 | AY2: SIP Category | AZ2: Econ Class for ODA | BA2: Year | BB2: Lookup ID | BC2: EconClass | BD2: Outcomes - fixed | BE2: InfraList1 | BF2: InfraList2 | BG2: InfraList3 | BH2: InfraList4 | BI2: ODAList1 | BJ2: ListedProgs | BL2: =MAX(BL3:BL18) -> 4 | BM2: ProgList | BO2: InfraS dropdown list | BQ2: DoR Cat | BS2: Outputs-1 | BT2: Outputs-2 | BU2: Outputs-3 | BV2: Outputs-4 | BW2: Outputs-5 | BX2: Outputs-6 | BY2: Outputs-7 | BZ2: Outputs-8 | CA2: Outputs-9 | CB2: Outputs-10 | CC2: Outputs-11 | CD2: Outputs-12 | CE2: Outputs-13 | CF2: Outputs-14 | CI2: Array Range to lock | CQ2: Department | CR2: Programme | CS2: Subprogramme | CT2: Econ1 | CU2: Econ5 | CV2: Empty1 | CW2: 2019/20 amount above 5.6% growth | CX2: Empty2 | CY2: Trans_Indi | CZ2: Sprog_Indi | DA2: Econc_Indi | DG2: Department | DH2: Programme | DI2: Salary Level | DJ2: 2015/16 - Number of posts on approved establishment as at 30 June 2015 | DK2: 2015/16 - Number of posts on funded establishment as at 30 June 2015 | DL2: 2015/16 - Number of posts additional to the establishment as at 30 June 2015 | DM2: 2014/15 - Number of posts filled | DN2: 2014/15 - Expenditure on posts filled | DO2: 2015/16 - Number of all posts to be filled | DP2: 2015/16 - Expenditure on all posts to be filled | DQ2: 2016/17 - Number of all posts to be filled | DR2: 2016/17 - Expenditure on all posts to be filled | DS2: 2017/18 - Number of all posts to be filled | DT2: 2017/18 - Expenditure on all posts to be filled | DU2: 2018/19 - Number of all posts to be filled | DV2: 2018/19 - Expenditure on all posts to be filled | DW2: Combo_DeptProg | DX2: DeptCode | DY2: ProgCode | DZ2: DeptProg_Combo_Code | ED2: Budgets - ENE 2020 | EY2: =SUBTOTAL(9,EY4:EY18925) -> 1755859947 | EZ2: =SUBTOTAL(9,EZ4:EZ18925) -> 1835769813 | FA2: =SUBTOTAL(9,FA4:FA18925) -> 1881997875 | GK2: Sheet Names | GL2: Lock | GM2: Hide | GN2: Index | GR2: Transfers | HA2: =+SUBTOTAL(9,HA4:HA1002) -> 0 | HB2: =+SUBTOTAL(9,HB4:HB1002) -> 0 | HC2: 0
AY3: Not related to SIPs | AZ3: Compensation of employees | BA3: 2017/18 | BB3: 111 | BC3: Provincial Revenue Funds | BD3: Priority 1: A Capable, Ethical and Developmental State | BE3: Programme | BF3: New infrastructure assets | BG3: Site identification | BH3: Mega | BI3: Long term technical assistance | BJ3: =IF(Summary!F31=0,Direct_charges!$H$8,Summary!F31) -> Administration | BK3: 1 | BL3: =IF(BM3<>"",BK3,0) -> 1 | BM3: =IF(BK3>PListed,"",Cover!BJ3) -> Administration | BN3: 1 | BO3: =IF(ISERROR(INDEX(($BM$3:$BM$18),MATCH(BN3,$BL$3:$BL$18,0))),"",INDEX(($BM$3:$BM$18),MATCH(BN3,$BL$3:$BL$18,0))) -> Administration | BQ3: National | BS3: Improved quality of teaching and learning through development, supply and effective utilisation of teachers | BT3: Average male and female life expectancy at birth increased to 70 years | BU3: Reduced levels of contact crime | BV3: Productive investment is effectively crowded in through the infrastructure build programme | BW3: Establish a credible institutional mechanism for skills planning | BX3: Regulation, funding and investment improved | BY3: Improved land administration and spatial planning for integrated development in rural areas | BZ3: Adequate housing and improved quality living environments | CA3: Members of society have sustainable and reliable access to basic services. | CB3: Ecosystems are sustained and natural resources are used efficiently | CC3: SA’s national priorities advanced in bilateral engagements | CD3: A stable political-administrative interface | CE3: Current social welfare system reformed to deliver better results for vulnerable groups | CF3: Fostering Constitutional values | CH3: 1 | CI3: V185:W274,V276:W289 | CQ3: National Treasury | CR3: Direct charge against the National Revenue Fund | CS3: Provincial Equitable Share | CV3: 0 | CW3: 0 | CX3: 0 | CY3: =+CQ3&CR3&CS3&CT3&CU3 -> National TreasuryDirect charge against the National Revenue FundProvincial Equitable Share | CZ3: =+CQ3&CR3&CS3 -> National TreasuryDirect charge against the National Revenue FundProvincial Equitable Share | DA3: =+CQ3&CR3&CS3&CU3 -> National TreasuryDirect charge against the National Revenue FundProvincial Equitable Share | DG3: The Presidency | DH3: Administration | DI3: 1 | DJ3: 0 | DK3: 40 | DL3: 40 | DM3: 32 | DN3: 2302 | DO3: 40 | DP3: 2335 | DQ3: 40 | DR3: 2396 | DS3: 40 | DT3: 2559 | DU3: 40 | DV3: 2707 | DW3: =Cover!$DG3&"|"&Cover!$DH3 -> The Presidency|Administration | DX3: =INDEX(($FC$4:$FC$5030),MATCH(Cover!$DG3,$EF$4:$EF$5030,0)) -> 001 | DY3: =INDEX(($FD$4:$FD$5030),MATCH(Cover!$DH3,$EH$4:$EH$5030,0)) -> 001 | DZ3: =Cover!$DX3&Cover!$DY3 -> 001001 | ED3: Lookup_Lvl_No | EE3: Vote No. | EF3: Department | EG3: Programme No. | EH3: Programme | EI3: Subprogramme No. | EJ3: Subprogramme | EK3: Econ2 | EL3: Econ3 | EM3: Econ4 | EN3: 2017/18 | EO3: 2018/19 | EP3: 2019/20 MA | EQ3: 2019/20 AA | ER3: 2019/20 RE | ES3: 2020/21 | ET3: 2021/22 | EU3: 2022/23 | EV3: 2019_20_Pre-Audited | EW3: 2021_22 NR | EX3: 2022_23 NR | EY3: 2021_22 IB | EZ3: 2022_23 IB | FA3: 2023_24 IB | FB3: Combo_DeptProg | FC3: DeptCode | FD3: ProgCode | FE3: SProgCode | FF3: ItemCode | FG3: DeptProg_Combo_Code | FH3: DeptEcon_Combo_Code | FI3: Econ3/4 ID | FJ3: DPSP_Econ_Combo | FK3: DPSPCode | FL3: DeptProgEcon_Combo_Code | FS3: Lookup_Lvl_No | FT3: Vote No. | FU3: Department | FV3: Programme No. | FW3: Programme | FX3: Subprogramme No. | FY3: Subprogramme | FZ3: Econ2 | GA3: Econ3 | GB3: Econ4 | GK3: Settings | GL3: 1 | GM3: 1 | GN3: 1 | GQ3: Department | GR3: Programme No# | GS3: Programme | GT3: Subprogramme No# | GU3: Subprogramme | GV3: Transfers and subsidies / Payments for financial assets detail | GW3: Econ1 | GX3: Econ5 | GY3: DOR | GZ3: Combo | HA3: 2021/22 Revised baseline | HB3: 2022/23 Revised baseline | HC3: 2023/24 Total baseline | HD3: Len | HE3: Cnt
AY4: SIP 1: Unlocking the northern mineral belt with Waterberg as Catalyst | AZ4: Goods and services | BA4: 2018/19 | BB4: 112 | BC4: Provincial agencies and funds | BD4: Priority 2: Economic Transformation and Job Creation | BE4: Project | BF4: Upgrading and additions | BG4: Pre-feasibility | BH4: Large | BI4: Short term technical assistance | BJ4: =IF(OR(BJ3="Direct_charges",BJ3=""),"",IF(Summary!F32=0,"Direct_charges",Summary!F32)) -> State-owned Companies Governance Assurance and Performance | BK4: 2 | BL4: =IF(BM4<>"",MAX(BL$3:BL3)+1,0) -> 2 | BM4: =IF(BK4>PListed,"",Cover!BJ4) -> State-owned Companies Governance Assurance and Performance | BN4: 2 | BO4: =IF(ISERROR(INDEX(($BM$3:$BM$18),MATCH(BN4,$BL$3:$BL$18,0))),"",INDEX(($BM$3:$BM$18),MATCH(BN4,$BL$3:$BL$18,0))) -> State-owned Companies Governance Assurance and Performance | BQ4: Provincial equitable share | BR4: =PM!F123 -> Provincial Revenue Funds | BS4: Improve the quality of teaching and learning through provision of Infrastructure and learning materials | BT4: Tuberculosis (TB) prevention and cure progressively improved | BU4: An efficient and effective criminal Justice system | BV4: The productive sectors account for a growing share of production and employment, exports are diversified, African regional development is accelerated, the carbon intensity of growth is reduced, knowledge and technology support increasingly inclusive and dynamic growth, and the organs of the state improve their alignment in support of employment-creating growth | BW4: Increase access to programmes leading to intermediate and high level learning | BX4: Reliable generation, transmission and distribution of energy ensured | BY4: Sustainable Land Reform (agrarian transformation) | BZ4: A functionally equitable residential property market | CA4: Intergovernmental and democratic governance arrangements for a functional system of cooperative governance strengthened. | CB4: An effective climate change mitigation and adaptation response | CC4: An economically integrated Southern Africa | CD4: A public service that is a career of choice | CE4: Improved monitoring, evaluation, accountability and quality assurance | CF4: Equal opportunities, inclusion and redress | CH4: 2 | CI4: AE185:AF274,AE276:AF289 | CQ4: Cooperative Governance And Traditional Affairs | CR4: Institutional Development | CS4: Local government equitable share | CT4: Current | CU4: Municipal bank accounts | CV4: 0 | CW4: 0 | CX4: 0 | CY4: =+CQ4&CR4&CS4&CT4&CU4 -> Cooperative Governance And Traditional AffairsInstitutional DevelopmentLocal government equitable shareCurrentMunicipal bank accounts | CZ4: =+CQ4&CR4&CS4 -> Cooperative Governance And Traditional AffairsInstitutional DevelopmentLocal government equitable share | DA4: =+CQ4&CR4&CS4&CU4 -> Cooperative Governance And Traditional AffairsInstitutional DevelopmentLocal government equitable shareMunicipal bank accounts | DG4: The Presidency | DH4: Administration | DI4: 2 | DJ4: 51 | DK4: 51 | DL4: 0 | DM4: 49 | DN4: 6488 | DO4: 45 | DP4: 7235 | DQ4: 45 | DR4: 7758 | DS4: 45 | DT4: 8148 | DU4: 50 | DV4: 9496 | DW4: The Presidency|Administration | DX4: 001 | DY4: 001 | DZ4: 001001 | EC4: 111 | ED4: =+INDEX(($FS$4:$FS$27),MATCH(EM4,$GB$4:$GB$27,0)) -> 1 | EE4: 1 | EF4: The Presidency | EG4: 1 | EH4: Administration | EI4: 1 | EJ4: Management | EK4: Current payments | EL4: Compensation of employees | EM4: Compensation of employees | EN4: 213995 | EO4: 210863 | EP4: 243787 | EQ4: 243233 | ER4: 243233 | ES4: 259021 | ET4: 277938 | EU4: 290071 | EW4: 0 | EX4: 0 | EY4: 246720 | EZ4: 247345 | FA4: 247959 | FB4: =+EF4&"|"&EH4 -> The Presidency|Administration | FC4: =REPT("0",3-LEN(EE4))&EE4 -> 001 | FD4: =REPT("0",3-LEN(EG4))&EG4 -> 001 | FE4: =REPT("0",3-LEN(EI4))&EI4 -> 001 | FF4: =REPT("0",3-LEN(ED4))&ED4 -> 001 | FG4: =+FC4&FD4 -> 001001 | FH4: =+FC4&FF4 -> 001001 | FI4: =+FF4*1 -> 1 | FJ4: =FG4&FE4&REPT("0",3-LEN(FI4))&FI4 -> 001001001001 | FK4: =+FG4&FE4 -> 001001001 | FL4: =LEFT(FJ4,6)&FF4 -> 001001001 | FS4: 1 | FT4: 1 | FU4: The Presidency | FV4: 1 | FW4: Administration | FX4: 1 | FY4: Management | FZ4: Current payments | GA4: Compensation of employees | GB4: Compensation of employees | GK4: Summary | GL4: 1 | GM4: 0 | GN4: 2 | GQ4: The Presidency | GR4: 1 | GS4: Administration | GT4: 1 | GU4: Management | GV4: Communication | GW4: Current | GX4: Departmental agencies (non-business entities) | GY4: NAT | GZ4: =+GQ4&"|"&GS4&"|"&GU4&"|"&GV4&"|"&GW4&"|"&GX4 -> The Presidency|Administration|Management|Communication|Current|Departmental agencies (non-business entities) | HA4: 0 | HB4: 0 | HC4: 0 | HD4: =+LEN(GZ4) -> 108 | HE4: 1
AY5: SIP 2: Durban-Free State Gauteng Logistics and Industrial Corridor | AZ5: Provinces and municipalities | BA5: 2019/20 | BB5: 113 | BC5: Municipal bank accounts | BD5: Priority 3: Education, Skills and Health | BF5: Rehabilitation and refurbishment | BG5: Feasibility | BH5: Small | BI5: Conferences / workshops | BJ5: =IF(OR(BJ4="Direct_charges",BJ4=""),"",IF(Summary!F33=0,"Direct_charges",Summary!F33)) -> Business Enhancement, Transformation and Industrialisation | BK5: 3 | BL5: =IF(BM5<>"",MAX(BL$3:BL4)+1,0) -> 3 | BM5: =IF(BK5>PListed,"",Cover!BJ5) -> Business Enhancement, Transformation and Industrialisation | BN5: 3 | BO5: =IF(ISERROR(INDEX(($BM$3:$BM$18),MATCH(BN5,$BL$3:$BL$18,0))),"",INDEX(($BM$3:$BM$18),MATCH(BN5,$BL$3:$BL$18,0))) -> Business Enhancement, Transformation and Industrialisation | BQ5: Provincial conditional grants (Direct) | BR5: =PM!F123 -> Provincial Revenue Funds | BS5: Regular annual national assessments to track improvements in the quality of teaching and learning (ANA) | BT5: Maternal, Infant and Child Mortality reduced | BU5: South Africa’s borders effectively defended, protected, secured and well-managed | BV5: The elimination of unnecessary regulatory burdens and lower price increases for key inputs and wage goods fosters investment and economic growth | BW5: Increase access to occupationally-directed programmes in needed areas and thereby expand the availability of intermediate level skills (with special focus on artisan skills) | BX5: Maintenance, strategic expansion, operational efficiency, capacity and competitiveness of our logistics and transport infrastructure ensured | BY5: Improved food security | BZ5: Enhanced institutional capabilities for effective coordination of spatial investment decisions | CA5: Sound financial and administrative management. | CB5: An environmentally sustainable, low-carbon economy resulting from a well-managed just transition | CC5: Political cohesion within Southern Africa to ensure a peaceful, secure and stable Southern African region | CD5: Sufficient technical and specialist professional skills | CE5: Development of more sustainable model of funding social development | CF5: Using sport and recreation to promote social cohesion | CH5: 3 | CI5: AN185:AO274,AN276:AO289 | CQ5: Cooperative Governance And Traditional Affairs | CR5: Local Government Support and Intervention Management | CS5: Municipal Infrastructure Support Agency | CT5: Current | CU5: Departmental agencies and accounts | CV5: 0 | CW5: 0 | CX5: 0 | CY5: Cooperative Governance And Traditional AffairsLocal Government Support and Intervention ManagementMunicipal Infrastructure Support AgencyCurrentDepartmental agencies and accounts | CZ5: Cooperative Governance And Traditional AffairsLocal Government Support and Intervention ManagementMunicipal Infrastructure Support Agency | DA5: Cooperative Governance And Traditional AffairsLocal Government Support and Intervention ManagementMunicipal Infrastructure Support AgencyDepartmental agencies and accounts | DG5: The Presidency | DH5: Administration | DI5: 3 | DJ5: 9 | DK5: 9 | DL5: 0 | DM5: 14 | DN5: 1845 | DO5: 9 | DP5: 1607 | DQ5: 9 | DR5: 1705 | DS5: 9 | DT5: 1798 | DU5: 9 | DV5: 1901 | DW5: The Presidency|Administration | DX5: 001 | DY5: 001 | DZ5: 001001 | EC5: 111 | ED5: =+INDEX(($FS$4:$FS$27),MATCH(EM5,$GB$4:$GB$27,0)) -> 2 | EE5: 1 | EF5: The Presidency | EG5: 1 | EH5: Administration | EI5: 1 | EJ5: Management | EK5: Current payments | EL5: Goods and services | EM5: Goods and services | EN5: 102113 | EO5: 103796 | EP5: 241125 | EQ5: 249125 | ER5: 249125 | ES5: 121734 | ET5: 134935 | EU5: 139950 | EW5: 0 | EX5: 0 | EY5: 129590 | EZ5: 132997 | FA5: 133503 | FB5: =+EF5&"|"&EH5 -> The Presidency|Administration | FC5: =REPT("0",3-LEN(EE5))&EE5 -> 001 | FD5: =REPT("0",3-LEN(EG5))&EG5 -> 001 | FE5: =REPT("0",3-LEN(EI5))&EI5 -> 001 | FF5: =REPT("0",3-LEN(ED5))&ED5 -> 002 | FG5: =+FC5&FD5 -> 001001 | FH5: =+FC5&FF5 -> 001002 | FI5: =+FF5*1 -> 2 | FJ5: =FG5&FE5&REPT("0",3-LEN(FI5))&FI5 -> 001001001002 | FK5: =+FG5&FE5 -> 001001001 | FL5: =LEFT(FJ5,6)&FF5 -> 001001002 | FS5: 2 | FT5: 1 | FU5: The Presidency | FV5: 1 | FW5: Administration | FX5: 2 | FY5: Support Services to the President | FZ5: Transfers and subsidies | GA5: Goods and services | GB5: Goods and services | GK5: 1 | GL5: 1 | GM5: 0 | GN5: 3 | GQ5: Parliament | GR5: 5 | GS5: Associated Services | GT5: 2 | GU5: Political Party Support | GV5: Political Party Support | GW5: Current | GX5: Non-profit institutions | GY5: NAT | GZ5: =+GQ5&"|"&GS5&"|"&GU5&"|"&GV5&"|"&GW5&"|"&GX5 -> Parliament|Associated Services|Political Party Support |Political Party Support |Current|Non-profit institutions | HA5: 0 | HB5: 0 | HC5: 0 | HD5: =+LEN(GZ5) -> 112 | HE5: 1
B6: Department | AY6: Sip 3: South eastern note and corridor development | AZ6: Departmental agencies and accounts | BA6: 2020/21 | BB6: 114 | BC6: Municipal agencies and funds | BD6: Priority 4: Consolidating the Social Wage through Reliable and Quality Basic Services | BF6: Maintenance and repair | BG6: Design | BI6: Study tours | BJ6: =IF(OR(BJ5="Direct_charges",BJ5=""),"",IF(Summary!F34=0,"Direct_charges",Summary!F34)) -> Direct_charges | BK6: 4 | BL6: =IF(BM6<>"",MAX(BL$3:BL5)+1,0) -> 0 | BM6: =IF(BK6>PListed,"",Cover!BJ6) ->  | BN6: 4 | BO6: Multiple programmes | BQ6: Local government equitable share | BR6: =PM!F126 -> Municipal bank accounts | BS6: Improved Grade R and planning for extension of ECD | BT6: Prevalence of Non-Communicable Diseases reduced by 28% | BU6: Secure cyber space | BV6: Workers’ education and skills increasingly meet economic needs | BW6: Increase access to high-level occupationally directed programmes in needed areas | BX6: Maintenance and supply availability of our bulk water resources infrastructure ensured | BY6: Smallholder producers' development and support (technical, financial, infrastructure) for agrarian transformation | CA6: Promotion of social and economic development. | CB6: Enhanced governance systems and capacity | CC6: A Peaceful, secure and stable Africa | CD6: Efficient and effective management and operations systems | CE6: Increased human resource capacity in the social development sector | CF6: Promoting active citizenry and leadership | CH6: 4 | CI6: V298:W310,AE298:AF310,AN298:AO310 | CQ6: Social Development | CR6: Social Assistance | CS6: Old Age | CT6: Current | CU6: Social benefits | CV6: 0 | CW6: 0 | CX6: 0 | CY6: Social DevelopmentSocial AssistanceOld AgeCurrentSocial benefits | CZ6: Social DevelopmentSocial AssistanceOld Age | DA6: Social DevelopmentSocial AssistanceOld AgeSocial benefits | DG6: The Presidency | DH6: Administration | DI6: 4 | DJ6: 84 | DK6: 90 | DL6: 6 | DM6: 85 | DN6: 18683 | DO6: 88 | DP6: 18324 | DQ6: 88 | DR6: 19443 | DS6: 88 | DT6: 20503 | DU6: 90 | DV6: 22148 | DW6: The Presidency|Administration | DX6: 001 | DY6: 001 | DZ6: 001001 | EC6: 111 | ED6: 3 | EE6: 1 | EF6: The Presidency | EG6: 1 | EH6: Administration | EI6: 1 | EJ6: Management | EK6: Current payments | EL6: Interest and rent on land | EM6: Interest and rent on land | EN6: 0 | EO6: 0 | EP6: 0 | EQ6: 0 | ER6: 0 | ES6: 0 | ET6: 0 | EU6: 0 | EW6: 0 | EX6: 0 | EY6: 0 | EZ6: 0 | FA6: 0 | FB6: The Presidency|Administration | FC6: 001 | FD6: 001 | FE6: 001 | FF6: 003 | FG6: 001001 | FH6: 001003 | FI6: 3 | FJ6: 001001001003 | FK6: =+FG6&FE6 -> 001001001 | FL6: 001001003 | FS6: 3 | FT6: 1 | FU6: The Presidency | FV6: 1 | FW6: Administration | FX6: 3 | FY6: Support Services to the Deputy President | FZ6: Payments for capital assets | GA6: Interest and rent on land | GB6: Interest and rent on land | GK6: 2 | GL6: 1 | GM6: 0 | GN6: 4 | GQ6: Parliament | GR6: 5 | GS6: Associated Services | GT6: 3 | GU6: Constituency Support | GV6: Constituency Support | GW6: Current | GX6: Non-profit institutions | GY6: NAT | GZ6: Parliament|Associated Services|Constituency Support |Constituency Support |Current|Non-profit institutions | HA6: 0 | HB6: 0 | HC6: 0 | HD6: 106 | HE6: 1
B7: Public Enterprises | AY7: SIP 4: Unlocking the economic opportunities in the Both West Province | AZ7: Higher education institutions | BA7: 2021/22 | BB7: 115 | BC7: Social security funds | BD7: Priority 5: Spatial Integration, Human Settlements and Local Government | BG7: Tender | BI7: Training | BJ7: =IF(OR(BJ6="Direct_charges",BJ6=""),"",IF(Summary!F35=0,"Direct_charges",Summary!F35)) ->  | BK7: 5 | BL7: =IF(BM7<>"",MAX(BL$3:BL6)+1,0) -> 0 | BM7: =IF(BK7>PListed,"",Cover!BJ7) ->  | BN7: 5 | BQ7: Local government conditional grants (Direct) | BR7: =PM!F126 -> Municipal bank accounts | BS7: A credible, outcomes-focused planning and accountability system (building the capacity of the state to intervene and support quality education) | BT7: Injury, accidents and violence reduced by 50% from 2010 levels | BU7: Ensure Domestic Stability | BV7: Macroeconomic conditions support employment-creating growth | BW7: Strengthen the governance, management and student support in post school education and training institutions | BX7: Expansion, modernisation, access and affordability of our Information and communications infrastructure ensured | BY7: Increased access to quality infrastructure and services, particularly in education, healthcare and public transport in rural areas | CA7: Local public employment programmes expanded through the Community Work Programme. | CB7: Sustainable human communities | CC7: A sustainable developed and economically integrated Africa | CD7: Procurement systems that deliver value for money | CE7: Deepening social assistance and expanding access to social security | CH7: 5 | CI7: V356:W365,V370:W371,V373:W410,V412:W413,V440:W441,V443:W449 | CQ7: Social Development | CR7: Social Assistance | CS7: War Veterans | CT7: Current | CU7: Social benefits | CV7: 0 | CW7: 0 | CX7: 0 | CY7: Social DevelopmentSocial AssistanceWar VeteransCurrentSocial benefits | CZ7: Social DevelopmentSocial AssistanceWar Veterans | DA7: Social DevelopmentSocial AssistanceWar VeteransSocial benefits | DG7: The Presidency | DH7: Administration | DI7: 5 | DJ7: 20 | DK7: 20 | DL7: 0 | DM7: 17 | DN7: 3320 | DO7: 19 | DP7: 4359 | DQ7: 19 | DR7: 4625 | DS7: 19 | DT7: 4878 | DU7: 20 | DV7: 5417 | DW7: The Presidency|Administration | DX7: 001 | DY7: 001 | DZ7: 001001 | EC7: 111 | ED7: 57 | EE7: 1 | EF7: The Presidency | EG7: 1 | EH7: Administration | EI7: 1 | EJ7: Management | EK7: Payments for capital assets | EL7: Machinery and equipment | EM7: Other machinery and equipment | EN7: 16066 | EO7: 12276 | EP7: 8964 | EQ7: 8964 | ER7: 8964 | ES7: 9423 | ET7: 9947 | EU7: 10508 | EW7: 0 | EX7: 0 | EY7: 9947 | EZ7: 10508 | FA7: 10971 | FB7: The Presidency|Administration | FC7: 001 | FD7: 001 | FE7: 001 | FF7: 057 | FG7: 001001 | FH7: 001057 | FI7: 57 | FJ7: 001001001057 | FK7: 001001001 | FL7: 001001057 | FS7: 44 | FT7: 1 | FU7: The Presidency | FV7: 2 | FW7: Executive Support | FX7: 1 | FY7: Cabinet Services | FZ7: Payments for financial assets | GA7: Provinces and municipalities | GB7: Municipalities | GK7: 3 | GL7: 1 | GM7: 0 | GN7: 5 | GQ7: Parliament | GR7: 5 | GS7: Associated Services | GT7: 4 | GU7: Party Leadership Support | GV7: Party Leadership Support | GW7: Current | GX7: Non-profit institutions | GY7: NAT | GZ7: Parliament|Associated Services|Party Leadership Support|Party Leadership Support|Current|Non-profit institutions | HA7: 0 | HB7: 0 | HC7: 0 | HD7: 112 | HE7: 1
B8: Enquiries: | E8: Department Contact Details: | AY8: SIP 5: Saldanha-Northern Cape Development Corridor | AZ8: Foreign governments and international organisations | BA8: 2022/23 | BB8: 116 | BC8: Departmental agencies (non-business entities) | BD8: Priority 6: Social Cohesion and Safer Communities | BE8: InfraList5 | BG8: Construction | BI8: Equipment | BJ8: =IF(OR(BJ7="Direct_charges",BJ7=""),"",IF(Summary!F36=0,"Direct_charges",Summary!F36)) ->  | BK8: 6 | BL8: =IF(BM8<>"",MAX(BL$3:BL7)+1,0) -> 0 | BM8: =IF(BK8>PListed,"",Cover!BJ8) ->  | BN8: 6 | BQ8: General Fuel Levy sharing with Metropolitan Municipalities | BR8: =PM!F126 -> Municipal bank accounts | BS8: Partnerships for a Strong Education System | BT8: Health Systems Reforms Completed | BU8: Identity of all persons in South Africa known and secured | BV8: Reduced workplace conflict and improved collaboration between government, organised business and organised labour | BX8: Coordination, planning, integration and monitoring implementation of strategic integrated projects in the National Infrastructure Plan | BY8: Growth of sustainable rural enterprises and industries, characterised by strong rural-urban linkages, increased investment in agro-processing, trade development and access to local markets and financial services – resulting in rural job creation | CC8: An equitable and just System of Global Governance | CD8: Strengthened accountability to citizens | CE8: Early childhood development provision | CH8: 6 | CI8: AE356:AF365,AE370:AF371,AE373:AF410,AE412:AF413,AE440:AF441,AE443:AF449 | CQ8: Social Development | CR8: Social Assistance | CS8: Disability | CT8: Current | CU8: Social benefits | CV8: 0 | CW8: 0 | CX8: 0 | CY8: Social DevelopmentSocial AssistanceDisabilityCurrentSocial benefits | CZ8: Social DevelopmentSocial AssistanceDisability | DA8: Social DevelopmentSocial AssistanceDisabilitySocial benefits | DG8: The Presidency | DH8: Administration | DI8: 6 | DJ8: 79 | DK8: 85 | DL8: 6 | DM8: 86 | DN8: 19337 | DO8: 83 | DP8: 22896 | DQ8: 83 | DR8: 24293 | DS8: 83 | DT8: 25618 | DU8: 85 | DV8: 27673 | DW8: The Presidency|Administration | DX8: 001 | DY8: 001 | DZ8: 001001 | EC8: 111 | ED8: 56 | EE8: 1 | EF8: The Presidency | EG8: 1 | EH8: Administration | EI8: 1 | EJ8: Management | EK8: Payments for capital assets | EL8: Machinery and equipment | EM8: Transport equipment | EN8: 0 | EO8: 741 | EP8: 1228 | EQ8: 1228 | ER8: 1228 | ES8: 1008 | ET8: 1059 | EU8: 1099 | EW8: 0 | EX8: 0 | EY8: 1059 | EZ8: 1099 | FA8: 1147 | FB8: The Presidency|Administration | FC8: 001 | FD8: 001 | FE8: 001 | FF8: 056 | FG8: 001001 | FH8: 001056 | FI8: 56 | FJ8: 001001001056 | FK8: 001001001 | FL8: 001001056 | FS8: 46 | FT8: 1 | FU8: The Presidency | FV8: 3 | FW8: Policy and Research Services | FX8: 1 | FY8: Economy, Trade and Investment | GA8: Departmental agencies and accounts | GB8: Departmental agencies (non-business entities) | GK8: 4 | GL8: 1 | GM8: 0 | GN8: 6 | GQ8: Cooperative Governance | GR8: 1 | GS8: Administration | GT8: 3 | GU8: Corporate Services | GV8: Vehicle licences | GW8: Current | GX8: Municipal bank accounts | GY8: NAT | GZ8: Cooperative Governance|Administration|Corporate Services|Vehicle licences|Current|Municipal bank accounts | HA8: 0 | HB8: 0 | HC8: 0 | HD8: 105 | HE8: 1
B9: =+$AF$23 -> Isaac Kurasha | E9: Name: | F9: Phelelisiwe Lukhele | AY9: SIP 6: Integrated municipal infrastructure project | AZ9: Public corporations and private enterprises | BA9: 2023/24 | BB9: 117 | BC9: Higher education institutions | BD9: Priority 7: A Better Africa and World | BE9: Provinces and municipalities | BF9: InfraList6 | BG9: Hand over | BI9: Other | BJ9: =IF(OR(BJ8="Direct_charges",BJ8=""),"",IF(Summary!F37=0,"Direct_charges",Summary!F37)) ->  | BK9: 7 | BL9: =IF(BM9<>"",MAX(BL$3:BL8)+1,0) -> 0 | BM9: =IF(BK9>PListed,"",Cover!BJ9) ->  | BN9: 7 | BT9: Primary health care teams deployed to provide care to families and communities | BU9: Corruption in the public and private sectors reduced | BV9: Expanded economic opportunities for historically excluded and vulnerable groups | CC9: Strong, mutually beneficial South-South cooperation | CD9: Improved inter-departmental coordination and institutionalisation of long-term planning | CE9: Improve household food and nutrition security | CH9: 7 | CI9: AN356:AO365,AN370:AO371,AN373:AO410,AN412:AO413,AN440:AO441,AN443:AO449 | CQ9: Social Development | CR9: Social Assistance | CS9: Foster Care | CT9: Current | CU9: Social benefits | CV9: 0 | CW9: 0 | CX9: 0 | CY9: Social DevelopmentSocial AssistanceFoster CareCurrentSocial benefits | CZ9: Social DevelopmentSocial AssistanceFoster Care | DA9: Social DevelopmentSocial AssistanceFoster CareSocial benefits | DG9: The Presidency | DH9: Administration | DI9: 7 | DJ9: 72 | DK9: 77 | DL9: 5 | DM9: 77 | DN9: 21458 | DO9: 70 | DP9: 22702 | DQ9: 71 | DR9: 24436 | DS9: 71 | DT9: 25769 | DU9: 77 | DV9: 29439 | DW9: The Presidency|Administration | DX9: 001 | DY9: 001 | DZ9: 001001 | EC9: 111 | ED9: 62 | EE9: 1 | EF9: The Presidency | EG9: 1 | EH9: Administration | EI9: 1 | EJ9: Management | EK9: Payments for capital assets | EL9: Software and other intangible assets | EM9: Software and other intangible assets | EN9: 144 | EO9: 265 | EP9: 0 | EQ9: 0 | ER9: 0 | ES9: 0 | ET9: 0 | EU9: 0 | EW9: 0 | EX9: 0 | EY9: 0 | EZ9: 0 | FA9: 0 | FB9: The Presidency|Administration | FC9: 001 | FD9: 001 | FE9: 001 | FF9: 062 | FG9: 001001 | FH9: 001062 | FI9: 62 | FJ9: 001001001062 | FK9: 001001001 | FL9: 001001062 | FS9: 53 | FT9: 1 | FU9: The Presidency | FV9: 3 | FW9: Policy and Research Services | FX9: 7 | FY9: Socio Economic Impact Assessment System | GA9: Households | GB9: Other transfers to households | GK9: 5 | GL9: 1 | GM9: 0 | GN9: 7 | GQ9: Cooperative Governance | GR9: 2 | GS9: Local Government Support and Intervention Management | GT9: 8 | GU9: Intergrated Urban Development Grant | GV9: Integrated Urban Development Grant | GW9: Capital | GX9: Municipal bank accounts | GY9: LCG | GZ9: Cooperative Governance|Local Government Support and Intervention Management|Intergrated Urban Development Grant |Integrated Urban Development Grant|Capital|Municipal bank accounts | HA9: 0 | HB9: 0 | HC9: 0 | HD9: 179 | HE9: 1
B10: =+$AG$23 -> (012) 315 5213 | E10: Email: | F10: phelelisiwe.lukhele@dpe.gov.za | AY10: SIP 7: Integrated urban space and public transport programme | AZ10: Non-profit institutions | BB10: 118 | BC10: Foreign governments and international organisations | BD10: Departmental mandate | BE10: Departmental agencies and accounts | BF10: Residential buildings | BG10: Handed over | BJ10: =IF(OR(BJ9="Direct_charges",BJ9=""),"",IF(Summary!F38=0,"Direct_charges",Summary!F38)) ->  | BK10: 8 | BL10: =IF(BM10<>"",MAX(BL$3:BL9)+1,0) -> 0 | BM10: =IF(BK10>PListed,"",Cover!BJ10) ->  | BN10: 8 | BT10: Universal health coverage achieved | BV10: Public employment schemes provide short-term relief for the unemployed and build community solidarity and agency | CC10: Beneficial relations with strategic formations of the North | CD10: Improved mechanisms to prevent corruption in the public service (refer to the chapter on Outcome 3 for further elements of fighting corruption effectively) | CE10: Strengthening of community development interventions to strengthen coordination, integration, planning, monitoring and evaluation of services | CH10: 8 | CQ10: Social Development | CR10: Social Assistance | CS10: Care Dependency | CT10: Current | CU10: Social benefits | CV10: 0 | CW10: 0 | CX10: 0 | CY10: Social DevelopmentSocial AssistanceCare DependencyCurrentSocial benefits | CZ10: Social DevelopmentSocial AssistanceCare Dependency | DA10: Social DevelopmentSocial AssistanceCare DependencySocial benefits | DG10: The Presidency | DH10: Administration | DI10: 8 | DJ10: 53 | DK10: 53 | DL10: 0 | DM10: 50 | DN10: 16902 | DO10: 49 | DP10: 18749 | DQ10: 49 | DR10: 19893 | DS10: 50 | DT10: 21388 | DU10: 52 | DV10: 23546 | DW10: The Presidency|Administration | DX10: 001 | DY10: 001 | DZ10: 001001 | EC10: 111 | ED10: 63 | EE10: 1 | EF10: The Presidency | EG10: 1 | EH10: Administration | EI10: 1 | EJ10: Management | EK10: Payments for financial assets | EL10: Payments for financial assets | EM10: Payments for financial assets | EN10: 783 | EO10: 355 | EP10: 0 | EQ10: 0 | ER10: 0 | ES10: 0 | ET10: 0 | EU10: 0 | EW10: 0 | EX10: 0 | EY10: 0 | EZ10: 0 | FA10: 0 | FB10: The Presidency|Administration | FC10: 001 | FD10: 001 | FE10: 001 | FF10: 063 | FG10: 001001 | FH10: 001063 | FI10: 63 | FJ10: 001001001063 | FK10: 001001001 | FL10: 001001063 | FS10: 52 | FT10: 1 | FU10: The Presidency | FV10: 16 | FW10: Direct charge against the National Revenue Fund | FX10: 1 | FY10: Salary of the president | GA10: Machinery and equipment | GB10: Social benefits | GK10: 6 | GL10: 1 | GM10: 0 | GN10: 8 | GQ10: Cooperative Governance | GR10: 2 | GS10: Local Government Support and Intervention Management | GT10: 9 | GU10: Municipal Demarcation Board | GV10: Municipal Demarcation Board | GW10: Current | GX10: Departmental agencies (non-business entities) | GY10: NAT | GZ10: Cooperative Governance|Local Government Support and Intervention Management|Municipal Demarcation Board |Municipal Demarcation Board|Current|Departmental agencies (non-business entities) | HA10: 0 | HB10: 0 | HC10: 0 | HD10: 186 | HE10: 1
B11: =+$AH$23 -> isaac.kurasha@treasury.gov.za | E11: Telephone number: | F11: 124311133 | AY11: SIP 8: Green energy in support of the South African economy | AZ11: Households | BB11: 119 | BC11: Subsidies on products and production (pc) | BE11: Higher education institutions | BF11: Non-residential buildings | BG11: On hold | BJ11: =IF(OR(BJ10="Direct_charges",BJ10=""),"",IF(Summary!F39=0,"Direct_charges",Summary!F39)) ->  | BK11: 9 | BL11: =IF(BM11<>"",MAX(BL$3:BL10)+1,0) -> 0 | BM11: =IF(BK11>PListed,"",Cover!BJ11) ->  | BN11: 9 | BT11: Posts filled with skilled, committed and competent individuals | CH11: 9 | CQ11: Social Development | CR11: Social Assistance | CS11: Child Support | CT11: Current | CU11: Social benefits | CV11: 0 | CW11: 0 | CX11: 0 | CY11: Social DevelopmentSocial AssistanceChild SupportCurrentSocial benefits | CZ11: Social DevelopmentSocial AssistanceChild Support | DA11: Social DevelopmentSocial AssistanceChild SupportSocial benefits | DG11: The Presidency | DH11: Administration | DI11: 9 | DJ11: 43 | DK11: 49 | DL11: 6 | DM11: 43 | DN11: 18415 | DO11: 48 | DP11: 22309 | DQ11: 48 | DR11: 23671 | DS11: 48 | DT11: 24962 | DU11: 49 | DV11: 26893 | DW11: The Presidency|Administration | DX11: 001 | DY11: 001 | DZ11: 001001 | EC11: 111 | ED11: 46 | EE11: 1 | EF11: The Presidency | EG11: 1 | EH11: Administration | EI11: 1 | EJ11: Management | EK11: Transfers and subsidies | EL11: Departmental agencies and accounts | EM11: Departmental agencies (non-business entities) | EN11: 0 | EO11: 0 | EP11: 40 | EQ11: 40 | ER11: 40 | ES11: 42 | ET11: 44 | EU11: 46 | EW11: 0 | EX11: 0 | EY11: 44 | EZ11: 46 | FA11: 48 | FB11: The Presidency|Administration | FC11: 001 | FD11: 001 | FE11: 001 | FF11: 046 | FG11: 001001 | FH11: 001046 | FI11: 46 | FJ11: 001001001046 | FK11: 001001001 | FL11: 001001046 | FS11: 57 | FT11: 1 | FU11: The Presidency | FV11: 16 | FW11: Direct charge against the National Revenue Fund | FX11: 2 | FY11: Salary of the deputy president | GA11: Software and other intangible assets | GB11: Other machinery and equipment | GK11: 7 | GL11: 1 | GM11: 0 | GN11: 9 | GQ11: Cooperative Governance | GR11: 2 | GS11: Local Government Support and Intervention Management | GT11: 10 | GU11: South African Cities Network | GV11: South African Cities Network | GW11: Current | GX11: Non-profit institutions | GY11: NAT | GZ11: Cooperative Governance|Local Government Support and Intervention Management|South African Cities Network |South African Cities Network|Current|Non-profit institutions | HA11: 0 | HB11: 0 | HC11: 0 | HD11: 166 | HE11: 1
E12: Mobile (optional): | F12: 0 | AJ12: =AA13 -> Data file ENE 2021 | AY12: SIP 9: Electricity generations to support socio-economic development | AZ12: Buildings and other fixed structures | BA12: Donation | BB12: 116 | BC12: Other transfers to public corporations | BE12: Foreign governments and international organisations | BF12: Investment property | BG12: Complete | BJ12: =IF(OR(BJ11="Direct_charges",BJ11=""),"",IF(Summary!F40=0,"Direct_charges",Summary!F40)) ->  | BK12: 10 | BL12: =IF(BM12<>"",MAX(BL$3:BL11)+1,0) -> 0 | BM12: =IF(BK12>PListed,"",Cover!BJ12) ->  | BN12: 10 | CH12: 10 | CQ12: Social Development | CR12: Social Assistance | CS12: Grant-in-Aid | CT12: Current | CU12: Social benefits | CV12: 0 | CW12: 0 | CX12: 0 | CY12: Social DevelopmentSocial AssistanceGrant-in-AidCurrentSocial benefits | CZ12: Social DevelopmentSocial AssistanceGrant-in-Aid | DA12: Social DevelopmentSocial AssistanceGrant-in-AidSocial benefits | DG12: The Presidency | DH12: Administration | DI12: 10 | DJ12: 16 | DK12: 18 | DL12: 2 | DM12: 20 | DN12: 10371 | DO12: 18 | DP12: 10063 | DQ12: 18 | DR12: 10677 | DS12: 18 | DT12: 11260 | DU12: 18 | DV12: 11903 | DW12: The Presidency|Administration | DX12: 001 | DY12: 001 | DZ12: 001001 | EC12: 111 | ED12: 53 | EE12: 1 | EF12: The Presidency | EG12: 1 | EH12: Administration | EI12: 1 | EJ12: Management | EK12: Transfers and subsidies | EL12: Households | EM12: Other transfers to households | EN12: 40 | EO12: 40 | EP12: 0 | EQ12: 0 | ER12: 0 | ES12: 0 | ET12: 0 | EU12: 0 | EW12: 0 | EX12: 0 | EY12: 0 | EZ12: 0 | FA12: 0 | FB12: The Presidency|Administration | FC12: 001 | FD12: 001 | FE12: 001 | FF12: 053 | FG12: 001001 | FH12: 001053 | FI12: 53 | FJ12: 001001001053 | FK12: 001001001 | FL12: 001001053 | FS12: 56 | FT12: 2 | FU12: Parliament | FV12: 1 | FW12: Strategic Leadership and Governance | FX12: 1 | FY12: Office of the Speaker | GA12: Payments for financial assets | GB12: Transport equipment | GK12: 8 | GL12: 1 | GM12: 0 | GN12: 10 | GQ12: Cooperative Governance | GR12: 2 | GS12: Local Government Support and Intervention Management | GT12: 11 | GU12: Municipal Infrastructure Grant | GV12: Municipal infrastructure grant | GW12: Capital | GX12: Municipal bank accounts | GY12: LCG | GZ12: Cooperative Governance|Local Government Support and Intervention Management|Municipal Infrastructure Grant |Municipal infrastructure grant|Capital|Municipal bank accounts | HA12: 0 | HB12: 0 | HC12: 0 | HD12: 170 | HE12: 1
B13: =IF(B15="","","OR") -> OR | E13: CFO Contact Details: | AA13: Data file ENE 2021 | AY13: SIP 10: Electricity transmission and distribution for all | AZ13: Machinery and equipment | BA13: Foreign | BB13: 121 | BC13: Subsidies on products and production (pe) | BE13: Public corporations and private enterprises | BF13: Heritage assets | BG13: On-going | BJ13: =IF(OR(BJ12="Direct_charges",BJ12=""),"",IF(Summary!F41=0,"Direct_charges",Summary!F41)) ->  | BK13: 11 | BL13: =IF(BM13<>"",MAX(BL$3:BL12)+1,0) -> 0 | BM13: =IF(BK13>PListed,"",Cover!BJ13) ->  | BN13: 11 | BO13: =IF(ISERROR(INDEX(($BM$3:$BM$18),MATCH(BN13,$BL$3:$BL$18,0))),"",INDEX(($BM$3:$BM$18),MATCH(BN13,$BL$3:$BL$18,0))) ->  | CH13: 11 | CQ13: Social Development | CR13: Social Assistance | CS13: Social Relief of Distress | CT13: Current | CU13: Social benefits | CV13: 0 | CW13: 0 | CX13: 0 | CY13: Social DevelopmentSocial AssistanceSocial Relief of DistressCurrentSocial benefits | CZ13: Social DevelopmentSocial AssistanceSocial Relief of Distress | DA13: Social DevelopmentSocial AssistanceSocial Relief of DistressSocial benefits | DG13: The Presidency | DH13: Administration | DI13: 11 | DJ13: 60 | DK13: 62 | DL13: 2 | DM13: 57 | DN13: 38212 | DO13: 57 | DP13: 38898 | DQ13: 56 | DR13: 40618 | DS13: 58 | DT13: 44211 | DU13: 62 | DV13: 49651 | DW13: The Presidency|Administration | DX13: 001 | DY13: 001 | DZ13: 001001 | EC13: 111 | ED13: 52 | EE13: 1 | EF13: The Presidency | EG13: 1 | EH13: Administration | EI13: 1 | EJ13: Management | EK13: Transfers and subsidies | EL13: Households | EM13: Social benefits | EN13: 3430 | EO13: 984 | EP13: 0 | EQ13: 2004 | ER13: 2004 | ES13: 0 | ET13: 0 | EU13: 0 | EW13: 0 | EX13: 0 | EY13: 0 | EZ13: 0 | FA13: 0 | FB13: The Presidency|Administration | FC13: 001 | FD13: 001 | FE13: 001 | FF13: 052 | FG13: 001001 | FH13: 001052 | FI13: 52 | FJ13: 001001001052 | FK13: 001001001 | FL13: 001001052 | FS13: 62 | FT13: 2 | FU13: Parliament | FV13: 1 | FW13: Strategic Leadership and Governance | FX13: 2 | FY13: Office of the Chairperson | GA13: Non-profit institutions | GB13: Software and other intangible assets | GK13: 9 | GL13: 1 | GM13: 0 | GN13: 11 | GQ13: Cooperative Governance | GR13: 2 | GS13: Local Government Support and Intervention Management | GT13: 12 | GU13: Municipal Infrastructure Support Agent | GV13: Municipal Infrastructure Support Agent | GW13: Current | GX13: Departmental agencies (non-business entities) | GY13: NAT | GZ13: Cooperative Governance|Local Government Support and Intervention Management|Municipal Infrastructure Support Agent|Municipal Infrastructure Support Agent|Current|Departmental agencies (non-business entities) | HA13: 0 | HB13: 0 | HC13: 0 | HD13: 207 | HE13: 1
E14: Name: | F14: Benedicta Mogaladi | AY14: SIP 11: Agri-logistics and rural infrastructure | AZ14: Heritage assets | BA14: Local | BB14: 122 | BC14: Other transfers to private enterprises | BE14: Non-profit institutions | BF14: Other fixed structures | BJ14: =IF(OR(BJ13="Direct_charges",BJ13=""),"",IF(Summary!F42=0,"Direct_charges",Summary!F42)) ->  | BK14: 12 | BL14: =IF(BM14<>"",MAX(BL$3:BL13)+1,0) -> 0 | BM14: =IF(BK14>PListed,"",Cover!BJ14) ->  | BN14: 12 | CH14: 12 | DG14: The Presidency | DH14: Administration | DI14: 12 | DJ14: 41 | DK14: 41 | DL14: 0 | DM14: 34 | DN14: 21233 | DO14: 39 | DP14: 32732 | DQ14: 39 | DR14: 34729 | DS14: 40 | DT14: 37398 | DU14: 41 | DV14: 40354 | DW14: The Presidency|Administration | DX14: 001 | DY14: 001 | DZ14: 001001 | EC14: 111 | ED14: 44 | EE14: 1 | EF14: The Presidency | EG14: 1 | EH14: Administration | EI14: 1 | EJ14: Management | EK14: Transfers and subsidies | EL14: Provinces and municipalities | EM14: Municipalities | EN14: 10 | EO14: 6 | EP14: 0 | EQ14: 0 | ER14: 0 | ES14: 0 | ET14: 0 | EU14: 0 | EW14: 0 | EX14: 0 | EY14: 0 | EZ14: 0 | FA14: 0 | FB14: The Presidency|Administration | FC14: 001 | FD14: 001 | FE14: 001 | FF14: 044 | FG14: 001001 | FH14: 001044 | FI14: 44 | FJ14: 001001001044 | FK14: 001001001 | FL14: 001001044 | FS14: 63 | FT14: 2 | FU14: Parliament | FV14: 1 | FW14: Strategic Leadership and Governance | FX14: 3 | FY14: Treasury Advise Office | GA14: Public corporations and private enterprises | GB14: Payments for financial assets | GK14: 10 | GL14: 1 | GM14: 0 | GN14: 12 | GQ14: Cooperative Governance | GR14: 3 | GS14: Institutional Development | GT14: 4 | GU14: Citizen Engagement | GV14: Commonwealth Local Government Forum | GW14: Current | GX14: Foreign governments and international organisations | GY14: NAT | GZ14: Cooperative Governance|Institutional Development|Citizen Engagement|Commonwealth Local Government Forum|Current|Foreign governments and international organisations | HA14: 0 | HB14: 0 | HC14: 0 | HD14: 163 | HE14: 1
B15: =+$AI$23 -> Ntandokazi Makaula | E15: Email: | F15: Benedicta.Mogaladi@dpe.gov.za | AY15: SIP 12: Revitalisation of public hospitals and other health facilities | AZ15: Specialised military assets | BB15: 123 | BC15: Non-profit institutions | BE15: Households | BJ15: =IF(OR(BJ14="Direct_charges",BJ14=""),"",IF(Summary!F43=0,"Direct_charges",Summary!F43)) ->  | BK15: 13 | BL15: =IF(BM15<>"",MAX(BL$3:BL14)+1,0) -> 0 | BM15: =IF(BK15>PListed,"",Cover!BJ15) ->  | BN15: 13 | CH15: 13 | DG15: The Presidency | DH15: Administration | DI15: 13 | DJ15: 37 | DK15: 38 | DL15: 1 | DM15: 34 | DN15: 33037 | DO15: 35 | DP15: 34920 | DQ15: 37 | DR15: 39240 | DS15: 38 | DT15: 42425 | DU15: 38 | DV15: 44849 | DW15: The Presidency|Administration | DX15: 001 | DY15: 001 | DZ15: 001001 | EC15: 112 | ED15: 50 | EE15: 1 | EF15: The Presidency | EG15: 1 | EH15: Administration | EI15: 1 | EJ15: Management | EK15: Transfers and subsidies | EL15: Public corporations and private enterprises | EM15: Private enterprises | EN15: 0 | EO15: 0 | EP15: 0 | EQ15: 0 | ER15: 0 | ES15: 0 | ET15: 0 | EU15: 0 | EW15: 0 | EX15: 0 | EY15: 0 | EZ15: 0 | FA15: 0 | FB15: The Presidency|Administration | FC15: 001 | FD15: 001 | FE15: 001 | FF15: 050 | FG15: 001001 | FH15: 001050 | FI15: 50 | FJ15: 001001001050 | FK15: 001001001 | FL15: 001001050 | FS15: 51 | FT15: 2 | FU15: Parliament | FV15: 1 | FW15: Strategic Leadership and Governance | FX15: 4 | FY15: Parliamentary Budget Office | GA15: Foreign governments and international organisations | GB15: Non-profit institutions | GK15: 11 | GL15: 1 | GM15: 0 | GN15: 13 | GQ15: Cooperative Governance | GR15: 3 | GS15: Institutional Development | GT15: 8 | GU15: Local Government Equitable Share | GV15: Equitable share transfer | GW15: Current | GX15: Municipal bank accounts | GY15: LES | GZ15: Cooperative Governance|Institutional Development|Local Government Equitable Share|Equitable share transfer|Current|Municipal bank accounts | HA15: 0 | HB15: 0 | HC15: 0 | HD15: 138 | HE15: 1
B16: =+$AJ$23 -> (012) 395 6667 | E16: Telephone number: | F16: 124311291 | AY16: SIP 13: National school build programme | AZ16: Biological assets | BB16: 124 | BC16: Social benefits | BJ16: =IF(OR(BJ15="Direct_charges",BJ15=""),"",IF(Summary!F44=0,"Direct_charges",Summary!F44)) ->  | BK16: 14 | BL16: =IF(BM16<>"",MAX(BL$3:BL15)+1,0) -> 0 | BM16: =IF(BK16>PListed,"",Cover!BJ16) ->  | BN16: 14 | CH16: 14 | DG16: The Presidency | DH16: Administration | DI16: 14 | DJ16: 17 | DK16: 19 | DL16: 2 | DM16: 21 | DN16: 18999 | DO16: 18 | DP16: 21581 | DQ16: 19 | DR16: 24094 | DS16: 19 | DT16: 25408 | DU16: 19 | DV16: 26860 | DW16: The Presidency|Administration | DX16: 001 | DY16: 001 | DZ16: 001001 | EC16: 112 | ED16: 1 | EE16: 1 | EF16: The Presidency | EG16: 1 | EH16: Administration | EI16: 2 | EJ16: Support Services to the President | EK16: Current payments | EL16: Compensation of employees | EM16: Compensation of employees | EN16: 40112 | EO16: 42166 | EP16: 44748 | EQ16: 44576 | ER16: 44576 | ES16: 47809 | ET16: 50917 | EU16: 53138 | EW16: 0 | EX16: 0 | EY16: 46249 | EZ16: 47530 | FA16: 48213 | FB16: The Presidency|Administration | FC16: 001 | FD16: 001 | FE16: 002 | FF16: 001 | FG16: 001001 | FH16: 001001 | FI16: 1 | FJ16: 001001002001 | FK16: 001001002 | FL16: 001001001 | FS16: 49 | FT16: 2 | FU16: Parliament | FV16: 1 | FW16: Strategic Leadership and Governance | FX16: 5 | FY16: Office of Institutions Supporting Democracy | GA16: Heritage assets | GB16: Public corporations | GK16: 12 | GL16: 1 | GM16: 0 | GN16: 14 | GQ16: Cooperative Governance | GR16: 3 | GS16: Institutional Development | GT16: 9 | GU16: South African Local Government Association | GV16: South African Local Government Association | GW16: Current | GX16: Departmental agencies (non-business entities) | GY16: NAT | GZ16: Cooperative Governance|Institutional Development|South African Local Government Association |South African Local Government Association|Current|Departmental agencies (non-business entities) | HA16: 0 | HB16: 0 | HC16: 0 | HD16: 189 | HE16: 1
B17: =+$AK$23 -> Ntandokazi.Makaula@treasury.gov.za | E17: Mobile (optional): | F17: 0 | AY17: SIP 14: Higher education infrastructure | AZ17: Land and sub-soil assets | BB17: 124 | BC17: Other transfers to households | BJ17: =IF(OR(BJ16="Direct_charges",BJ16=""),"",IF(Summary!F45=0,"Direct_charges",Summary!F45)) ->  | BK17: 15 | BL17: =IF(BM17<>"",MAX(BL$3:BL16)+1,0) -> 0 | BM17: =IF(BK17>PListed,"",Cover!BJ17) ->  | BN17: 15 | CH17: 15 | DG17: The Presidency | DH17: Administration | DI17: 15 | DJ17: 5 | DK17: 8 | DL17: 3 | DM17: 5 | DN17: 8463 | DO17: 5 | DP17: 7101 | DQ17: 8 | DR17: 12221 | DS17: 8 | DT17: 12887 | DU17: 8 | DV17: 13623 | DW17: The Presidency|Administration | DX17: 001 | DY17: 001 | DZ17: 001001 | EC17: 112 | ED17: 2 | EE17: 1 | EF17: The Presidency | EG17: 1 | EH17: Administration | EI17: 2 | EJ17: Support Services to the President | EK17: Current payments | EL17: Goods and services | EM17: Goods and services | EN17: 16070 | EO17: 22245 | EP17: 24679 | EQ17: 24679 | ER17: 24679 | ES17: 25512 | ET17: 26923 | EU17: 27914 | EW17: 0 | EX17: 0 | EY17: 25856 | EZ17: 26528 | FA17: 26629 | FB17: The Presidency|Administration | FC17: 001 | FD17: 001 | FE17: 002 | FF17: 002 | FG17: 001001 | FH17: 001002 | FI17: 2 | FJ17: 001001002002 | FK17: 001001002 | FL17: 001001002 | FS17: 48 | FT17: 2 | FU17: Parliament | FV17: 2 | FW17: Administration | FX17: 1 | FY17: Secretary's Office | GA17: Buildings and other fixed structures | GB17: Foreign governments and international organisations | GK17: 13 | GL17: 1 | GM17: 0 | GN17: 15 | GQ17: Cooperative Governance | GR17: 3 | GS17: Institutional Development | GT17: 10 | GU17: United Cities and Local Government of Africa | GV17: United Cities and Local Governments of Africa - Moroccan office | GW17: Current | GX17: Foreign governments and international organisations | GY17: NAT | GZ17: Cooperative Governance|Institutional Development|United Cities and Local Government of Africa|United Cities and Local Governments of Africa - Moroccan office|Current|Foreign governments and international organisations | HA17: 0 | HB17: 0 | HC17: 0 | HD17: 217 | HE17: 1
AY18: SIP 15: Expanding access to communication technology | AZ18: Software and other intangible assets | BA18: Currency | BL18: =IF(BM18<>"",MAX(BL$3:BL17)+1,0) -> 4 | BM18: Multiple programmes | BN18: 16 | CH18: 16 | DG18: The Presidency | DH18: Administration | DI18: 16 | DJ18: 2 | DK18: 7 | DL18: 5 | DM18: 7 | DN18: 11830 | DO18: 7 | DP18: 13142 | DQ18: 7 | DR18: 13944 | DS18: 7 | DT18: 14704 | DU18: 7 | DV18: 15544 | DW18: The Presidency|Administration | DX18: 001 | DY18: 001 | DZ18: 001001 | EC18: 112 | ED18: 57 | EE18: 1 | EF18: The Presidency | EG18: 1 | EH18: Administration | EI18: 2 | EJ18: Support Services to the President | EK18: Payments for capital assets | EL18: Machinery and equipment | EM18: Other machinery and equipment | EN18: 537 | EO18: 1138 | EP18: 723 | EQ18: 723 | ER18: 723 | ES18: 740 | ET18: 780 | EU18: 823 | EW18: 0 | EX18: 0 | EY18: 780 | EZ18: 823 | FA18: 859 | FB18: The Presidency|Administration | FC18: 001 | FD18: 001 | FE18: 002 | FF18: 057 | FG18: 001001 | FH18: 001057 | FI18: 57 | FJ18: 001001002057 | FK18: 001001002 | FL18: 001001057 | FS18: 58 | FT18: 2 | FU18: Parliament | FV18: 2 | FW18: Administration | FX18: 2 | FY18: Finance Management Office | GA18: Land and sub-soil assets | GB18: Heritage assets | GK18: 14 | GL18: 1 | GM18: 0 | GN18: 16 | GQ18: Cooperative Governance | GR18: 3 | GS18: Institutional Development | GT18: 10 | GU18: United Cities and Local Government of Africa | GV18: United Cities and Local Governments of Africa - South African regional office | GW18: Current | GX18: Non-profit institutions | GY18: NAT | GZ18: Cooperative Governance|Institutional Development|United Cities and Local Government of Africa|United Cities and Local Governments of Africa - South African regional office|Current|Non-profit institutions | HA18: 0 | HB18: 0 | HC18: 0 | HD18: 203 | HE18: 1
B19: Technical Enquiries: | E19: Mpho Leeu (012) 315 5794 Mpho.Leeu@treasury.gov.za | AY19: SIP 16: SKA and Meerkat | BA19: In Cash | CH19: 17 | DG19: The Presidency | DH19: Executive Support | DI19: 6 | DJ19: 8 | DK19: 8 | DL19: 0 | DM19: 8 | DN19: 1497 | DO19: 8 | DP19: 2562 | DQ19: 8 | DR19: 2870 | DS19: 8 | DT19: 3009 | DU19: 8 | DV19: 3200 | DW19: The Presidency|Executive Support | DX19: 001 | DY19: 002 | DZ19: 001002 | EC19: 112 | ED19: 63 | EE19: 1 | EF19: The Presidency | EG19: 1 | EH19: Administration | EI19: 2 | EJ19: Support Services to the President | EK19: Payments for financial assets | EL19: Payments for financial assets | EM19: Payments for financial assets | EN19: 93 | EO19: 177 | EP19: 0 | EQ19: 0 | ER19: 0 | ES19: 0 | ET19: 0 | EU19: 0 | EW19: 0 | EX19: 0 | EY19: 0 | EZ19: 0 | FA19: 0 | FB19: The Presidency|Administration | FC19: 001 | FD19: 001 | FE19: 002 | FF19: 063 | FG19: 001001 | FH19: 001063 | FI19: 63 | FJ19: 001001002063 | FK19: 001001002 | FL19: 001001063 | FS19: 43 | FT19: 2 | FU19: Parliament | FV19: 2 | FW19: Administration | FX19: 3 | FY19: Internal Audit | GA19: Higher education institutions | GB19: Provinces | GK19: 15 | GL19: 1 | GM19: 0 | GN19: 17 | GQ19: Cooperative Governance | GR19: 4 | GS19: National Disaster Management Centre | GT19: 3 | GU19: Legislation and Policy Management | GV19: Disaster Management Institute of Southern Africa | GW19: Current | GX19: Non-profit institutions | GY19: NAT | GZ19: Cooperative Governance|National Disaster Management Centre|Legislation and Policy Management|Disaster Management Institute of Southern Africa|Current|Non-profit institutions | HA19: 0 | HB19: 0 | HC19: 0 | HD19: 173 | HE19: 1
AY20: SIP 17: Regional integration for African Cooperation and development | BA20: In Kind | CH20: 18 | DG20: The Presidency | DH20: Executive Support | DI20: 7 | DJ20: 3 | DK20: 3 | DL20: 0 | DM20: 2 | DN20: 755 | DO20: 3 | DP20: 1172 | DQ20: 3 | DR20: 1314 | DS20: 3 | DT20: 1377 | DU20: 3 | DV20: 1464 | DW20: The Presidency|Executive Support | DX20: 001 | DY20: 002 | DZ20: 001002 | EC20: 112 | ED20: 52 | EE20: 1 | EF20: The Presidency | EG20: 1 | EH20: Administration | EI20: 2 | EJ20: Support Services to the President | EK20: Transfers and subsidies | EL20: Households | EM20: Social benefits | EN20: 256 | EO20: 616 | EP20: 0 | EQ20: 172 | ER20: 172 | ES20: 0 | ET20: 0 | EU20: 0 | EW20: 0 | EX20: 0 | EY20: 0 | EZ20: 0 | FA20: 0 | FB20: The Presidency|Administration | FC20: 001 | FD20: 001 | FE20: 002 | FF20: 052 | FG20: 001001 | FH20: 001052 | FI20: 52 | FJ20: 001001002052 | FK20: 001001002 | FL20: 001001052 | FS20: 55 | FT20: 2 | FU20: Parliament | FV20: 2 | FW20: Administration | FX20: 4 | FY20: Strategic Management and Governance | GA20: Biological assets | GB20: Other fixed structures | GK20: Direct_charges | GL20: 1 | GM20: 0 | GN20: 18 | GQ20: Cooperative Governance | GR20: 4 | GS20: National Disaster Management Centre | GT20: 7 | GU20: Disaster Relief Grant | GV20: Municipal disaster relief grant | GW20: Current | GX20: Municipal bank accounts | GY20: LCG | GZ20: Cooperative Governance|National Disaster Management Centre|Disaster Relief Grant|Municipal disaster relief grant|Current|Municipal bank accounts | HA20: 0 | HB20: 0 | HC20: 0 | HD20: 144 | HE20: 1
B21: Data file to be submitted to: | AY21: SIP 18. Water and sanitation master plan | CH21: 19 | DG21: The Presidency | DH21: Executive Support | DI21: 9 | DJ21: 2 | DK21: 2 | DL21: 0 | DM21: 2 | DN21: 554 | DO21: 2 | DP21: 850 | DQ21: 2 | DR21: 952 | DS21: 2 | DT21: 998 | DU21: 2 | DV21: 1062 | DW21: The Presidency|Executive Support | DX21: 001 | DY21: 002 | DZ21: 001002 | EC21: 112 | ED21: 1 | EE21: 1 | EF21: The Presidency | EG21: 1 | EH21: Administration | EI21: 3 | EJ21: Support Services to the Deputy President | EK21: Current payments | EL21: Compensation of employees | EM21: Compensation of employees | EN21: 36029 | EO21: 28830 | EP21: 41155 | EQ21: 40881 | ER21: 40881 | ES21: 43972 | ET21: 46830 | EU21: 48873 | EW21: 0 | EX21: 0 | EY21: 40070 | EZ21: 40070 | FA21: 40070 | FB21: The Presidency|Administration | FC21: 001 | FD21: 001 | FE21: 003 | FF21: 001 | FG21: 001001 | FH21: 001001 | FI21: 1 | FJ21: 001001003001 | FK21: 001001003 | FL21: 001001001 | FS21: 54 | FT21: 2 | FU21: Parliament | FV21: 2 | FW21: Administration | FX21: 6 | FY21: Registrar of Member's Interest | GA21: Specialised military assets | GB21: Buildings | GK21: PM | GL21: 0 | GM21: 1 | GN21: 19 | GQ21: Cooperative Governance | GR21: 4 | GS21: National Disaster Management Centre | GT21: 7 | GU21: Disaster Relief Grant | GV21: Provincial disaster relief grant | GW21: Current | GX21: Provincial Revenue Funds | GY21: PCG | GZ21: Cooperative Governance|National Disaster Management Centre|Disaster Relief Grant|Provincial disaster relief grant|Current|Provincial Revenue Funds | HA21: 0 | HB21: 0 | HC21: 0 | HD21: 146 | HE21: 1
B22: DatafileNAT@treasury.gov.za | AA22: 27 | AB22: =+MATCH(AC22,$AB$25:$AB$71,0) -> 27 | AC22: 10 | BA22: CurCap | CH22: 20 | DG22: The Presidency | DH22: Executive Support | DI22: 11 | DJ22: 1 | DK22: 1 | DL22: 0 | DM22: 1 | DN22: 569 | DO22: 1 | DP22: 742 | DQ22: 1 | DR22: 832 | DS22: 1 | DT22: 872 | DU22: 1 | DV22: 927 | DW22: The Presidency|Executive Support | DX22: 001 | DY22: 002 | DZ22: 001002 | EC22: 113 | ED22: 2 | EE22: 1 | EF22: The Presidency | EG22: 1 | EH22: Administration | EI22: 3 | EJ22: Support Services to the Deputy President | EK22: Current payments | EL22: Goods and services | EM22: Goods and services | EN22: 9034 | EO22: 13844 | EP22: 16838 | EQ22: 16838 | ER22: 16838 | ES22: 17397 | ET22: 18360 | EU22: 19041 | EW22: 0 | EX22: 0 | EY22: 17633 | EZ22: 18095 | FA22: 18166 | FB22: The Presidency|Administration | FC22: 001 | FD22: 001 | FE22: 003 | FF22: 002 | FG22: 001001 | FH22: 001002 | FI22: 2 | FJ22: 001001003002 | FK22: 001001003 | FL22: 001001002 | FS22: 61 | FT22: 2 | FU22: Parliament | FV22: 2 | FW22: Administration | FX22: 7 | FY22: Projects | GB22: Land and sub-soil assets | GK22: Expend Trends | GL22: 1 | GM22: 0 | GN22: 20 | GQ22: Government Communication and Information System | GR22: 1 | GS22: Administration | GT22: 3 | GU22: Financial Administration | GV22: Communication | GW22: Current | GX22: Departmental agencies (non-business entities) | GY22: NAT | GZ22: Government Communication and Information System|Administration|Financial Administration|Communication|Current|Departmental agencies (non-business entities) | HA22: 0 | HB22: 0 | HC22: 0 | HD22: 155 | HE22: 1
Z23: =IF(AI23="",1,2) -> 2 | AA23: 27 | AB23: =INDEX(($AB$25:$AB$71),MATCH(DeptName,$AC$25:$AC$71,0)) -> 10 | AC23: =+B7 -> Public Enterprises | AD23: =INDEX((AD$25:AD$71),MATCH($AA$23,$AA$25:$AA$71,1)) -> 0 | AE23: =INDEX((AE$25:AE$71),MATCH($AA$23,$AA$25:$AA$71,1)) -> 0 | AF23: =INDEX((AF$25:AF$71),MATCH($AA$23,$AA$25:$AA$71,1)) -> Isaac Kurasha | AG23: (012) 315 5213 | AH23: =INDEX((AH$25:AH$71),MATCH($AA$23,$AA$25:$AA$71,1)) -> isaac.kurasha@treasury.gov.za | AI23: Ntandokazi Makaula | AJ23: (012) 395 6667 | AK23: =INDEX((AK$25:AK$71),MATCH($AA$23,$AA$25:$AA$71,1)) -> Ntandokazi.Makaula@treasury.gov.za | AL23: 0 | AM23: 0 | AN23: 0 | AO23: 0 | AP23: =INDEX((AP$25:AP$71),MATCH($AA$23,$AA$25:$AA$71,1)) -> 4598874 | AQ23: =INDEX((AQ$25:AQ$71),MATCH($AA$23,$AA$25:$AA$71,1)) -> 2071587 | AR23: =INDEX((AR$25:AR$71),MATCH($AA$23,$AA$25:$AA$71,1)) -> 297553 | AT23: Revised Baseline | AV23: =IFERROR(INDEX((AV$25:AV$71),MATCH($AB$23,$AT$25:$AT$71,0)),0) -> 4598874 | AW23: =IFERROR(INDEX((AW$25:AW$71),MATCH($AB$23,$AT$25:$AT$71,0)),0) -> 2071587 | AX23: =IFERROR(INDEX((AX$25:AX$71),MATCH($AB$23,$AT$25:$AT$71,0)),0) -> 297553 | BA23: Current | DG23: The Presidency | DH23: Executive Support | DI23: 12 | DJ23: 4 | DK23: 4 | DL23: 0 | DM23: 4 | DN23: 1983 | DO23: 4 | DP23: 3152 | DQ23: 4 | DR23: 3532 | DS23: 4 | DT23: 3702 | DU23: 4 | DV23: 3938 | DW23: The Presidency|Executive Support | DX23: 001 | DY23: 002 | DZ23: 001002 | EC23: 113 | ED23: 57 | EE23: 1 | EF23: The Presidency | EG23: 1 | EH23: Administration | EI23: 3 | EJ23: Support Services to the Deputy President | EK23: Payments for capital assets | EL23: Machinery and equipment | EM23: Other machinery and equipment | EN23: 303 | EO23: 799 | EP23: 681 | EQ23: 681 | ER23: 681 | ES23: 696 | ET23: 733 | EU23: 775 | EW23: 0 | EX23: 0 | EY23: 733 | EZ23: 775 | FA23: 809 | FB23: The Presidency|Administration | FC23: 001 | FD23: 001 | FE23: 003 | FF23: 057 | FG23: 001001 | FH23: 001057 | FI23: 57 | FJ23: 001001003057 | FK23: 001001003 | FL23: 001001057 | FS23: 47 | FT23: 2 | FU23: Parliament | FV23: 2 | FW23: Administration | FX23: 8 | FY23: State of the Nation Address | GB23: Higher education institutions | GK23: Significant Spending | GL23: 0 | GM23: 1 | GN23: 21 | GQ23: Government Communication and Information System | GR23: 2 | GS23: Content Processing and Dissemination | GT23: 5 | GU23: Entity Oversight | GV23: Brand South Africa | GW23: Current | GX23: Departmental agencies (non-business entities) | GY23: NAT | GZ23: Government Communication and Information System|Content Processing and Dissemination|Entity Oversight|Brand South Africa|Current|Departmental agencies (non-business entities) | HA23: 0 | HB23: 0 | HC23: 0 | HD23: 174 | HE23: 1
AA24: Dept Index No. | AB24: Vote No. | AC24: Department | AD24: Category | AE24: ID1 | AF24: Contact Person | AG24: Tel | AH24: email | AI24: Contact Person | AJ24: Tel | AK24: email | AL24: ID2 | AM24: Contact Person | AN24: Tel | AO24: email | AP24: =MyYearP1 -> 2021/22 | AQ24: =MyYearP2 -> 2022/23 | AR24: =MyYearP3 -> 2023/24 | AT24: Vote No. | AU24: Dept | AV24: =+AP24 -> 2021/22 | AW24: =+AQ24 -> 2022/23 | AX24: =+AR24 -> 2023/24 | BA24: Capital | BC24: Payments for Financial Assets | DG24: The Presidency | DH24: Executive Support | DI24: 13 | DJ24: 1 | DK24: 2 | DL24: 1 | DM24: 2 | DN24: 1833 | DO24: 2 | DP24: 2008 | DQ24: 2 | DR24: 2250 | DS24: 2 | DT24: 2358 | DU24: 2 | DV24: 2508 | DW24: The Presidency|Executive Support | DX24: 001 | DY24: 002 | DZ24: 001002 | EC24: 113 | ED24: 63 | EE24: 1 | EF24: The Presidency | EG24: 1 | EH24: Administration | EI24: 3 | EJ24: Support Services to the Deputy President | EK24: Payments for financial assets | EL24: Payments for financial assets | EM24: Payments for financial assets | EN24: 14 | EO24: 40 | EP24: 0 | EQ24: 0 | ER24: 0 | ES24: 0 | ET24: 0 | EU24: 0 | EW24: 0 | EX24: 0 | EY24: 0 | EZ24: 0 | FA24: 0 | FB24: The Presidency|Administration | FC24: 001 | FD24: 001 | FE24: 003 | FF24: 063 | FG24: 001001 | FH24: 001063 | FI24: 63 | FJ24: 001001003063 | FK24: 001001003 | FL24: 001001063 | FS24: 50 | FT24: 2 | FU24: Parliament | FV24: 3 | FW24: Core Business | FX24: 1 | FY24: Office of the Deputy Secretary | GB24: Private enterprises | GK24: Prov_Cond_Grants | GL24: 1 | GM24: 0 | GN24: 22 | GQ24: Government Communication and Information System | GR24: 2 | GS24: Content Processing and Dissemination | GT24: 5 | GU24: Entity Oversight | GV24: Media Development and Diversity Agency | GW24: Current | GX24: Departmental agencies (non-business entities) | GY24: NAT | GZ24: Government Communication and Information System|Content Processing and Dissemination|Entity Oversight|Media Development and Diversity Agency|Current|Departmental agencies (non-business entities) | HA24: 0 | HB24: 0 | HC24: 0 | HD24: 194 | HE24: 1
Y25: 1 | AA25: 1 | AB25: 29 | AC25: Agriculture, Land Reform and Rural Development | AF25: Bothwell Deka | AG25: (012) 395 6784 | AH25: Bothwell.Deka@treasury.gov.za | AI25: Humbelani Ramuedzisi | AJ25: (012) 315 5585 | AK25: Humbelani.Ramuedzisi@treasury.gov.za | AP25: 16920399 | AQ25: 17170668 | AR25: 17387702 | AT25: 1 | AU25: The Presidency | AV25: 598363 | AW25: 607531 | AX25: 610485 | BC25: Forex losses | DG25: The Presidency | DH25: Executive Support | DI25: 14 | DJ25: 3 | DK25: 4 | DL25: 1 | DM25: 4 | DN25: 4800 | DO25: 4 | DP25: 5280 | DQ25: 4 | DR25: 5917 | DS25: 4 | DT25: 6201 | DU25: 4 | DV25: 6596 | DW25: The Presidency|Executive Support | DX25: 001 | DY25: 002 | DZ25: 001002 | EC25: 113 | ED25: 52 | EE25: 1 | EF25: The Presidency | EG25: 1 | EH25: Administration | EI25: 3 | EJ25: Support Services to the Deputy President | EK25: Transfers and subsidies | EL25: Households | EM25: Social benefits | EN25: 1095 | EO25: 68 | EP25: 0 | EQ25: 274 | ER25: 274 | ES25: 0 | ET25: 0 | EU25: 0 | EW25: 0 | EX25: 0 | EY25: 0 | EZ25: 0 | FA25: 0 | FB25: The Presidency|Administration | FC25: 001 | FD25: 001 | FE25: 003 | FF25: 052 | FG25: 001001 | FH25: 001052 | FI25: 52 | FJ25: 001001003052 | FK25: 001001003 | FL25: 001001052 | FS25: 45 | FT25: 2 | FU25: Parliament | FV25: 3 | FW25: Core Business | FX25: 2 | FY25: National Assembly | GB25: Social security funds | GK25: Grants Admin | GL25: 1 | GM25: 0 | GN25: 23 | GQ25: Government Communication and Information System | GR25: 3 | GS25: Intergovernmental Coordination and Stakeholder Management | GT25: 2 | GU25: Provincial and Local Liaison | GV25: Communication | GW25: Current | GX25: Departmental agencies (non-business entities) | GY25: NAT | GZ25: Government Communication and Information System|Intergovernmental Coordination and Stakeholder Management|Provincial and Local Liaison|Communication|Current|Departmental agencies (non-business entities) | HA25: 0 | HB25: 0 | HC25: 0 | HD25: 202 | HE25: 1
Y26: 2 | AA26: 2 | AB26: 16 | AC26: Basic Education | AF26: Spencer Janari | AG26: (012) 315 5436 | AH26: Spencer.Janari@treasury.gov.za | AI26: Pindi Masiso | AJ26: (012) 315 5722 | AK26: Pindi.Masiso@treasury.gov.za | AP26: 27018078 | AQ26: 28174672 | AR26: 28804038 | AT26: 2 | AU26: Parliament | AV26: 2615858 | AW26: 2651952 | AX26: 2657570 | BC26: Thefts and losses | DG26: The Presidency | DH26: Executive Support | DI26: 15 | DJ26: 1 | DK26: 1 | DL26: 0 | DM26: 1 | DN26: 1321 | DO26: 1 | DP26: 1384 | DQ26: 1 | DR26: 1551 | DS26: 1 | DT26: 1626 | DU26: 1 | DV26: 1730 | DW26: The Presidency|Executive Support | DX26: 001 | DY26: 002 | DZ26: 001002 | EC26: 113 | ED26: 1 | EE26: 1 | EF26: The Presidency | EG26: 2 | EH26: Executive Support | EI26: 1 | EJ26: Cabinet Services | EK26: Current payments | EL26: Compensation of employees | EM26: Compensation of employees | EN26: 13314 | EO26: 14283 | EP26: 27148 | EQ26: 17461 | ER26: 17461 | ES26: 19619 | ET26: 20892 | EU26: 21742 | EW26: 0 | EX26: 0 | EY26: 17202 | EZ26: 17630 | FA26: 17647 | FB26: The Presidency|Executive Support | FC26: 001 | FD26: 002 | FE26: 001 | FF26: 001 | FG26: 001002 | FH26: 001001 | FI26: 1 | FJ26: 001002001001 | FK26: 001002001 | FL26: 001002001 | FS26: 60 | FT26: 2 | FU26: Parliament | FV26: 3 | FW26: Core Business | FX26: 3 | FY26: National Council of Provinces | GB26: Biological assets | GK26: Budget Tracking | GL26: 1 | GM26: 0 | GN26: 24 | GQ26: Government Communication and Information System | GR26: 3 | GS26: Intergovernmental Coordination and Stakeholder Management | GT26: 3 | GU26: Media Engagement | GV26: Communication | GW26: Current | GX26: Departmental agencies (non-business entities) | GY26: NAT | GZ26: Government Communication and Information System|Intergovernmental Coordination and Stakeholder Management|Media Engagement|Communication|Current|Departmental agencies (non-business entities) | HA26: 0 | HB26: 0 | HC26: 0 | HD26: 190 | HE26: 1
Y27: 3 | AA27: 3 | AB27: 42 | AC27: Centre for Public Service Innovation | AF27: George Tembo | AG27: (012) 315 5514 | AH27: George.Tembo@treasury.gov.za | AI27: Uvadhya Singh | AJ27: (012) 315 9030 | AK27: Uvadhya.Singh@treasury.gov.za | AP27: 42576 | AQ27: 44145 | AR27: 45363 | AT27: 3 | AU27: Cooperative Governance | AV27: 100704732 | AW27: 106869953 | AX27: 107957408 | BC27: Extension of loans for policy purposes | DG27: The Presidency | DH27: Direct charge against the National Revenue Fund | DI27: Salary of the President | DJ27: 1 | DK27: 1 | DL27: 0 | DM27: 1 | DN27: 2622 | DO27: 1 | DP27: 3109 | DQ27: 1 | DR27: 3274 | DS27: 1 | DT27: 3438 | DU27: 1 | DV27: 3637 | DW27: The Presidency|Direct charge against the National Revenue Fund | DX27: 001 | DY27: 016 | DZ27: 001016 | EC27: 113 | ED27: 2 | EE27: 1 | EF27: The Presidency | EG27: 2 | EH27: Executive Support | EI27: 1 | EJ27: Cabinet Services | EK27: Current payments | EL27: Goods and services | EM27: Goods and services | EN27: 26376 | EO27: 5525 | EP27: 38921 | EQ27: 30921 | ER27: 30921 | ES27: 38667 | ET27: 35609 | EU27: 36938 | EW27: 0 | EX27: 0 | EY27: 34199 | EZ27: 35103 | FA27: 35236 | FB27: The Presidency|Executive Support | FC27: 001 | FD27: 002 | FE27: 001 | FF27: 002 | FG27: 001002 | FH27: 001002 | FI27: 2 | FJ27: 001002001002 | FK27: 001002001 | FL27: 001002002 | FS27: 59 | FT27: 2 | FU27: Parliament | FV27: 3 | FW27: Core Business | FX27: 4 | FY27: Core Business Support | GB27: Specialised military assets | GK27: NMOG | GL27: 1 | GM27: 1 | GN27: 25 | GQ27: Home Affairs | GR27: 1 | GS27: Administration | GT27: 1 | GU27: Ministry | GV27: Employee social benefits | GW27: Current | GX27: Social benefits | GY27: NAT | GZ27: Home Affairs|Administration|Ministry|Employee social benefits|Current|Social benefits | HA27: 0 | HB27: 0 | HC27: 0 | HD27: 85 | HE27: 1
Y28: 4 | AA28: 4 | AB28: 21 | AC28: Civilian Secretariat for the Police Service | AF28: Nompumelelo Radebe | AG28: (012) 315 5957 | AH28: Nompumelelo.Radebe@treasury.gov.za | AI28: Velisubuhle Buti | AJ28: (012) 395 6709 | AK28: Velisubuhle.Buti@treasury.gov.za | AP28: 148961 | AQ28: 150228 | AR28: 150489 | AT28: 4 | AU28: Government Communication and Information System | AV28: 699684 | AW28: 709968 | AX28: 711862 | BC28: Purchase of equity | CI28: Array Range to print | DG28: The Presidency | DH28: Direct charge against the National Revenue Fund | DI28: Salary of the Deputy President | DJ28: 1 | DK28: 1 | DL28: 0 | DM28: 1 | DN28: 2208 | DO28: 1 | DP28: 2617 | DQ28: 1 | DR28: 2761 | DS28: 1 | DT28: 2935 | DU28: 1 | DV28: 3105 | DW28: The Presidency|Direct charge against the National Revenue Fund | DX28: 001 | DY28: 016 | DZ28: 001016 | EC28: 114 | ED28: 57 | EE28: 1 | EF28: The Presidency | EG28: 2 | EH28: Executive Support | EI28: 1 | EJ28: Cabinet Services | EK28: Payments for capital assets | EL28: Machinery and equipment | EM28: Other machinery and equipment | EN28: 103 | EO28: 244 | EP28: 1317 | EQ28: 1317 | ER28: 1317 | ES28: 1247 | ET28: 1316 | EU28: 1392 | EW28: 0 | EX28: 0 | EY28: 1316 | EZ28: 1392 | FA28: 1453 | FB28: The Presidency|Executive Support | FC28: 001 | FD28: 002 | FE28: 001 | FF28: 057 | FG28: 001002 | FH28: 001057 | FI28: 57 | FJ28: 001002001057 | FK28: 001002001 | FL28: 001002057 | FT28: 2 | FU28: Parliament | FV28: 3 | FW28: Core Business | FX28: 5 | FY28: Knowledge and Information Services | GK28: Function shifts | GL28: 1 | GM28: 0 | GN28: 26 | GQ28: Home Affairs | GR28: 1 | GS28: Administration | GT28: 2 | GU28: Management Support Services | GV28: Communication | GW28: Current | GX28: Departmental agencies (non-business entities) | GY28: NAT | GZ28: Home Affairs|Administration|Management Support Services|Communication|Current|Departmental agencies (non-business entities) | HA28: 0 | HB28: 0 | HC28: 0 | HD28: 123 | HE28: 1
Y29: 5 | AA29: 5 | AB29: 30 | AC29: Communications and Digital Technologies | AF29: Rezah Atcha | AG29: (012) 315 5287 | AH29: Rezah.Atcha@treasury.gov.za | AI29: Keitumetse Motshegwe | AJ29: (012) 395 6750 | AK29: keitumetse.motshegwe@treasury.gov.za | AP29: 3692881 | AQ29: 2417182 | AR29: 2426409 | AT29: 5 | AU29: Home Affairs | AV29: 8690450 | AW29: 8829108 | AX29: 8875062 | BC29: Debt take overs | CH29: 1 | CI29: F26:J143,L26:L143,R26:R143,AB26:AB143,AK26:AK143,AT26:AT143 | DG29: Parliament | DH29: Direct charge against the National Revenue Fund | DI29: Members of Parliament | DJ29: 0 | DK29: 0 | DL29: 0 | DM29: 0 | DN29: 479803 | DO29: 0 | DP29: 503132 | DQ29: 0 | DR29: 529798 | DS29: 0 | DT29: 556288 | DU29: 0 | DV29: 588553 | DW29: Parliament|Direct charge against the National Revenue Fund | DX29: 002 | DY29: 016 | DZ29: 002016 | EC29: 114 | ED29: 63 | EE29: 1 | EF29: The Presidency | EG29: 2 | EH29: Executive Support | EI29: 1 | EJ29: Cabinet Services | EK29: Payments for financial assets | EL29: Payments for financial assets | EM29: Payments for financial assets | EN29: 282 | EO29: 4 | EP29: 0 | EQ29: 0 | ER29: 0 | ES29: 0 | ET29: 0 | EU29: 0 | EW29: 0 | EX29: 0 | EY29: 0 | EZ29: 0 | FA29: 0 | FB29: The Presidency|Executive Support | FC29: 001 | FD29: 002 | FE29: 001 | FF29: 063 | FG29: 001002 | FH29: 001063 | FI29: 63 | FJ29: 001002001063 | FK29: 001002001 | FL29: 001002063 | FT29: 2 | FU29: Parliament | FV29: 3 | FW29: Core Business | FX29: 6 | FY29: International Relations and Protocol | GK29: Indirect Grants | GL29: 1 | GM29: 0 | GN29: 27 | GQ29: Home Affairs | GR29: 1 | GS29: Administration | GT29: 2 | GU29: Management Support Services | GV29: Employee social benefits | GW29: Current | GX29: Social benefits | GY29: NAT | GZ29: Home Affairs|Administration|Management Support Services|Employee social benefits|Current|Social benefits | HA29: 0 | HB29: 0 | HC29: 0 | HD29: 104 | HE29: 1
Y30: 6 | AA30: 6 | AB30: 3 | AC30: Cooperative Governance | AF30: Misaveni Ngobeni | AG30: (012) 315 5305 | AH30: misaveni.ngobeni@treasury.gov.za | AI30: Millicent Mulaudzi | AJ30: (012) 395 6576 | AK30: Millicent.Mulaudzi@treasury.gov.za | AP30: 100704732 | AQ30: 106869953 | AR30: 107957408 | AT30: 6 | AU30: International Relations and Cooperation | AV30: 6452372 | AW30: 6568006 | AX30: 6611037 | BC30: Losses on GFECRA | CH30: 2 | DG30: Parliament | DH30: Strategic Leadership and Governance | DI30: 8 | DJ30: 0 | DK30: 0 | DL30: 0 | DM30: 2 | DN30: 324 | DO30: 1 | DP30: 157 | DQ30: 1 | DR30: 166 | DS30: 1 | DT30: 174 | DU30: 1 | DV30: 183 | DW30: Parliament|Strategic Leadership and Governance | DX30: 002 | DY30: 001 | DZ30: 002001 | EC30: 114 | ED30: 52 | EE30: 1 | EF30: The Presidency | EG30: 2 | EH30: Executive Support | EI30: 1 | EJ30: Cabinet Services | EK30: Transfers and subsidies | EL30: Households | EM30: Social benefits | EN30: 1326 | EO30: 0 | EP30: 0 | EQ30: 50 | ER30: 50 | ES30: 0 | ET30: 0 | EU30: 0 | EW30: 0 | EX30: 0 | EY30: 0 | EZ30: 0 | FA30: 0 | FB30: The Presidency|Executive Support | FC30: 001 | FD30: 002 | FE30: 001 | FF30: 052 | FG30: 001002 | FH30: 001052 | FI30: 52 | FJ30: 001002001052 | FK30: 001002001 | FL30: 001002052 | FT30: 2 | FU30: Parliament | FV30: 4 | FW30: Support Services | FX30: 1 | FY30: Office of the Deputy Secretary | GK30: Performance Indicators | GL30: 1 | GM30: 0 | GN30: 28 | GQ30: Home Affairs | GR30: 1 | GS30: Administration | GT30: 2 | GU30: Management Support Services | GV30: Vehicle licences | GW30: Current | GX30: Municipal bank accounts | GY30: NAT | GZ30: Home Affairs|Administration|Management Support Services|Vehicle licences|Current|Municipal bank accounts | HA30: 0 | HB30: 0 | HC30: 0 | HD30: 104 | HE30: 1
Y31: 7 | AA31: 7 | AB31: 22 | AC31: Correctional Services | AF31: Elvis Ramafamba | AG31: (012) 315 5204 | AH31: elvis.ramafamba@treasury.gov.za | AI31: Keabetswe Matlwa | AJ31: (012) 395 6678 | AK31: Keabetswe.Matlwa@treasury.gov.za | AP31: 25218129 | AQ31: 25486638 | AR31: 25593909 | AT31: 7 | AU31: National School of Government | AV31: 210189 | AW31: 213940 | AX31: 214693 | BC31: Premiums on loan transactions | CH31: 3 | DG31: Parliament | DH31: Strategic Leadership and Governance | DI31: 9 | DJ31: 1 | DK31: 1 | DL31: 0 | DM31: 2 | DN31: 356 | DO31: 1 | DP31: 159 | DQ31: 1 | DR31: 167 | DS31: 1 | DT31: 175 | DU31: 1 | DV31: 185 | DW31: Parliament|Strategic Leadership and Governance | DX31: 002 | DY31: 001 | DZ31: 002001 | EC31: 121 | ED31: 1 | EE31: 1 | EF31: The Presidency | EG31: 3 | EH31: Policy and Research Services | EI31: 1 | EJ31: Economy, Trade and Investment | EK31: Current payments | EL31: Compensation of employees | EM31: Compensation of employees | EN31: 0 | EO31: 0 | EP31: 0 | EQ31: 8187 | ER31: 8187 | ES31: 8768 | ET31: 9729 | EU31: 10216 | EW31: 0 | EX31: 0 | EY31: 7536 | EZ31: 7537 | FA31: 7536 | FB31: The Presidency|Policy and Research Services | FC31: 001 | FD31: 003 | FE31: 001 | FF31: 001 | FG31: 001003 | FH31: 001001 | FI31: 1 | FJ31: 001003001001 | FK31: 001003001 | FL31: 001003001 | FT31: 2 | FU31: Parliament | FV31: 4 | FW31: Support Services | FX31: 2 | FY31: Parliamentary Communication Services | GK31: Reprioritisation | GL31: 0 | GM31: 1 | GN31: 29 | GQ31: Home Affairs | GR31: 1 | GS31: Administration | GT31: 3 | GU31: Corporate Services | GV31: Employee social benefits | GW31: Current | GX31: Social benefits | GY31: NAT | GZ31: Home Affairs|Administration|Corporate Services|Employee social benefits|Current|Social benefits | HA31: 0 | HB31: 0 | HC31: 0 | HD31: 95 | HE31: 1
Y32: 8 | AA32: 8 | AB32: 23 | AC32: Defence | AF32: Mashudu Bidzha | AG32: (012) 315 5344 | AH32: Mashudu.Bidzha@treasury.gov.za | AI32: Lesiba Ledwaba | AJ32: (012) 315 6660 | AK32: Lesiba.Ledwaba@treasury.gov.za | AP32: 46268680 | AQ32: 46776964 | AR32: 47159805 | AT32: 8 | AU32: National Treasury | AV32: 836211810 | AW32: 887743054 | AX32: 924524011 | BC32: Other | CH32: 4 | DG32: Parliament | DH32: Strategic Leadership and Governance | DI32: 10 | DJ32: 6 | DK32: 6 | DL32: 0 | DM32: 25 | DN32: 6923 | DO32: 18 | DP32: 3196 | DQ32: 18 | DR32: 3375 | DS32: 18 | DT32: 3543 | DU32: 18 | DV32: 3745 | DW32: Parliament|Strategic Leadership and Governance | DX32: 002 | DY32: 001 | DZ32: 002001 | EC32: 121 | ED32: 2 | EE32: 1 | EF32: The Presidency | EG32: 3 | EH32: Policy and Research Services | EI32: 1 | EJ32: Economy, Trade and Investment | EK32: Current payments | EL32: Goods and services | EM32: Goods and services | EN32: 0 | EO32: 0 | EP32: 0 | EQ32: 0 | ER32: 0 | ES32: 7621 | ET32: 3954 | EU32: 4103 | EW32: 0 | EX32: 0 | EY32: 3799 | EZ32: 3900 | FA32: 3912 | FB32: The Presidency|Policy and Research Services | FC32: 001 | FD32: 003 | FE32: 001 | FF32: 002 | FG32: 001003 | FH32: 001002 | FI32: 2 | FJ32: 001003001002 | FK32: 001003001 | FL32: 001003002 | FT32: 2 | FU32: Parliament | FV32: 4 | FW32: Support Services | FX32: 3 | FY32: Human Resources Management | GK32: Personnel | GL32: 1 | GM32: 0 | GN32: 30 | GQ32: Home Affairs | GR32: 1 | GS32: Administration | GT32: 3 | GU32: Corporate Services | GV32: Vehicle licences | GW32: Current | GX32: Municipal bank accounts | GY32: NAT | GZ32: Home Affairs|Administration|Corporate Services|Vehicle licences|Current|Municipal bank accounts | HA32: 0 | HB32: 0 | HC32: 0 | HD32: 95 | HE32: 1
Y33: 9 | AA33: 9 | AB33: 31 | AC33: Employment and Labour | AF33: Judy Naidoo | AG33: (012) 315 5269 | AH33: Judy.Naidoo@treasury.gov.za | AP33: 3505713 | AQ33: 3559303 | AR33: 3571234 | AT33: 9 | AU33: Planning, Monitoring and Evaluation | AV33: 453950 | AW33: 460327 | AX33: 461317 | CH33: 5 | DG33: Parliament | DH33: Strategic Leadership and Governance | DI33: 11 | DJ33: 23 | DK33: 23 | DL33: 0 | DM33: 17 | DN33: 7487 | DO33: 12 | DP33: 3590 | DQ33: 12 | DR33: 3791 | DS33: 12 | DT33: 3981 | DU33: 12 | DV33: 4208 | DW33: Parliament|Strategic Leadership and Governance | DX33: 002 | DY33: 001 | DZ33: 002001 | EC33: 121 | ED33: 57 | EE33: 1 | EF33: The Presidency | EG33: 3 | EH33: Policy and Research Services | EI33: 1 | EJ33: Economy, Trade and Investment | EK33: Payments for capital assets | EL33: Machinery and equipment | EM33: Other machinery and equipment | EN33: 0 | EO33: 0 | EP33: 0 | EQ33: 0 | ER33: 0 | ES33: 111 | ET33: 117 | EU33: 124 | EW33: 0 | EX33: 0 | EY33: 117 | EZ33: 124 | FA33: 129 | FB33: The Presidency|Policy and Research Services | FC33: 001 | FD33: 003 | FE33: 001 | FF33: 057 | FG33: 001003 | FH33: 001057 | FI33: 57 | FJ33: 001003001057 | FK33: 001003001 | FL33: 001003057 | FT33: 2 | FU33: Parliament | FV33: 4 | FW33: Support Services | FX33: 4 | FY33: Information Communication and Technology | GK33: Receipts | GL33: 1 | GM33: 0 | GN33: 31 | GQ33: Home Affairs | GR33: 1 | GS33: Administration | GT33: 4 | GU33: Transversal Information Technology Management | GV33: Employee social benefits | GW33: Current | GX33: Social benefits | GY33: NAT | GZ33: Home Affairs|Administration|Transversal Information Technology Management|Employee social benefits|Current|Social benefits | HA33: 0 | HB33: 0 | HC33: 0 | HD33: 122 | HE33: 1
Y34: 10 | AA34: 10 | AB34: 32 | AC34: Environment, Forestry and Fisheries | AF34: Gcobisa Magazi | AG34: (012) 315 5320 | AH34: Gcobisa.Magazi@treasury.gov.za | AI34: Ashley Ramasimu | AJ34: (012) 315 5166 | AK34: Ashley.Ramasimu@treasury.gov.za | AP34: 8716848 | AQ34: 8883025 | AR34: 8947150 | AT34: 10 | AU34: Public Enterprises | AV34: 4598874 | AW34: 2071587 | AX34: 297553 | AZ34: Type of request | BA34: Compensation of employees | DG34: Parliament | DH34: Strategic Leadership and Governance | DI34: 12 | DJ34: 23 | DK34: 23 | DL34: 0 | DM34: 26 | DN34: 12332 | DO34: 20 | DP34: 8112 | DQ34: 20 | DR34: 8563 | DS34: 20 | DT34: 8991 | DU34: 20 | DV34: 9503 | DW34: Parliament|Strategic Leadership and Governance | DX34: 002 | DY34: 001 | DZ34: 002001 | EC34: 121 | ED34: 1 | EE34: 1 | EF34: The Presidency | EG34: 3 | EH34: Policy and Research Services | EI34: 7 | EJ34: Socio Economic Impact Assessment System | EK34: Current payments | EL34: Compensation of employees | EM34: Compensation of employees | EN34: 3354 | EO34: 5027 | EP34: 6524 | EQ34: 6524 | ER34: 6524 | ES34: 7029 | ET34: 7476 | EU34: 7957 | EW34: 0 | EX34: 0 | EY34: 6790 | EZ34: 7088 | FA34: 7088 | FB34: The Presidency|Policy and Research Services | FC34: 001 | FD34: 003 | FE34: 007 | FF34: 001 | FG34: 001003 | FH34: 001001 | FI34: 1 | FJ34: 001003007001 | FK34: 001003007 | FL34: 001003001 | FT34: 2 | FU34: Parliament | FV34: 4 | FW34: Support Services | FX34: 5 | FY34: Institutional Support Services | GK34: Analysis | GL34: 1 | GM34: 0 | GN34: 32 | GQ34: Home Affairs | GR34: 2 | GS34: Citizen Affairs | GT34: 5 | GU34: Service Delivery to Provinces | GV34: Employee social benefits | GW34: Current | GX34: Social benefits | GY34: NAT | GZ34: Home Affairs|Citizen Affairs|Service Delivery to Provinces|Employee social benefits|Current|Social benefits | HA34: 0 | HB34: 0 | HC34: 0 | HD34: 107 | HE34: 1
Y35: 11 | AA35: 11 | AB35: 4 | AC35: Government Communication and Information System | AF35: Mokgatla Tema | AG35: (012) 315 5948 | AH35: Mokgatla.Tema@treasury.gov.za | AI35: Viwe Sobudula | AJ35: (0)12 315 5015 | AK35: Viwe.Sobudula@treasury.gov.za | AP35: 699684 | AQ35: 709968 | AR35: 711862 | AT35: 11 | AU35: Public Service and Administration | AV35: 526192 | AW35: 535163 | AX35: 543463 | AZ35: New project | BA35: Goods and services | DG35: Parliament | DH35: Strategic Leadership and Governance | DI35: 13 | DJ35: 20 | DK35: 20 | DL35: 0 | DM35: 9 | DN35: 6882 | DO35: 21 | DP35: 11577 | DQ35: 21 | DR35: 12226 | DS35: 21 | DT35: 12837 | DU35: 21 | DV35: 13569 | DW35: Parliament|Strategic Leadership and Governance | DX35: 002 | DY35: 001 | DZ35: 002001 | EC35: 121 | ED35: 2 | EE35: 1 | EF35: The Presidency | EG35: 3 | EH35: Policy and Research Services | EI35: 7 | EJ35: Socio Economic Impact Assessment System | EK35: Current payments | EL35: Goods and services | EM35: Goods and services | EN35: 222 | EO35: 821 | EP35: 1180 | EQ35: 1440 | ER35: 1440 | ES35: 1144 | ET35: 1173 | EU35: 1241 | EW35: 0 | EX35: 0 | EY35: 1126 | EZ35: 1180 | FA35: 1186 | FB35: The Presidency|Policy and Research Services | FC35: 001 | FD35: 003 | FE35: 007 | FF35: 002 | FG35: 001003 | FH35: 001002 | FI35: 2 | FJ35: 001003007002 | FK35: 001003007 | FL35: 001003002 | FT35: 2 | FU35: Parliament | FV35: 4 | FW35: Support Services | FX35: 6 | FY35: Member's Support Services | GK35: InfraS Summary | GL35: 1 | GM35: 0 | GN35: 33 | GQ35: Home Affairs | GR35: 2 | GS35: Citizen Affairs | GT35: 5 | GU35: Service Delivery to Provinces | GV35: Vehicle licences | GW35: Current | GX35: Municipal bank accounts | GY35: NAT | GZ35: Home Affairs|Citizen Affairs|Service Delivery to Provinces|Vehicle licences|Current|Municipal bank accounts | HA35: 0 | HB35: 0 | HC35: 0 | HD35: 107 | HE35: 1
Y36: 12 | AA36: 12 | AB36: 18 | AC36: Health | AF36: Refiloe Thokoa | AG36: (012) 395 6559 | AH36: Refiloe.thokoa@treasury.gov.za | AI36: Jonatan Daven | AJ36: (012) 315 6711 | AK36: Jonatan.Daven@treasury.gov.za | AP36: 56862822 | AQ36: 58684553 | AR36: 59179800 | AT36: 12 | AU36: Public Service Commission | AV36: 282405 | AW36: 284580 | AX36: 284920 | AZ36: Urgent cost pressure | BA36: Interest and rent on land | CI36: Array Range to lock (Cond Grants sheet) | DG36: Parliament | DH36: Strategic Leadership and Governance | DI36: 14 | DJ36: 34 | DK36: 34 | DL36: 0 | DM36: 8 | DN36: 6610 | DO36: 9 | DP36: 5375 | DQ36: 9 | DR36: 5676 | DS36: 9 | DT36: 5959 | DU36: 9 | DV36: 6299 | DW36: Parliament|Strategic Leadership and Governance | DX36: 002 | DY36: 001 | DZ36: 002001 | EC36: 121 | ED36: 57 | EE36: 1 | EF36: The Presidency | EG36: 3 | EH36: Policy and Research Services | EI36: 7 | EJ36: Socio Economic Impact Assessment System | EK36: Payments for capital assets | EL36: Machinery and equipment | EM36: Other machinery and equipment | EN36: 60 | EO36: 25 | EP36: 50 | EQ36: 8 | ER36: 8 | ES36: 52 | ET36: 55 | EU36: 57 | EW36: 0 | EX36: 0 | EY36: 55 | EZ36: 57 | FA36: 60 | FB36: The Presidency|Policy and Research Services | FC36: 001 | FD36: 003 | FE36: 007 | FF36: 057 | FG36: 001003 | FH36: 001057 | FI36: 57 | FJ36: 001003007057 | FK36: 001003007 | FL36: 001003057 | FT36: 2 | FU36: Parliament | FV36: 5 | FW36: Associated Services | FX36: 1 | FY36: Members Support Services | GK36: InfraS 1.1 | GL36: 1 | GM36: 0 | GN36: 34 | GQ36: Home Affairs | GR36: 2 | GS36: Citizen Affairs | GT36: 8 | GU36: Electoral Commission | GV36: Electoral Commission | GW36: Current | GX36: Departmental agencies (non-business entities) | GY36: NAT | GZ36: Home Affairs|Citizen Affairs|Electoral Commission|Electoral Commission|Current|Departmental agencies (non-business entities) | HA36: 0 | HB36: 0 | HC36: 0 | HD36: 124 | HE36: 1
Y37: 13 | AA37: 13 | AB37: 17 | AC37: Higher Education and Training | AF37: Spencer Janari | AG37: (012) 315 5436 | AH37: Spencer.Janari@treasury.gov.za | AI37: Barileng Sape | AJ37: (012) 406 9069 | AK37: barileng.sape@treasury.gov.za | AP37: 115596868 | AQ37: 120174656 | AR37: 122265391 | AT37: 13 | AU37: Public Works and Infrastructure | AV37: 8343204 | AW37: 8546259 | AX37: 8578946 | AZ37: Expansion of existing project | BA37: Provinces and municipalities | CH37: 1 | CI37: V57:W66,AE57:AF66,AN57:AO66,V79:W88,AE79:AF88,AN79:AO88,V101:W110,AE101:AF110,AN101:AO110 | DG37: Parliament | DH37: Strategic Leadership and Governance | DI37: 15 | DJ37: 10 | DK37: 10 | DL37: 0 | DM37: 9 | DN37: 9208 | DO37: 16 | DP37: 10338 | DQ37: 16 | DR37: 10916 | DS37: 16 | DT37: 11461 | DU37: 16 | DV37: 12114 | DW37: Parliament|Strategic Leadership and Governance | DX37: 002 | DY37: 001 | DZ37: 002001 | EC37: 1161 | ED37: 52 | EE37: 1 | EF37: The Presidency | EG37: 3 | EH37: Policy and Research Services | EI37: 7 | EJ37: Socio Economic Impact Assessment System | EK37: Transfers and subsidies | EL37: Households | EM37: Social benefits | EN37: 4 | EO37: 0 | EP37: 0 | EQ37: 13 | ER37: 13 | ES37: 0 | ET37: 0 | EU37: 0 | EW37: 0 | EX37: 0 | EY37: 0 | EZ37: 0 | FA37: 0 | FB37: The Presidency|Policy and Research Services | FC37: 001 | FD37: 003 | FE37: 007 | FF37: 052 | FG37: 001003 | FH37: 001052 | FI37: 52 | FJ37: 001003007052 | FK37: 001003007 | FL37: 001003052 | FT37: 2 | FU37: Parliament | FV37: 5 | FW37: Associated Services | FX37: 2 | FY37: Political Party Support | GK37: InfraS 1.2 | GL37: 1 | GM37: 0 | GN37: 35 | GQ37: Home Affairs | GR37: 2 | GS37: Citizen Affairs | GT37: 9 | GU37: Represented Political Parties’ Fund | GV37: Represented Political Parties’ Fund | GW37: Current | GX37: Departmental agencies (non-business entities) | GY37: NAT | GZ37: Home Affairs|Citizen Affairs|Represented Political Parties’ Fund|Represented Political Parties’ Fund|Current|Departmental agencies (non-business entities) | HA37: 0 | HB37: 0 | HC37: 0 | HD37: 154 | HE37: 1
Y38: 14 | AA38: 14 | AB38: 5 | AC38: Home Affairs | AF38: Timothy Murwa | AG38: (012) 315 5002 | AH38: Timothy.Murwa@treasury.gov.za | AI38: Yamkela Ngewu | AJ38: (012) 406 9078 | AK38: Yamkela.Ngewu@treasury.gov.za | AP38: 8690450 | AQ38: 8829108 | AR38: 8875062 | AT38: 14 | AU38: Statistics South Africa | AV38: 4474590 | AW38: 2509155 | AX38: 2533543 | BA38: Departmental agencies and accounts | BC38: Transfer Type | CH38: 2 | CI38: V123:W132,AE123:AF132,AN123:AO132,V145:W154,AE145:AF154,AN145:AO154,V167:W176,AE167:AF176,AN167:AO176 | DG38: Parliament | DH38: Strategic Leadership and Governance | DI38: 16 | DJ38: 27 | DK38: 27 | DL38: 0 | DM38: 1 | DN38: 1635 | DO38: 1 | DP38: 1611 | DQ38: 1 | DR38: 1730 | DS38: 1 | DT38: 1819 | DU38: 1 | DV38: 1969 | DW38: Parliament|Strategic Leadership and Governance | DX38: 002 | DY38: 001 | DZ38: 002001 | EC38: 1162 | ED38: 1 | EE38: 1 | EF38: The Presidency | EG38: 16 | EH38: Direct charge against the National Revenue Fund | EI38: 1 | EJ38: Salary of the president | EK38: Current payments | EL38: Compensation of employees | EM38: Compensation of employees | EN38: 3106 | EO38: 2887 | EP38: 3913 | EQ38: 3913 | ER38: 3913 | ES38: 4206 | ET38: 4479 | EU38: 4645 | EW38: 0 | EX38: 0 | EY38: 4068 | EZ38: 4155 | FA38: 4242 | FB38: The Presidency|Direct charge against the National Revenue Fund | FC38: 001 | FD38: 016 | FE38: 001 | FF38: 001 | FG38: 001016 | FH38: 001001 | FI38: 1 | FJ38: 001016001001 | FK38: 001016001 | FL38: 001016001 | FT38: 2 | FU38: Parliament | FV38: 5 | FW38: Associated Services | FX38: 3 | FY38: Constituency Support | GK38: ODA Summary | GL38: 1 | GM38: 0 | GN38: 36 | GQ38: Home Affairs | GR38: 3 | GS38: Immigration Affairs | GT38: 1 | GU38: Immigration Affairs Management | GV38: Employee social benefits | GW38: Current | GX38: Social benefits | GY38: NAT | GZ38: Home Affairs|Immigration Affairs|Immigration Affairs Management|Employee social benefits|Current|Social benefits | HA38: 0 | HB38: 0 | HC38: 0 | HD38: 112 | HE38: 1
Y39: 15 | AA39: 15 | AB39: 33 | AC39: Human Settlements | AF39: Lindiwe Ngcongwane | AG39: (012) 315 5357 | AH39: Lindiwe.Ngcongwane@treasury.gov.za | AP39: 31657958 | AQ39: 32619284 | AR39: 33982600 | AT39: 15 | AU39: Traditional Affairs | AV39: 171392 | AW39: 175733 | AX39: 179962 | BA39: Higher education institutions | BC39: Indirect Grant | CH39: 3 | CI39: V189:W198,AE189:AF198,AN189:AO198,V211:W220,AE211:AF220,AN211:AO220,V233:W242,AE233:AF242,AN233:AO242 | DG39: Parliament | DH39: Strategic Leadership and Governance | DI39: Other please specify | DJ39: 1 | DK39: 1 | DL39: 0 | DM39: 0 | DN39: 0 | DO39: 0 | DP39: 0 | DQ39: 0 | DR39: 0 | DS39: 0 | DT39: 0 | DU39: 0 | DV39: 0 | DW39: Parliament|Strategic Leadership and Governance | DX39: 002 | DY39: 001 | DZ39: 002001 | EC39: 211 | ED39: 1 | EE39: 1 | EF39: The Presidency | EG39: 16 | EH39: Direct charge against the National Revenue Fund | EI39: 2 | EJ39: Salary of the deputy president | EK39: Current payments | EL39: Compensation of employees | EM39: Compensation of employees | EN39: 2606 | EO39: 2794 | EP39: 3341 | EQ39: 3341 | ER39: 3341 | ES39: 3592 | ET39: 3825 | EU39: 3968 | EW39: 0 | EX39: 0 | EY39: 3474 | EZ39: 3549 | FA39: 3622 | FB39: The Presidency|Direct charge against the National Revenue Fund | FC39: 001 | FD39: 016 | FE39: 002 | FF39: 001 | FG39: 001016 | FH39: 001001 | FI39: 1 | FJ39: 001016002001 | FK39: 001016002 | FL39: 001016001 | FT39: 2 | FU39: Parliament | FV39: 5 | FW39: Associated Services | FX39: 4 | FY39: Party Leadership Support | GK39: Deviations | GL39: 1 | GM39: 0 | GN39: 37 | GQ39: Home Affairs | GR39: 3 | GS39: Immigration Affairs | GT39: 2 | GU39: Admission Services | GV39: Communication | GW39: Current | GX39: Departmental agencies (non-business entities) | GY39: NAT | GZ39: Home Affairs|Immigration Affairs|Admission Services|Communication|Current|Departmental agencies (non-business entities) | HA39: 0 | HB39: 0 | HC39: 0 | HD39: 119 | HE39: 1
Y40: 16 | AA40: 16 | AB40: 24 | AC40: Independent Police Investigative Directorate | AF40: Nompumelelo Radebe | AG40: (012) 315 5957 | AH40: Nompumelelo.Radebe@treasury.gov.za | AI40: Velisubuhle Buti | AJ40: (012) 395 6709 | AK40: Velisubuhle.Buti@treasury.gov.za | AP40: 348349 | AQ40: 351801 | AR40: 357991 | AT40: 16 | AU40: Basic Education | AV40: 27018078 | AW40: 28174672 | AX40: 28804038 | BA40: Foreign governments and international organisations | BC40: Budgetary allocation to entities | CH40: 4 | CI40: V255:W264,AE255:AF264,AN255:AO264,V277:W286,AE277:AF286,AN277:AO286,V299:W308,AE299:AF308,AN299:AO308 | DG40: Parliament | DH40: Administration | DI40: 8 | DJ40: 2 | DK40: 2 | DL40: 0 | DM40: 3 | DN40: 857 | DO40: 1 | DP40: 246 | DQ40: 1 | DR40: 307 | DS40: 1 | DT40: 333 | DU40: 1 | DV40: 361 | DW40: Parliament|Administration | DX40: 002 | DY40: 002 | DZ40: 002002 | EC40: 211 | ED40: 1 | EE40: 2 | EF40: Parliament | EG40: 1 | EH40: Strategic Leadership and Governance | EI40: 1 | EJ40: Office of the Speaker | EK40: Current payments | EL40: Compensation of employees | EM40: Compensation of employees | EN40: 27933 | EO40: 40292 | EP40: 29943 | EQ40: 29943 | ER40: 29943 | ES40: 33094 | ET40: 36072 | EU40: 37420 | EW40: 0 | EX40: 0 | EY40: 30781 | EZ40: 30781 | FA40: 30781 | FB40: Parliament|Strategic Leadership and Governance | FC40: 002 | FD40: 001 | FE40: 001 | FF40: 001 | FG40: 002001 | FH40: 002001 | FI40: 1 | FJ40: 002001001001 | FK40: 002001001 | FL40: 002001001 | FT40: 2 | FU40: Parliament | FV40: 5 | FW40: Associated Services | FX40: 5 | FY40: National Assembly Members’ Facilities | GK40: Dept specific info | GL40: 1 | GM40: 0 | GN40: 38 | GQ40: Home Affairs | GR40: 3 | GS40: Immigration Affairs | GT40: 4 | GU40: Asylum Seekers | GV40: Communication | GW40: Current | GX40: Departmental agencies (non-business entities) | GY40: NAT | GZ40: Home Affairs|Immigration Affairs|Asylum Seekers|Communication|Current|Departmental agencies (non-business entities) | HA40: 0 | HB40: 0 | HC40: 0 | HD40: 115 | HE40: 1
Y41: 17 | AA41: 17 | AB41: 6 | AC41: International Relations and Cooperation | AF41: George Tembo | AG41: (012) 315 5514 | AH41: George.Tembo@treasury.gov.za | AI41: Mercy Mhlophe | AJ41: (012) 315 5598 | AK41: mercy.mhlope@treasury.gov.za | AP41: 6452372 | AQ41: 6568006 | AR41: 6611037 | AT41: 17 | AU41: Higher Education and Training | AV41: 115596868 | AW41: 120174656 | AX41: 122265391 | BA41: Public corporations and private enterprises | BC41: Other | CH41: 5 | CI41: V321:W330,AE321:AF330,AN321:AO330,V343:W352,AE343:AF352,AN343:AO352,V365:W374,AE365:AF374,AN365:AO374 | DG41: Parliament | DH41: Administration | DI41: 9 | DJ41: 23 | DK41: 23 | DL41: 0 | DM41: 14 | DN41: 4356 | DO41: 17 | DP41: 5134 | DQ41: 17 | DR41: 6822 | DS41: 17 | DT41: 7415 | DU41: 17 | DV41: 7045 | DW41: Parliament|Administration | DX41: 002 | DY41: 002 | DZ41: 002002 | EC41: 211 | ED41: 2 | EE41: 2 | EF41: Parliament | EG41: 1 | EH41: Strategic Leadership and Governance | EI41: 1 | EJ41: Office of the Speaker | EK41: Current payments | EL41: Goods and services | EM41: Goods and services | EN41: 11177 | EO41: 11856 | EP41: 14751 | EQ41: 14751 | ER41: 14751 | ES41: 14214 | ET41: 15312 | EU41: 15967 | EW41: 0 | EX41: 0 | EY41: 14706 | EZ41: 15173 | FA41: 15231 | FB41: Parliament|Strategic Leadership and Governance | FC41: 002 | FD41: 001 | FE41: 001 | FF41: 002 | FG41: 002001 | FH41: 002002 | FI41: 2 | FJ41: 002001001002 | FK41: 002001001 | FL41: 002001002 | FT41: 2 | FU41: Parliament | FV41: 5 | FW41: Associated Services | FX41: 6 | FY41: National Council of Provinces Members’ Facilities | GK41: Dept specific info-Own Format | GL41: 1 | GM41: 0 | GN41: 39 | GQ41: International Relations and Cooperation | GR41: 1 | GS41: Administration | GT41: 3 | GU41: Audit Services | GV41: Employee social benefits | GW41: Current | GX41: Social benefits | GY41: NAT | GZ41: International Relations and Cooperation|Administration|Audit Services|Employee social benefits|Current|Social benefits | HA41: 0 | HB41: 0 | HC41: 0 | HD41: 118 | HE41: 1
Y42: 18 | AA42: 18 | AB42: 25 | AC42: Justice and Constitutional Development | AF42: Werner Krause | AG42: (012) 315 5211 | AH42: werner.krause@treasury.gov.za | AI42: Thabo Selahle | AJ42: (012) 395 6610 | AK42: Thabo.Selahle@treasury.gov.za | AP42: 21546284 | AQ42: 21812968 | AR42: 21951136 | AT42: 18 | AU42: Health | AV42: 56862822 | AW42: 58684553 | AX42: 59179800 | BA42: Non-profit institutions | DG42: Parliament | DH42: Administration | DI42: 10 | DJ42: 44 | DK42: 44 | DL42: 0 | DM42: 36 | DN42: 15393 | DO42: 41 | DP42: 13799 | DQ42: 41 | DR42: 16796 | DS42: 41 | DT42: 18240 | DU42: 41 | DV42: 19790 | DW42: Parliament|Administration | DX42: 002 | DY42: 002 | DZ42: 002002 | EC42: 212 | ED42: 57 | EE42: 2 | EF42: Parliament | EG42: 1 | EH42: Strategic Leadership and Governance | EI42: 1 | EJ42: Office of the Speaker | EK42: Payments for capital assets | EL42: Machinery and equipment | EM42: Other machinery and equipment | EN42: 292 | EO42: 309 | EP42: 26 | EQ42: 26 | ER42: 26 | ES42: 28 | ET42: 30 | EU42: 32 | EW42: 0 | EX42: 0 | EY42: 30 | EZ42: 32 | FA42: 33 | FB42: Parliament|Strategic Leadership and Governance | FC42: 002 | FD42: 001 | FE42: 001 | FF42: 057 | FG42: 002001 | FH42: 002057 | FI42: 57 | FJ42: 002001001057 | FK42: 002001001 | FL42: 002001057 | FT42: 2 | FU42: Parliament | FV42: 16 | FW42: Direct charge against the National Revenue Fund | FX42: 1 | FY42: Members' Remuneration | GK42: Training | GL42: 1 | GM42: 0 | GN42: 40 | GQ42: International Relations and Cooperation | GR42: 1 | GS42: Administration | GT42: 4 | GU42: Financial Management | GV42: Employee social benefits | GW42: Current | GX42: Social benefits | GY42: NAT | GZ42: International Relations and Cooperation|Administration|Financial Management|Employee social benefits|Current|Social benefits | HA42: 0 | HB42: 0 | HC42: 0 | HD42: 124 | HE42: 1
Y43: 19 | AA43: 19 | AB43: 26 | AC43: Military Veterans | AF43: Mashudu Bidzha | AG43: (012) 315 5344 | AH43: Mashudu.Bidzha@treasury.gov.za | AI43: Lesiba Ledwaba | AJ43: (012) 315 6660 | AK43: Lesiba.Ledwaba@treasury.gov.za | AP43: 654367 | AQ43: 663353 | AR43: 662993 | AT43: 19 | AU43: Social Development | AV43: 203038888 | AW43: 215130994 | AX43: 216000392 | BA43: Households | DG43: Parliament | DH43: Administration | DI43: 11 | DJ43: 15 | DK43: 15 | DL43: 0 | DM43: 19 | DN43: 8656 | DO43: 8 | DP43: 3324 | DQ43: 8 | DR43: 4985 | DS43: 8 | DT43: 5419 | DU43: 8 | DV43: 6854 | DW43: Parliament|Administration | DX43: 002 | DY43: 002 | DZ43: 002002 | EC43: 212 | ED43: 1 | EE43: 2 | EF43: Parliament | EG43: 1 | EH43: Strategic Leadership and Governance | EI43: 2 | EJ43: Office of the Chairperson | EK43: Current payments | EL43: Compensation of employees | EM43: Compensation of employees | EN43: 16946 | EO43: 28668 | EP43: 26815 | EQ43: 26815 | ER43: 26815 | ES43: 29577 | ET43: 31860 | EU43: 33048 | EW43: 0 | EX43: 0 | EY43: 27510 | EZ43: 27510 | FA43: 27510 | FB43: Parliament|Strategic Leadership and Governance | FC43: 002 | FD43: 001 | FE43: 002 | FF43: 001 | FG43: 002001 | FH43: 002001 | FI43: 1 | FJ43: 002001002001 | FK43: 002001002 | FL43: 002001001 | FT43: 3 | FU43: Cooperative Governance | FV43: 1 | FW43: Administration | FX43: 1 | FY43: Ministry | GK43: PPP Projects | GL43: 1 | GM43: 0 | GN43: 41 | GQ43: International Relations and Cooperation | GR43: 1 | GS43: Administration | GT43: 5 | GU43: Corporate Services | GV43: Employee social benefits | GW43: Current | GX43: Social benefits | GY43: NAT | GZ43: International Relations and Cooperation|Administration|Corporate Services|Employee social benefits|Current|Social benefits | HA43: 0 | HB43: 0 | HC43: 0 | HD43: 122 | HE43: 1
Y44: 20 | AA44: 20 | AB44: 34 | AC44: Mineral Resources and Energy | AF44: Rezah Atcha | AG44: (012) 315 5287 | AH44: Rezah.Atcha@treasury.gov.za | AI44: Nomagugu Madikane | AJ44: (012) 315 5312 | AK44: Nomagugu.Madikane@treasury.gov.za | AP44: 9280764 | AQ44: 10204771 | AR44: 10436456 | AT44: 20 | AU44: Women, Youth and Persons with Disabilities | AV44: 763539 | AW44: 778341 | AX44: 781916 | BA44: Buildings and other fixed structures | DG44: Parliament | DH44: Administration | DI44: 12 | DJ44: 17 | DK44: 17 | DL44: 0 | DM44: 19 | DN44: 13258 | DO44: 17 | DP44: 11162 | DQ44: 17 | DR44: 13908 | DS44: 17 | DT44: 15118 | DU44: 17 | DV44: 16503 | DW44: Parliament|Administration | DX44: 002 | DY44: 002 | DZ44: 002002 | EC44: 212 | ED44: 2 | EE44: 2 | EF44: Parliament | EG44: 1 | EH44: Strategic Leadership and Governance | EI44: 2 | EJ44: Office of the Chairperson | EK44: Current payments | EL44: Goods and services | EM44: Goods and services | EN44: 14733 | EO44: 15683 | EP44: 12563 | EQ44: 12563 | ER44: 12563 | ES44: 12118 | ET44: 13442 | EU44: 13997 | EW44: 0 | EX44: 0 | EY44: 12909 | EZ44: 13302 | FA44: 13354 | FB44: Parliament|Strategic Leadership and Governance | FC44: 002 | FD44: 001 | FE44: 002 | FF44: 002 | FG44: 002001 | FH44: 002002 | FI44: 2 | FJ44: 002001002002 | FK44: 002001002 | FL44: 002001002 | FT44: 3 | FU44: Cooperative Governance | FV44: 1 | FW44: Administration | FX44: 2 | FY44: Management | GK44: Outputs | GL44: 0 | GM44: 1 | GN44: 42 | GQ44: International Relations and Cooperation | GR44: 1 | GS44: Administration | GT44: 6 | GU44: Diplomatic Training, Research and Development | GV44: Employee social benefits | GW44: Current | GX44: Social benefits | GY44: NAT | GZ44: International Relations and Cooperation|Administration|Diplomatic Training, Research and Development|Employee social benefits|Current|Social benefits | HA44: 0 | HB44: 0 | HC44: 0 | HD44: 149 | HE44: 1
Y45: 21 | AA45: 21 | AB45: 7 | AC45: National School of Government | AF45: George Tembo | AG45: (012) 315 5514 | AH45: George.Tembo@treasury.gov.za | AI45: Uvadhya Singh | AJ45: (012) 315 9030 | AK45: Uvadhya.Singh@treasury.gov.za | AP45: 210189 | AQ45: 213940 | AR45: 214693 | AT45: 21 | AU45: Civilian Secretariat for the Police Service | AV45: 148961 | AW45: 150228 | AX45: 150489 | BA45: Machinery and equipment | DG45: Parliament | DH45: Administration | DI45: 13 | DJ45: 23 | DK45: 23 | DL45: 0 | DM45: 8 | DN45: 7194 | DO45: 16 | DP45: 12920 | DQ45: 16 | DR45: 15983 | DS45: 16 | DT45: 17389 | DU45: 16 | DV45: 18967 | DW45: Parliament|Administration | DX45: 002 | DY45: 002 | DZ45: 002002 | EC45: 221 | ED45: 57 | EE45: 2 | EF45: Parliament | EG45: 1 | EH45: Strategic Leadership and Governance | EI45: 2 | EJ45: Office of the Chairperson | EK45: Payments for capital assets | EL45: Machinery and equipment | EM45: Other machinery and equipment | EN45: 112 | EO45: 118 | EP45: 45 | EQ45: 45 | ER45: 45 | ES45: 48 | ET45: 51 | EU45: 54 | EW45: 0 | EX45: 0 | EY45: 51 | EZ45: 54 | FA45: 56 | FB45: Parliament|Strategic Leadership and Governance | FC45: 002 | FD45: 001 | FE45: 002 | FF45: 057 | FG45: 002001 | FH45: 002057 | FI45: 57 | FJ45: 002001002057 | FK45: 002001002 | FL45: 002001057 | FT45: 3 | FU45: Cooperative Governance | FV45: 1 | FW45: Administration | FX45: 3 | FY45: Corporate Services | GK45: Checks | GL45: 1 | GM45: 0 | GN45: 43 | GQ45: International Relations and Cooperation | GR45: 2 | GS45: International Relations | GT45: 1 | GU45: Africa | GV45: Employee social benefits | GW45: Current | GX45: Social benefits | GY45: NAT | GZ45: International Relations and Cooperation|International Relations|Africa|Employee social benefits|Current|Social benefits | HA45: 0 | HB45: 0 | HC45: 0 | HD45: 119 | HE45: 1
Y46: 22 | AA46: 22 | AB46: 8 | AC46: National Treasury | AF46: Mokgatla Tema | AG46: (012) 315 5948 | AH46: Mokgatla.Tema@treasury.gov.za | AI46: Rhoda Marais | AJ46: (012) 315 5906 | AK46: Rhoda.Marais@treasury.gov.za | AP46: 836211810 | AQ46: 887743054 | AR46: 924524011 | AT46: 22 | AU46: Correctional Services | AV46: 25218129 | AW46: 25486638 | AX46: 25593909 | BA46: Heritage assets | DG46: Parliament | DH46: Administration | DI46: 14 | DJ46: 8 | DK46: 8 | DL46: 0 | DM46: 7 | DN46: 6479 | DO46: 6 | DP46: 5021 | DQ46: 6 | DR46: 6475 | DS46: 6 | DT46: 7038 | DU46: 6 | DV46: 7736 | DW46: Parliament|Administration | DX46: 002 | DY46: 002 | DZ46: 002002 | EC46: 221 | ED46: 1 | EE46: 2 | EF46: Parliament | EG46: 1 | EH46: Strategic Leadership and Governance | EI46: 3 | EJ46: Treasury Advise Office | EK46: Current payments | EL46: Compensation of employees | EM46: Compensation of employees | EN46: 0 | EO46: 0 | EP46: 2721 | EQ46: 2721 | ER46: 2721 | ES46: 2999 | ET46: 3233 | EU46: 3354 | EW46: 0 | EX46: 0 | EY46: 2789 | EZ46: 2789 | FA46: 2789 | FB46: Parliament|Strategic Leadership and Governance | FC46: 002 | FD46: 001 | FE46: 003 | FF46: 001 | FG46: 002001 | FH46: 002001 | FI46: 1 | FJ46: 002001003001 | FK46: 002001003 | FL46: 002001001 | FT46: 3 | FU46: Cooperative Governance | FV46: 1 | FW46: Administration | FX46: 4 | FY46: Financial Services | GK46: Metadata | GL46: 0 | GM46: 1 | GN46: 44 | GQ46: International Relations and Cooperation | GR46: 2 | GS46: International Relations | GT46: 2 | GU46: Asia and Middle East | GV46: Employee social benefits | GW46: Current | GX46: Social benefits | GY46: NAT | GZ46: International Relations and Cooperation|International Relations|Asia and Middle East|Employee social benefits|Current|Social benefits | HA46: 0 | HB46: 0 | HC46: 0 | HD46: 133 | HE46: 1
Y47: 23 | AA47: 23 | AB47: 27 | AC47: Office of the Chief Justice | AF47: Elvis Ramafamba | AG47: (012) 315 5204 | AH47: elvis.ramafamba@treasury.gov.za | AI47: Keabetswe Matlwa | AJ47: (012) 395 6678 | AK47: Keabetswe.Matlwa@treasury.gov.za | AP47: 2330257 | AQ47: 2348440 | AR47: 2357610 | AT47: 23 | AU47: Defence | AV47: 46268680 | AW47: 46776964 | AX47: 47159805 | BA47: Specialised military assets | DG47: Parliament | DH47: Administration | DI47: 15 | DJ47: 9 | DK47: 9 | DL47: 0 | DM47: 4 | DN47: 4241 | DO47: 7 | DP47: 6757 | DQ47: 7 | DR47: 8475 | DS47: 7 | DT47: 9154 | DU47: 7 | DV47: 9833 | DW47: Parliament|Administration | DX47: 002 | DY47: 002 | DZ47: 002002 | EC47: 221 | ED47: 2 | EE47: 2 | EF47: Parliament | EG47: 1 | EH47: Strategic Leadership and Governance | EI47: 3 | EJ47: Treasury Advise Office | EK47: Current payments | EL47: Goods and services | EM47: Goods and services | EN47: 0 | EO47: 0 | EP47: 1431 | EQ47: 1431 | ER47: 1431 | ES47: 1392 | ET47: 1534 | EU47: 1604 | EW47: 0 | EX47: 0 | EY47: 1472 | EZ47: 1524 | FA47: 1529 | FB47: Parliament|Strategic Leadership and Governance | FC47: 002 | FD47: 001 | FE47: 003 | FF47: 002 | FG47: 002001 | FH47: 002002 | FI47: 2 | FJ47: 002001003002 | FK47: 002001003 | FL47: 002001002 | FT47: 3 | FU47: Cooperative Governance | FV47: 1 | FW47: Administration | FX47: 5 | FY47: Internal Audit and Risk Management | GL47: 0 | GM47: 0 | GN47: 45 | GQ47: International Relations and Cooperation | GR47: 2 | GS47: International Relations | GT47: 3 | GU47: Americas and Caribbean | GV47: Employee social benefits | GW47: Current | GX47: Social benefits | GY47: NAT | GZ47: International Relations and Cooperation|International Relations|Americas and Caribbean|Employee social benefits|Current|Social benefits | HA47: 0 | HB47: 0 | HC47: 0 | HD47: 135 | HE47: 1
Y48: 24 | AA48: 24 | AB48: 2 | AC48: Parliament | AF48: Rendani Randela | AG48: (012) 315 5345 | AH48: Rendani.Randela@treasury.gov.za | AI48: Timothy Murwa | AJ48: (012) 315 5002 | AK48: Timothy.Murwa@treasury.gov.za | AP48: 2615858 | AQ48: 2651952 | AR48: 2657570 | AT48: 24 | AU48: Independent Police Investigative Directorate | AV48: 348349 | AW48: 351801 | AX48: 357991 | BA48: Biological assets | DG48: Parliament | DH48: Administration | DI48: 16 | DJ48: 1 | DK48: 1 | DL48: 0 | DM48: 1 | DN48: 2482 | DO48: 1 | DP48: 2300 | DQ48: 1 | DR48: 2785 | DS48: 1 | DT48: 3027 | DU48: 1 | DV48: 3184 | DW48: Parliament|Administration | DX48: 002 | DY48: 002 | DZ48: 002002 | EC48: 222 | ED48: 57 | EE48: 2 | EF48: Parliament | EG48: 1 | EH48: Strategic Leadership and Governance | EI48: 3 | EJ48: Treasury Advise Office | EK48: Payments for capital assets | EL48: Machinery and equipment | EM48: Other machinery and equipment | EN48: 0 | EO48: 0 | EP48: 88 | EQ48: 88 | ER48: 88 | ES48: 93 | ET48: 98 | EU48: 105 | EW48: 0 | EX48: 0 | EY48: 98 | EZ48: 105 | FA48: 110 | FB48: Parliament|Strategic Leadership and Governance | FC48: 002 | FD48: 001 | FE48: 003 | FF48: 057 | FG48: 002001 | FH48: 002057 | FI48: 57 | FJ48: 002001003057 | FK48: 002001003 | FL48: 002001057 | FT48: 3 | FU48: Cooperative Governance | FV48: 1 | FW48: Administration | FX48: 6 | FY48: Office Accommodation | GL48: 0 | GM48: 0 | GN48: 46 | GQ48: International Relations and Cooperation | GR48: 2 | GS48: International Relations | GT48: 4 | GU48: Europe | GV48: Employee social benefits | GW48: Current | GX48: Social benefits | GY48: NAT | GZ48: International Relations and Cooperation|International Relations|Europe|Employee social benefits|Current|Social benefits | HA48: 0 | HB48: 0 | HC48: 0 | HD48: 119 | HE48: 1
Y49: 25 | AA49: 25 | AB49: 9 | AC49: Planning, Monitoring and Evaluation | AF49: Mokgatla Tema | AG49: (012) 315 5948 | AH49: Mokgatla.Tema@treasury.gov.za | AI49: Viwe Sobudula | AJ49: (0)12 315 5015 | AK49: Viwe.Sobudula@treasury.gov.za | AP49: 453950 | AQ49: 460327 | AR49: 461317 | AT49: 25 | AU49: Justice and Constitutional Development | AV49: 21546284 | AW49: 21812968 | AX49: 21951136 | BA49: Land and sub-soil assets | DG49: Parliament | DH49: Core Business | DI49: 7 | DJ49: 9 | DK49: 9 | DL49: 0 | DM49: 18 | DN49: 4967 | DO49: 5 | DP49: 1067 | DQ49: 5 | DR49: 1099 | DS49: 5 | DT49: 1291 | DU49: 5 | DV49: 1389 | DW49: Parliament|Core Business | DX49: 002 | DY49: 003 | DZ49: 002003 | EC49: 222 | ED49: 1 | EE49: 2 | EF49: Parliament | EG49: 1 | EH49: Strategic Leadership and Governance | EI49: 4 | EJ49: Parliamentary Budget Office | EK49: Current payments | EL49: Compensation of employees | EM49: Compensation of employees | EN49: 0 | EO49: 0 | EP49: 5195 | EQ49: 5195 | ER49: 5195 | ES49: 16779 | ET49: 18076 | EU49: 18750 | EW49: 0 | EX49: 0 | EY49: 15607 | EZ49: 15607 | FA49: 15606 | FB49: Parliament|Strategic Leadership and Governance | FC49: 002 | FD49: 001 | FE49: 004 | FF49: 001 | FG49: 002001 | FH49: 002001 | FI49: 1 | FJ49: 002001004001 | FK49: 002001004 | FL49: 002001001 | FT49: 3 | FU49: Cooperative Governance | FV49: 2 | FW49: Regional and Urban Development and Legislative Support | FX49: 1 | FY49: Management: Regional and Urban Development and Legislative Support | GL49: 0 | GM49: 0 | GN49: 47 | GQ49: International Relations and Cooperation | GR49: 3 | GS49: International Cooperation | GT49: 1 | GU49: Global System of Governance | GV49: Employee social benefits | GW49: Current | GX49: Social benefits | GY49: NAT | GZ49: International Relations and Cooperation|International Cooperation|Global System of Governance|Employee social benefits|Current|Social benefits | HA49: 0 | HB49: 0 | HC49: 0 | HD49: 142 | HE49: 1
Y50: 26 | AA50: 26 | AB50: 28 | AC50: Police | AF50: Nompumelelo Radebe | AG50: (012) 315 5957 | AH50: Nompumelelo.Radebe@treasury.gov.za | AI50: Velisubuhle Buti | AJ50: (012) 395 6709 | AK50: Velisubuhle.Buti@treasury.gov.za | AP50: 96355531 | AQ50: 96857602 | AR50: 97083609 | AT50: 26 | AU50: Military Veterans | AV50: 654367 | AW50: 663353 | AX50: 662993 | BA50: Software and other intangible assets | DG50: Parliament | DH50: Core Business | DI50: 8 | DJ50: 31 | DK50: 31 | DL50: 0 | DM50: 46 | DN50: 15234 | DO50: 17 | DP50: 4386 | DQ50: 17 | DR50: 4518 | DS50: 17 | DT50: 5308 | DU50: 17 | DV50: 5711 | DW50: Parliament|Core Business | DX50: 002 | DY50: 003 | DZ50: 002003 | EC50: 222 | ED50: 2 | EE50: 2 | EF50: Parliament | EG50: 1 | EH50: Strategic Leadership and Governance | EI50: 4 | EJ50: Parliamentary Budget Office | EK50: Current payments | EL50: Goods and services | EM50: Goods and services | EN50: 0 | EO50: 0 | EP50: 1881 | EQ50: 1881 | ER50: 1881 | ES50: 3500 | ET50: 4043 | EU50: 4212 | EW50: 0 | EX50: 0 | EY50: 3882 | EZ50: 4001 | FA50: 4017 | FB50: Parliament|Strategic Leadership and Governance | FC50: 002 | FD50: 001 | FE50: 004 | FF50: 002 | FG50: 002001 | FH50: 002002 | FI50: 2 | FJ50: 002001004002 | FK50: 002001004 | FL50: 002001002 | FT50: 3 | FU50: Cooperative Governance | FV50: 2 | FW50: Regional and Urban Development and Legislative Support | FX50: 2 | FY50: Local Government Legislative Support and Institutional Establishment | GL50: 0 | GM50: 0 | GN50: 48 | GQ50: International Relations and Cooperation | GR50: 3 | GS50: International Cooperation | GT50: 2 | GU50: Continental Cooperation | GV50: Employee social benefits | GW50: Current | GX50: Social benefits | GY50: NAT | GZ50: International Relations and Cooperation|International Cooperation|Continental Cooperation|Employee social benefits|Current|Social benefits | HA50: 0 | HB50: 0 | HC50: 0 | HD50: 138 | HE50: 1
Y51: 27 | AA51: 27 | AB51: 10 | AC51: Public Enterprises | AF51: Isaac Kurasha | AG51: (012) 315 5213 | AH51: isaac.kurasha@treasury.gov.za | AI51: Ntandokazi Makaula | AJ51: (012) 395 6667 | AK51: Ntandokazi.Makaula@treasury.gov.za | AP51: 4598874 | AQ51: 2071587 | AR51: 297553 | AT51: 27 | AU51: Office of the Chief Justice | AV51: 2330257 | AW51: 2348440 | AX51: 2357610 | BA51: Capitalised compensation of employees | DG51: Parliament | DH51: Core Business | DI51: 9 | DJ51: 100 | DK51: 100 | DL51: 0 | DM51: 158 | DN51: 65099 | DO51: 86 | DP51: 28029 | DQ51: 86 | DR51: 28869 | DS51: 86 | DT51: 33921 | DU51: 86 | DV51: 36499 | DW51: Parliament|Core Business | DX51: 002 | DY51: 003 | DZ51: 002003 | EC51: 223 | ED51: 57 | EE51: 2 | EF51: Parliament | EG51: 1 | EH51: Strategic Leadership and Governance | EI51: 4 | EJ51: Parliamentary Budget Office | EK51: Payments for capital assets | EL51: Machinery and equipment | EM51: Other machinery and equipment | EN51: 0 | EO51: 0 | EP51: 0 | EQ51: 0 | ER51: 0 | ES51: 0 | ET51: 0 | EU51: 0 | EW51: 0 | EX51: 0 | EY51: 0 | EZ51: 0 | FA51: 0 | FB51: Parliament|Strategic Leadership and Governance | FC51: 002 | FD51: 001 | FE51: 004 | FF51: 057 | FG51: 002001 | FH51: 002057 | FI51: 57 | FJ51: 002001004057 | FK51: 002001004 | FL51: 002001057 | FT51: 3 | FU51: Cooperative Governance | FV51: 2 | FW51: Regional and Urban Development and Legislative Support | FX51: 3 | FY51: Urban Development Planning | GL51: 0 | GM51: 0 | GN51: 49 | GQ51: International Relations and Cooperation | GR51: 3 | GS51: International Cooperation | GT51: 4 | GU51: North-South Dialogue | GV51: Employee social benefits | GW51: Current | GX51: Social benefits | GY51: NAT | GZ51: International Relations and Cooperation|International Cooperation|North-South Dialogue|Employee social benefits|Current|Social benefits | HA51: 0 | HB51: 0 | HC51: 0 | HD51: 135 | HE51: 1
Y52: 28 | AA52: 28 | AB52: 11 | AC52: Public Service and Administration | AF52: George Tembo | AG52: (012) 315 5514 | AH52: George.Tembo@treasury.gov.za | AI52: Uvadhya Singh | AJ52: (012) 315 9030 | AK52: Uvadhya.Singh@treasury.gov.za | AP52: 526192 | AQ52: 535163 | AR52: 543463 | AT52: 28 | AU52: Police | AV52: 96355531 | AW52: 96857602 | AX52: 97083609 | BA52: Capitalised goods and services | DG52: Parliament | DH52: Core Business | DI52: 10 | DJ52: 313 | DK52: 313 | DL52: 0 | DM52: 262 | DN52: 130828 | DO52: 286 | DP52: 110072 | DQ52: 286 | DR52: 121080 | DS52: 286 | DT52: 142269 | DU52: 286 | DV52: 153081 | DW52: Parliament|Core Business | DX52: 002 | DY52: 003 | DZ52: 002003 | EC52: 223 | ED52: 1 | EE52: 2 | EF52: Parliament | EG52: 1 | EH52: Strategic Leadership and Governance | EI52: 5 | EJ52: Office of Institutions Supporting Democracy | EK52: Current payments | EL52: Compensation of employees | EM52: Compensation of employees | EN52: 0 | EO52: 0 | EP52: 8259 | EQ52: 8259 | ER52: 8259 | ES52: 9109 | ET52: 9812 | EU52: 10177 | EW52: 0 | EX52: 0 | EY52: 8473 | EZ52: 8472 | FA52: 8472 | FB52: Parliament|Strategic Leadership and Governance | FC52: 002 | FD52: 001 | FE52: 005 | FF52: 001 | FG52: 002001 | FH52: 002001 | FI52: 1 | FJ52: 002001005001 | FK52: 002001005 | FL52: 002001001 | FT52: 3 | FU52: Cooperative Governance | FV52: 2 | FW52: Regional and Urban Development and Legislative Support | FX52: 4 | FY52: Spatial Planning Districts and Regions | GL52: 0 | GM52: 0 | GN52: 50 | GQ52: International Relations and Cooperation | GR52: 4 | GS52: Public Diplomacy and Protocol Services | GT52: 1 | GU52: Public Diplomacy | GV52: Employee social benefits | GW52: Current | GX52: Social benefits | GY52: NAT | GZ52: International Relations and Cooperation|Public Diplomacy and Protocol Services|Public Diplomacy|Employee social benefits|Current|Social benefits | HA52: 0 | HB52: 0 | HC52: 0 | HD52: 144 | HE52: 1
Y53: 29 | AA53: 29 | AB53: 12 | AC53: Public Service Commission | AF53: George Tembo | AG53: (012) 315 5514 | AH53: George.Tembo@treasury.gov.za | AI53: Uvadhya Singh | AJ53: (012) 315 9030 | AK53: Uvadhya.Singh@treasury.gov.za | AP53: 282405 | AQ53: 284580 | AR53: 284920 | AT53: 29 | AU53: Agriculture, Land Reform and Rural Development | AV53: 16920399 | AW53: 17170668 | AX53: 17387702 | BA53: Payments for financial assets | DG53: Parliament | DH53: Core Business | DI53: 11 | DJ53: 173 | DK53: 173 | DL53: 0 | DM53: 66 | DN53: 57897 | DO53: 154 | DP53: 90375 | DQ53: 154 | DR53: 93086 | DS53: 154 | DT53: 109668 | DU53: 154 | DV53: 118003 | DW53: Parliament|Core Business | DX53: 002 | DY53: 003 | DZ53: 002003 | EC53: 223 | ED53: 2 | EE53: 2 | EF53: Parliament | EG53: 1 | EH53: Strategic Leadership and Governance | EI53: 5 | EJ53: Office of Institutions Supporting Democracy | EK53: Current payments | EL53: Goods and services | EM53: Goods and services | EN53: 0 | EO53: 0 | EP53: 2023 | EQ53: 2023 | ER53: 2023 | ES53: 1821 | ET53: 2111 | EU53: 2203 | EW53: 0 | EX53: 0 | EY53: 2028 | EZ53: 2093 | FA53: 2098 | FB53: Parliament|Strategic Leadership and Governance | FC53: 002 | FD53: 001 | FE53: 005 | FF53: 002 | FG53: 002001 | FH53: 002002 | FI53: 2 | FJ53: 002001005002 | FK53: 002001005 | FL53: 002001002 | FT53: 3 | FU53: Cooperative Governance | FV53: 2 | FW53: Regional and Urban Development and Legislative Support | FX53: 5 | FY53: Intergovernmental Policy and Practice | GL53: 0 | GM53: 0 | GN53: 51 | GQ53: International Relations and Cooperation | GR53: 4 | GS53: Public Diplomacy and Protocol Services | GT53: 2 | GU53: Protocol Services | GV53: Employee social benefits | GW53: Current | GX53: Social benefits | GY53: NAT | GZ53: International Relations and Cooperation|Public Diplomacy and Protocol Services|Protocol Services|Employee social benefits|Current|Social benefits | HA53: 0 | HB53: 0 | HC53: 0 | HD53: 145 | HE53: 1
Y54: 30 | AA54: 30 | AB54: 13 | AC54: Public Works and Infrastructure | AF54: George Tembo | AG54: (012) 315 5514 | AH54: George.Tembo@treasury.gov.za | AI54: Mercy Mhlophe | AJ54: (012) 315 5598 | AK54: mercy.mhlope@treasury.gov.za | AP54: 8343204 | AQ54: 8546259 | AR54: 8578946 | AT54: 30 | AU54: Communications and Digital Technologies | AV54: 3692881 | AW54: 2417182 | AX54: 2426409 | DG54: Parliament | DH54: Core Business | DI54: 12 | DJ54: 9 | DK54: 9 | DL54: 0 | DM54: 67 | DN54: 75694 | DO54: 8 | DP54: 6682 | DQ54: 8 | DR54: 6882 | DS54: 8 | DT54: 8086 | DU54: 8 | DV54: 8701 | DW54: Parliament|Core Business | DX54: 002 | DY54: 003 | DZ54: 002003 | EC54: 224 | ED54: 57 | EE54: 2 | EF54: Parliament | EG54: 1 | EH54: Strategic Leadership and Governance | EI54: 5 | EJ54: Office of Institutions Supporting Democracy | EK54: Payments for capital assets | EL54: Machinery and equipment | EM54: Other machinery and equipment | EN54: 0 | EO54: 0 | EP54: 0 | EQ54: 0 | ER54: 0 | ES54: 0 | ET54: 0 | EU54: 0 | EW54: 0 | EX54: 0 | EY54: 0 | EZ54: 0 | FA54: 0 | FB54: Parliament|Strategic Leadership and Governance | FC54: 002 | FD54: 001 | FE54: 005 | FF54: 057 | FG54: 002001 | FH54: 002057 | FI54: 57 | FJ54: 002001005057 | FK54: 002001005 | FL54: 002001057 | FT54: 3 | FU54: Cooperative Governance | FV54: 2 | FW54: Regional and Urban Development and Legislative Support | FX54: 6 | FY54: Municipal Demarcation Transition Grant | GL54: 0 | GM54: 0 | GN54: 52 | GQ54: International Relations and Cooperation | GR54: 5 | GS54: International Transfers | GT54: 1 | GU54: Departmental Agencies | GV54: African Renaissance and International Cooperation Fund | GW54: Current | GX54: Departmental agencies (non-business entities) | GY54: NAT | GZ54: International Relations and Cooperation|International Transfers|Departmental Agencies|African Renaissance and International Cooperation Fund|Current|Departmental agencies (non-business entities) | HA54: 0 | HB54: 0 | HC54: 0 | HD54: 194 | HE54: 1
Y55: 31 | AA55: 31 | AB55: 35 | AC55: Science and Innovation | AF55: Gcobisa Magazi | AG55: (012) 315 5320 | AH55: Gcobisa.Magazi@treasury.gov.za | AI55: Thabiso Molewa | AJ55: (012) 395 6780 | AK55: Thabiso.Molewa@treasury.gov.za | AP55: 8933315 | AQ55: 9127976 | AR55: 9244581 | AT55: 31 | AU55: Employment and Labour | AV55: 3505713 | AW55: 3559303 | AX55: 3571234 | DG55: Parliament | DH55: Core Business | DI55: 13 | DJ55: 111 | DK55: 111 | DL55: 0 | DM55: 31 | DN55: 65066 | DO55: 84 | DP55: 79035 | DQ55: 84 | DR55: 81406 | DS55: 84 | DT55: 95652 | DU55: 84 | DV55: 102560 | DW55: Parliament|Core Business | DX55: 002 | DY55: 003 | DZ55: 002003 | EC55: 224 | ED55: 1 | EE55: 2 | EF55: Parliament | EG55: 2 | EH55: Administration | EI55: 1 | EJ55: Secretary's Office | EK55: Current payments | EL55: Compensation of employees | EM55: Compensation of employees | EN55: 10418 | EO55: 17199 | EP55: 9103 | EQ55: 9103 | ER55: 9103 | ES55: 10040 | ET55: 10815 | EU55: 11219 | EW55: 0 | EX55: 0 | EY55: 9338 | EZ55: 9338 | FA55: 9338 | FB55: Parliament|Administration | FC55: 002 | FD55: 002 | FE55: 001 | FF55: 001 | FG55: 002002 | FH55: 002001 | FI55: 1 | FJ55: 002002001001 | FK55: 002002001 | FL55: 002002001 | FT55: 3 | FU55: Cooperative Governance | FV55: 2 | FW55: Regional and Urban Development and Legislative Support | FX55: 7 | FY55: Municipal Demarcation Board | GQ55: International Relations and Cooperation | GR55: 5 | GS55: International Transfers | GT55: 1 | GU55: Departmental Agencies | GV55: South African Development Partnership Agency | GW55: Current | GX55: Departmental agencies (non-business entities) | GY55: NAT | GZ55: International Relations and Cooperation|International Transfers|Departmental Agencies|South African Development Partnership Agency|Current|Departmental agencies (non-business entities) | HA55: 0 | HB55: 0 | HC55: 0 | HD55: 184 | HE55: 1
Y56: 32 | AA56: 32 | AB56: 36 | AC56: Small Business Development | AF56: Bothwell Deka | AG56: (012) 395 6784 | AH56: Bothwell.Deka@treasury.gov.za | AI56: Humbelani Ramuedzisi | AJ56: (012) 315 5585 | AK56: Humbelani.Ramuedzisi@treasury.gov.za | AP56: 2538288 | AQ56: 2560324 | AR56: 2569927 | AT56: 32 | AU56: Environment, Forestry and Fisheries | AV56: 8716848 | AW56: 8883025 | AX56: 8947150 | DG56: Parliament | DH56: Core Business | DI56: 14 | DJ56: 32 | DK56: 32 | DL56: 0 | DM56: 17 | DN56: 42949 | DO56: 26 | DP56: 28120 | DQ56: 26 | DR56: 28963 | DS56: 26 | DT56: 34032 | DU56: 26 | DV56: 36993 | DW56: Parliament|Core Business | DX56: 002 | DY56: 003 | DZ56: 002003 | EC56: 224 | ED56: 2 | EE56: 2 | EF56: Parliament | EG56: 2 | EH56: Administration | EI56: 1 | EJ56: Secretary's Office | EK56: Current payments | EL56: Goods and services | EM56: Goods and services | EN56: 18746 | EO56: 19413 | EP56: 4550 | EQ56: 4550 | ER56: 4550 | ES56: 6336 | ET56: 4836 | EU56: 4988 | EW56: 0 | EX56: 0 | EY56: 4643 | EZ56: 4740 | FA56: 4759 | FB56: Parliament|Administration | FC56: 002 | FD56: 002 | FE56: 001 | FF56: 002 | FG56: 002002 | FH56: 002002 | FI56: 2 | FJ56: 002002001002 | FK56: 002002001 | FL56: 002002002 | FT56: 3 | FU56: Cooperative Governance | FV56: 2 | FW56: Regional and Urban Development and Legislative Support | FX56: 8 | FY56: South African Cities Network | GQ56: International Relations and Cooperation | GR56: 5 | GS56: International Transfers | GT56: 2 | GU56: Membership contribution | GV56: African peer review mechanism | GW56: Current | GX56: Foreign governments and international organisations | GY56: NAT | GZ56: International Relations and Cooperation|International Transfers|Membership contribution|African peer review mechanism |Current|Foreign governments and international organisations | HA56: 0 | HB56: 0 | HC56: 0 | HD56: 178 | HE56: 1
Y57: 33 | AA57: 33 | AB57: 19 | AC57: Social Development | AF57: Pebetse Maleka | AG57: (012) 315 5566 | AH57: Pebetse.Maleka@treasury.gov.za | AI57: Yusuf Mayet | AJ57: (012) 315 5189 | AK57: Yusuf.Mayet@treasury.gov.za | AP57: 203038888 | AQ57: 215130994 | AR57: 216000392 | AT57: 33 | AU57: Human Settlements | AV57: 31657958 | AW57: 32619284 | AX57: 33982600 | DG57: Parliament | DH57: Core Business | DI57: 15 | DJ57: 11 | DK57: 11 | DL57: 0 | DM57: 6 | DN57: 16351 | DO57: 9 | DP57: 12152 | DQ57: 9 | DR57: 12516 | DS57: 9 | DT57: 14706 | DU57: 9 | DV57: 15986 | DW57: Parliament|Core Business | DX57: 002 | DY57: 003 | DZ57: 002003 | EC57: 224 | ED57: 3 | EE57: 2 | EF57: Parliament | EG57: 2 | EH57: Administration | EI57: 1 | EJ57: Secretary's Office | EK57: Current payments | EL57: Interest and rent on land | EM57: Interest and rent on land | EN57: 0 | EO57: 0 | EP57: 0 | EQ57: 0 | ER57: 0 | ES57: 0 | ET57: 0 | EU57: 0 | EW57: 0 | EX57: 0 | EY57: 0 | EZ57: 0 | FA57: 0 | FB57: Parliament|Administration | FC57: 002 | FD57: 002 | FE57: 001 | FF57: 003 | FG57: 002002 | FH57: 002003 | FI57: 3 | FJ57: 002002001003 | FK57: 002002001 | FL57: 002002003 | FT57: 3 | FU57: Cooperative Governance | FV57: 2 | FW57: Regional and Urban Development and Legislative Support | FX57: 9 | FY57: Integrated Urban Development Grant | GQ57: International Relations and Cooperation | GR57: 5 | GS57: International Transfers | GT57: 2 | GU57: Membership contribution | GV57: African Union | GW57: Current | GX57: Foreign governments and international organisations | GY57: NAT | GZ57: International Relations and Cooperation|International Transfers|Membership contribution|African Union|Current|Foreign governments and international organisations | HA57: 0 | HB57: 0 | HC57: 0 | HD57: 161 | HE57: 1
Y58: 34 | AA58: 34 | AB58: 37 | AC58: Sports, Arts and Culture | AF58: Judy Naidoo | AG58: (012) 315 5269 | AH58: Judy.Naidoo@treasury.gov.za | AI58: Siphamandla Khumalo | AJ58: (012) 315 5436 | AK58: Siphamandla.Khumalo@treasury.gov.za | AP58: 5693941 | AQ58: 5828283 | AR58: 5886456 | AT58: 34 | AU58: Mineral Resources and Energy | AV58: 9280764 | AW58: 10204771 | AX58: 10436456 | DG58: Parliament | DH58: Core Business | DI58: 16 | DJ58: 2 | DK58: 2 | DL58: 0 | DM58: 0 | DN58: 0 | DO58: 1 | DP58: 1399 | DQ58: 1 | DR58: 1785 | DS58: 1 | DT58: 2097 | DU58: 1 | DV58: 2278 | DW58: Parliament|Core Business | DX58: 002 | DY58: 003 | DZ58: 002003 | EC58: 231 | ED58: 57 | EE58: 2 | EF58: Parliament | EG58: 2 | EH58: Administration | EI58: 1 | EJ58: Secretary's Office | EK58: Payments for capital assets | EL58: Machinery and equipment | EM58: Other machinery and equipment | EN58: 420 | EO58: 481 | EP58: 200 | EQ58: 200 | ER58: 200 | ES58: 212 | ET58: 224 | EU58: 237 | EW58: 0 | EX58: 0 | EY58: 224 | EZ58: 237 | FA58: 247 | FB58: Parliament|Administration | FC58: 002 | FD58: 002 | FE58: 001 | FF58: 057 | FG58: 002002 | FH58: 002057 | FI58: 57 | FJ58: 002002001057 | FK58: 002002001 | FL58: 002002057 | FT58: 3 | FU58: Cooperative Governance | FV58: 3 | FW58: Institutional Development | FX58: 1 | FY58: Management: Institutional Development | GQ58: International Relations and Cooperation | GR58: 5 | GS58: International Transfers | GT58: 2 | GU58: Membership contribution | GV58: African, Caribbean and Pacific Group of States | GW58: Current | GX58: Foreign governments and international organisations | GY58: NAT | GZ58: International Relations and Cooperation|International Transfers|Membership contribution|African, Caribbean and Pacific Group of States|Current|Foreign governments and international organisations | HA58: 0 | HB58: 0 | HC58: 0 | HD58: 194 | HE58: 1
Y59: 35 | AA59: 35 | AB59: 14 | AC59: Statistics South Africa | AF59: Mokgatla Tema | AG59: (012) 315 5948 | AH59: Mokgatla.Tema@treasury.gov.za | AI59: Viwe Sobudula | AJ59: (0)12 315 5015 | AK59: Viwe.Sobudula@treasury.gov.za | AP59: 4474590 | AQ59: 2509155 | AR59: 2533543 | AT59: 35 | AU59: Science and Innovation | AV59: 8933315 | AW59: 9127976 | AX59: 9244581 | DG59: Parliament | DH59: Support Services | DI59: 7 | DJ59: 24 | DK59: 24 | DL59: 0 | DM59: 27 | DN59: 7246 | DO59: 0 | DP59: 0 | DQ59: 0 | DR59: 0 | DS59: 0 | DT59: 0 | DU59: 0 | DV59: 0 | DW59: Parliament|Support Services | DX59: 002 | DY59: 004 | DZ59: 002004 | EC59: 231 | ED59: 1 | EE59: 2 | EF59: Parliament | EG59: 2 | EH59: Administration | EI59: 2 | EJ59: Finance Management Office | EK59: Current payments | EL59: Compensation of employees | EM59: Compensation of employees | EN59: 36774 | EO59: 44071 | EP59: 45738 | EQ59: 45738 | ER59: 45738 | ES59: 50054 | ET59: 53917 | EU59: 55927 | EW59: 0 | EX59: 0 | EY59: 46556 | EZ59: 46555 | FA59: 46555 | FB59: Parliament|Administration | FC59: 002 | FD59: 002 | FE59: 002 | FF59: 001 | FG59: 002002 | FH59: 002001 | FI59: 1 | FJ59: 002002002001 | FK59: 002002002 | FL59: 002002001 | FT59: 3 | FU59: Cooperative Governance | FV59: 3 | FW59: Institutional Development | FX59: 2 | FY59: Municipal Human Resources Management Systems | GQ59: International Relations and Cooperation | GR59: 5 | GS59: International Transfers | GT59: 2 | GU59: Membership contribution | GV59: Asia-African Legal Consultative Organisation | GW59: Current | GX59: Foreign governments and international organisations | GY59: NAT | GZ59: International Relations and Cooperation|International Transfers|Membership contribution|Asia-African Legal Consultative Organisation|Current|Foreign governments and international organisations | HA59: 0 | HB59: 0 | HC59: 0 | HD59: 192 | HE59: 1
Y60: 36 | AA60: 36 | AB60: 1 | AC60: The Presidency | AF60: Timothy Murwa | AG60: (012) 315 5002 | AH60: Timothy.Murwa@treasury.gov.za | AI60: Yamkela Ngewu | AJ60: (012) 406 9078 | AK60: Yamkela.Ngewu@treasury.gov.za | AP60: 598363 | AQ60: 607531 | AR60: 610485 | AT60: 36 | AU60: Small Business Development | AV60: 2538288 | AW60: 2560324 | AX60: 2569927 | DG60: Parliament | DH60: Support Services | DI60: 8 | DJ60: 209 | DK60: 209 | DL60: 0 | DM60: 180 | DN60: 49088 | DO60: 184 | DP60: 42155 | DQ60: 184 | DR60: 46032 | DS60: 184 | DT60: 49489 | DU60: 184 | DV60: 52996 | DW60: Parliament|Support Services | DX60: 002 | DY60: 004 | DZ60: 002004 | EC60: 232 | ED60: 2 | EE60: 2 | EF60: Parliament | EG60: 2 | EH60: Administration | EI60: 2 | EJ60: Finance Management Office | EK60: Current payments | EL60: Goods and services | EM60: Goods and services | EN60: 7483 | EO60: 5306 | EP60: 3365 | EQ60: 3365 | ER60: 3365 | ES60: 12140 | ET60: 3529 | EU60: 3540 | EW60: 0 | EX60: 0 | EY60: 3389 | EZ60: 3364 | FA60: 3377 | FB60: Parliament|Administration | FC60: 002 | FD60: 002 | FE60: 002 | FF60: 002 | FG60: 002002 | FH60: 002002 | FI60: 2 | FJ60: 002002002002 | FK60: 002002002 | FL60: 002002002 | FT60: 3 | FU60: Cooperative Governance | FV60: 3 | FW60: Institutional Development | FX60: 3 | FY60: Municipal Finance | GQ60: International Relations and Cooperation | GR60: 5 | GS60: International Transfers | GT60: 2 | GU60: Membership contribution | GV60: Biological and Toxin Weapons Convention | GW60: Current | GX60: Foreign governments and international organisations | GY60: NAT | GZ60: International Relations and Cooperation|International Transfers|Membership contribution|Biological and Toxin Weapons Convention|Current|Foreign governments and international organisations | HA60: 0 | HB60: 0 | HC60: 0 | HD60: 187 | HE60: 1
Y61: 37 | AA61: 37 | AB61: 38 | AC61: Tourism | AF61: Gcobisa Magazi | AG61: (012) 315 5320 | AH61: Gcobisa.Magazi@treasury.gov.za | AI61: Tumelo Mokgoshi | AJ61: (012) 395 6777 | AK61: Tumelo.Mokgoshi@treasury.gov.za | AP61: 2429627 | AQ61: 2483869 | AR61: 2492307 | AT61: 37 | AU61: Sports, Arts and Culture | AV61: 5693941 | AW61: 5828283 | AX61: 5886456 | DG61: Parliament | DH61: Support Services | DI61: 9 | DJ61: 91 | DK61: 91 | DL61: 0 | DM61: 70 | DN61: 21817 | DO61: 78 | DP61: 22713 | DQ61: 78 | DR61: 24741 | DS61: 78 | DT61: 26506 | DU61: 78 | DV61: 28509 | DW61: Parliament|Support Services | DX61: 002 | DY61: 004 | DZ61: 002004 | EC61: 232 | ED61: 57 | EE61: 2 | EF61: Parliament | EG61: 2 | EH61: Administration | EI61: 2 | EJ61: Finance Management Office | EK61: Payments for capital assets | EL61: Machinery and equipment | EM61: Other machinery and equipment | EN61: 700 | EO61: 254 | EP61: 261 | EQ61: 261 | ER61: 261 | ES61: 275 | ET61: 292 | EU61: 310 | EW61: 0 | EX61: 0 | EY61: 292 | EZ61: 310 | FA61: 324 | FB61: Parliament|Administration | FC61: 002 | FD61: 002 | FE61: 002 | FF61: 057 | FG61: 002002 | FH61: 002057 | FI61: 57 | FJ61: 002002002057 | FK61: 002002002 | FL61: 002002057 | FT61: 3 | FU61: Cooperative Governance | FV61: 3 | FW61: Institutional Development | FX61: 4 | FY61: Citizen Engagement | GQ61: International Relations and Cooperation | GR61: 5 | GS61: International Transfers | GT61: 2 | GU61: Membership contribution | GV61: Commonwealth of Nations | GW61: Current | GX61: Foreign governments and international organisations | GY61: NAT | GZ61: International Relations and Cooperation|International Transfers|Membership contribution|Commonwealth of Nations|Current|Foreign governments and international organisations | HA61: 0 | HB61: 0 | HC61: 0 | HD61: 171 | HE61: 1
Y62: 38 | AA62: 38 | AB62: 39 | AC62: Trade, Industry and Competition | AF62: Isaac Kurasha | AG62: (012) 315 5213 | AH62: isaac.kurasha@treasury.gov.za | AI62: Rudzani Sikhwari | AJ62: (012) 315 5823 | AK62: rudzani.sikhwari@treasury.gov.za | AP62: 9616524 | AQ62: 9855367 | AR62: 9974792 | AT62: 38 | AU62: Tourism | AV62: 2429627 | AW62: 2483869 | AX62: 2492307 | DG62: Parliament | DH62: Support Services | DI62: 10 | DJ62: 98 | DK62: 98 | DL62: 0 | DM62: 61 | DN62: 32161 | DO62: 91 | DP62: 31097 | DQ62: 91 | DR62: 34020 | DS62: 91 | DT62: 36470 | DU62: 91 | DV62: 39278 | DW62: Parliament|Support Services | DX62: 002 | DY62: 004 | DZ62: 002004 | EC62: 232 | ED62: 62 | EE62: 2 | EF62: Parliament | EG62: 2 | EH62: Administration | EI62: 2 | EJ62: Finance Management Office | EK62: Payments for capital assets | EL62: Software and other intangible assets | EM62: Software and other intangible assets | EN62: 0 | EO62: 0 | EP62: 250 | EQ62: 250 | ER62: 250 | ES62: 0 | ET62: 0 | EU62: 0 | EW62: 0 | EX62: 0 | EY62: 0 | EZ62: 0 | FA62: 0 | FB62: Parliament|Administration | FC62: 002 | FD62: 002 | FE62: 002 | FF62: 062 | FG62: 002002 | FH62: 002062 | FI62: 62 | FJ62: 002002002062 | FK62: 002002002 | FL62: 002002062 | FT62: 3 | FU62: Cooperative Governance | FV62: 3 | FW62: Institutional Development | FX62: 5 | FY62: Anti-Corruption and Good Governance | GQ62: International Relations and Cooperation | GR62: 5 | GS62: International Transfers | GT62: 2 | GU62: Membership contribution | GV62: Comprehensive Nuclear-Test-Ban Treaty | GW62: Current | GX62: Foreign governments and international organisations | GY62: NAT | GZ62: International Relations and Cooperation|International Transfers|Membership contribution|Comprehensive Nuclear-Test-Ban Treaty|Current|Foreign governments and international organisations | HA62: 0 | HB62: 0 | HC62: 0 | HD62: 185 | HE62: 1
Y63: 39 | AA63: 39 | AB63: 15 | AC63: Traditional Affairs | AF63: Misaveni Ngobeni | AG63: (012) 315 5305 | AH63: misaveni.ngobeni@treasury.gov.za | AI63: Millicent Mulaudzi | AJ63: (012) 395 6576 | AK63: Millicent.Mulaudzi@treasury.gov.za | AP63: 171392 | AQ63: 175733 | AR63: 179962 | AT63: 39 | AU63: Trade, Industry and Competition | AV63: 9616524 | AW63: 9855367 | AX63: 9974792 | DG63: Parliament | DH63: Support Services | DI63: 11 | DJ63: 36 | DK63: 36 | DL63: 0 | DM63: 54 | DN63: 36740 | DO63: 29 | DP63: 14541 | DQ63: 29 | DR63: 15836 | DS63: 29 | DT63: 16974 | DU63: 29 | DV63: 18238 | DW63: Parliament|Support Services | DX63: 002 | DY63: 004 | DZ63: 002004 | EC63: 233 | ED63: 1 | EE63: 2 | EF63: Parliament | EG63: 2 | EH63: Administration | EI63: 3 | EJ63: Internal Audit | EK63: Current payments | EL63: Compensation of employees | EM63: Compensation of employees | EN63: 6671 | EO63: 8699 | EP63: 8612 | EQ63: 8612 | ER63: 8612 | ES63: 9500 | ET63: 10232 | EU63: 10612 | EW63: 0 | EX63: 0 | EY63: 8836 | EZ63: 8836 | FA63: 8836 | FB63: Parliament|Administration | FC63: 002 | FD63: 002 | FE63: 003 | FF63: 001 | FG63: 002002 | FH63: 002001 | FI63: 1 | FJ63: 002002003001 | FK63: 002002003 | FL63: 002002001 | FT63: 3 | FU63: Cooperative Governance | FV63: 3 | FW63: Institutional Development | FX63: 6 | FY63: Municipal Property Rates | GQ63: International Relations and Cooperation | GR63: 5 | GS63: International Transfers | GT63: 2 | GU63: Membership contribution | GV63: Group of 77 | GW63: Current | GX63: Foreign governments and international organisations | GY63: NAT | GZ63: International Relations and Cooperation|International Transfers|Membership contribution|Group of 77|Current|Foreign governments and international organisations | HA63: 0 | HB63: 0 | HC63: 0 | HD63: 159 | HE63: 1
Y64: 40 | AA64: 40 | AB64: 40 | AC64: Transport | AF64: Dumebi Ubogu | AG64: (012) 315 5077 | AH64: Dumebi.Ubogu@treasury.gov.za | AI64: Luyolo Ntlangula | AJ64: (012) 315-5571 | AK64: luyolo.ntangula@treasury.gov.za | AP64: 67503368 | AQ64: 70260600 | AR64: 72538289 | AT64: 40 | AU64: Transport | AV64: 67503368 | AW64: 70260600 | AX64: 72538289 | DG64: Parliament | DH64: Support Services | DI64: 12 | DJ64: 70 | DK64: 70 | DL64: 0 | DM64: 18 | DN64: 19093 | DO64: 58 | DP64: 41180 | DQ64: 58 | DR64: 45886 | DS64: 58 | DT64: 49181 | DU64: 58 | DV64: 52873 | DW64: Parliament|Support Services | DX64: 002 | DY64: 004 | DZ64: 002004 | EC64: 233 | ED64: 2 | EE64: 2 | EF64: Parliament | EG64: 2 | EH64: Administration | EI64: 3 | EJ64: Internal Audit | EK64: Current payments | EL64: Goods and services | EM64: Goods and services | EN64: 7085 | EO64: 7425 | EP64: 7204 | EQ64: 7204 | ER64: 7204 | ES64: 7307 | ET64: 6169 | EU64: 6167 | EW64: 0 | EX64: 0 | EY64: 5923 | EZ64: 5862 | FA64: 5884 | FB64: Parliament|Administration | FC64: 002 | FD64: 002 | FE64: 003 | FF64: 002 | FG64: 002002 | FH64: 002002 | FI64: 2 | FJ64: 002002003002 | FK64: 002002003 | FL64: 002002002 | FT64: 3 | FU64: Cooperative Governance | FV64: 3 | FW64: Institutional Development | FX64: 7 | FY64: Local Government Equitable Share | GQ64: International Relations and Cooperation | GR64: 5 | GS64: International Transfers | GT64: 2 | GU64: Membership contribution | GV64: Humanitarian aid | GW64: Current | GX64: Foreign governments and international organisations | GY64: NAT | GZ64: International Relations and Cooperation|International Transfers|Membership contribution|Humanitarian aid|Current|Foreign governments and international organisations | HA64: 0 | HB64: 0 | HC64: 0 | HD64: 164 | HE64: 1
Y65: 41 | AA65: 41 | AB65: 41 | AC65: Water and Sanitation | AF65: Misaveni Ngobeni | AG65: (012) 315 5305 | AH65: misaveni.ngobeni@treasury.gov.za | AI65: Iqbal Mahomed Alli | AJ65: (012) 315 5809 | AK65: Iqbal.Mahomed-Alli@treasury.gov.za | AP65: 16910080 | AQ65: 17439588 | AR65: 18035399 | AT65: 41 | AU65: Water and Sanitation | AV65: 16910080 | AW65: 17439588 | AX65: 18035399 | DG65: Parliament | DH65: Support Services | DI65: 13 | DJ65: 17 | DK65: 17 | DL65: 0 | DM65: 27 | DN65: 34494 | DO65: 13 | DP65: 10604 | DQ65: 13 | DR65: 11601 | DS65: 13 | DT65: 12436 | DU65: 13 | DV65: 13394 | DW65: Parliament|Support Services | DX65: 002 | DY65: 004 | DZ65: 002004 | EC65: 233 | ED65: 57 | EE65: 2 | EF65: Parliament | EG65: 2 | EH65: Administration | EI65: 3 | EJ65: Internal Audit | EK65: Payments for capital assets | EL65: Machinery and equipment | EM65: Other machinery and equipment | EN65: 192 | EO65: 201 | EP65: 212 | EQ65: 212 | ER65: 212 | ES65: 224 | ET65: 32 | EU65: 34 | EW65: 0 | EX65: 0 | EY65: 32 | EZ65: 34 | FA65: 35 | FB65: Parliament|Administration | FC65: 002 | FD65: 002 | FE65: 003 | FF65: 057 | FG65: 002002 | FH65: 002057 | FI65: 57 | FJ65: 002002003057 | FK65: 002002003 | FL65: 002002057 | FT65: 3 | FU65: Cooperative Governance | FV65: 3 | FW65: Institutional Development | FX65: 8 | FY65: South African Local Government Association | GQ65: International Relations and Cooperation | GR65: 5 | GS65: International Transfers | GT65: 2 | GU65: Membership contribution | GV65: India-Brazil-South Africa Trust Fund | GW65: Current | GX65: Foreign governments and international organisations | GY65: NAT | GZ65: International Relations and Cooperation|International Transfers|Membership contribution|India-Brazil-South Africa Trust Fund|Current|Foreign governments and international organisations | HA65: 0 | HB65: 0 | HC65: 0 | HD65: 184 | HE65: 1
Y66: 42 | AA66: 42 | AB66: 20 | AC66: Women, Youth and Persons with Disabilities | AF66: Pebetse Maleka | AG66: (012) 315 5566 | AH66: Pebetse.Maleka@treasury.gov.za | AI66: Lindi Mzankomo | AJ66: (012) 315 5256 | AK66: Lindi.Mzankomo@treasury.gov.za | AP66: 763539 | AQ66: 778341 | AR66: 781916 | AT66: 42 | AU66: Centre for Public Service Innovation | AV66: 42576 | AW66: 44145 | AX66: 45363 | DG66: Parliament | DH66: Support Services | DI66: 14 | DJ66: 18 | DK66: 18 | DL66: 0 | DM66: 9 | DN66: 21494 | DO66: 18 | DP66: 18926 | DQ66: 18 | DR66: 20902 | DS66: 18 | DT66: 22335 | DU66: 18 | DV66: 23478 | DW66: Parliament|Support Services | DX66: 002 | DY66: 004 | DZ66: 002004 | EC66: 234 | ED66: 1 | EE66: 2 | EF66: Parliament | EG66: 2 | EH66: Administration | EI66: 4 | EJ66: Strategic Management and Governance | EK66: Current payments | EL66: Compensation of employees | EM66: Compensation of employees | EN66: 22550 | EO66: 24855 | EP66: 25837 | EQ66: 25837 | ER66: 25837 | ES66: 28498 | ET66: 30697 | EU66: 31840 | EW66: 0 | EX66: 0 | EY66: 26506 | EZ66: 26506 | FA66: 26506 | FB66: Parliament|Administration | FC66: 002 | FD66: 002 | FE66: 004 | FF66: 001 | FG66: 002002 | FH66: 002001 | FI66: 1 | FJ66: 002002004001 | FK66: 002002004 | FL66: 002002001 | FT66: 3 | FU66: Cooperative Governance | FV66: 3 | FW66: Institutional Development | FX66: 9 | FY66: Municipal Systems Improvement Grant | GQ66: International Relations and Cooperation | GR66: 5 | GS66: International Transfers | GT66: 2 | GU66: Membership contribution | GV66: Indian Ocean Rim Association Research Centre | GW66: Current | GX66: Foreign governments and international organisations | GY66: NAT | GZ66: International Relations and Cooperation|International Transfers|Membership contribution|Indian Ocean Rim Association Research Centre|Current|Foreign governments and international organisations | HA66: 0 | HB66: 0 | HC66: 0 | HD66: 192 | HE66: 1
Y67: 43 | CY67: =+CQ67&CR67&CS67&CT67&CU67 ->  | DG67: Parliament | DH67: Support Services | DI67: 15 | DJ67: 14 | DK67: 14 | DL67: 0 | DM67: 2 | DN67: 5191 | DO67: 11 | DP67: 14256 | DQ67: 11 | DR67: 14771 | DS67: 11 | DT67: 15789 | DU67: 11 | DV67: 17603 | DW67: Parliament|Support Services | DX67: 002 | DY67: 004 | DZ67: 002004 | EC67: 234 | ED67: 2 | EE67: 2 | EF67: Parliament | EG67: 2 | EH67: Administration | EI67: 4 | EJ67: Strategic Management and Governance | EK67: Current payments | EL67: Goods and services | EM67: Goods and services | EN67: 4904 | EO67: 5139 | EP67: 5624 | EQ67: 5624 | ER67: 5624 | ES67: 5247 | ET67: 245 | EU67: 384 | EW67: 0 | EX67: 0 | EY67: 236 | EZ67: 365 | FA67: 367 | FB67: Parliament|Administration | FC67: 002 | FD67: 002 | FE67: 004 | FF67: 002 | FG67: 002002 | FH67: 002002 | FI67: 2 | FJ67: 002002004002 | FK67: 002002004 | FL67: 002002002 | FT67: 3 | FU67: Cooperative Governance | FV67: 3 | FW67: Institutional Development | FX67: 11 | FY67: United Cities and Local Government of Africa | GQ67: International Relations and Cooperation | GR67: 5 | GS67: International Transfers | GT67: 2 | GU67: Membership contribution | GV67: International Tribunal for the Law of the Sea | GW67: Current | GX67: Foreign governments and international organisations | GY67: NAT | GZ67: International Relations and Cooperation|International Transfers|Membership contribution|International Tribunal for the Law of the Sea|Current|Foreign governments and international organisations | HA67: 0 | HB67: 0 | HC67: 0 | HD67: 193 | HE67: 1
Y68: 44 | CZ68: =+CQ68&CR68&CS68 ->  | DA68: =+CQ68&CR68&CS68&CU68 ->  | DG68: Parliament | DH68: Support Services | DI68: 16 | DJ68: 5 | DK68: 5 | DL68: 0 | DM68: 1 | DN68: 2611 | DO68: 1 | DP68: 1366 | DQ68: 1 | DR68: 1466 | DS68: 1 | DT68: 1716 | DU68: 1 | DV68: 2003 | DW68: Parliament|Support Services | DX68: 002 | DY68: 004 | DZ68: 002004 | EC68: 234 | ED68: 57 | EE68: 2 | EF68: Parliament | EG68: 2 | EH68: Administration | EI68: 4 | EJ68: Strategic Management and Governance | EK68: Payments for capital assets | EL68: Machinery and equipment | EM68: Other machinery and equipment | EN68: 249 | EO68: 261 | EP68: 0 | EQ68: 0 | ER68: 0 | ES68: 0 | ET68: 3 | EU68: 3 | EW68: 0 | EX68: 0 | EY68: 3 | EZ68: 3 | FA68: 3 | FB68: Parliament|Administration | FC68: 002 | FD68: 002 | FE68: 004 | FF68: 057 | FG68: 002002 | FH68: 002057 | FI68: 57 | FJ68: 002002004057 | FK68: 002002004 | FL68: 002002057 | FT68: 3 | FU68: Cooperative Governance | FV68: 4 | FW68: National Disaster Management Centre | FX68: 1 | FY68: Management: Head of the National Disaster Management Centre | GQ68: International Relations and Cooperation | GR68: 5 | GS68: International Transfers | GT68: 2 | GU68: Membership contribution | GV68: New Partnership for Africa's Development | GW68: Current | GX68: Foreign governments and international organisations | GY68: NAT | GZ68: International Relations and Cooperation|International Transfers|Membership contribution|New Partnership for Africa's Development|Current|Foreign governments and international organisations | HA68: 0 | HB68: 0 | HC68: 0 | HD68: 188 | HE68: 1
Y69: 45 | DG69: Parliament | DH69: Associated Services | DI69: 8 | DJ69: 2 | DK69: 2 | DL69: 0 | DM69: 1 | DN69: 285 | DO69: 1 | DP69: 278 | DQ69: 1 | DR69: 289 | DS69: 1 | DT69: 304 | DU69: 1 | DV69: 323 | DW69: Parliament|Associated Services | DX69: 002 | DY69: 005 | DZ69: 002005 | EC69: 235 | ED69: =+INDEX(($FS$4:$FS$27),MATCH(EM69,$GB$4:$GB$27,0)) -> 1 | EE69: 2 | EF69: Parliament | EG69: 2 | EH69: Administration | EI69: 5 | EJ69: Legislative Sector Support | EK69: Current payments | EL69: Compensation of employees | EM69: Compensation of employees | EN69: 0 | EO69: 0 | EP69: 0 | EQ69: 0 | ER69: 0 | ES69: 0 | ET69: 0 | EU69: 0 | EW69: 0 | EX69: 0 | EY69: 0 | EZ69: 0 | FA69: 0 | FB69: =+EF69&"|"&EH69 -> Parliament|Administration | FC69: =REPT("0",3-LEN(EE69))&EE69 -> 002 | FD69: =REPT("0",3-LEN(EG69))&EG69 -> 002 | FE69: =REPT("0",3-LEN(EI69))&EI69 -> 005 | FF69: =REPT("0",3-LEN(ED69))&ED69 -> 001 | FG69: =+FC69&FD69 -> 002002 | FH69: =+FC69&FF69 -> 002001 | FI69: =+FF69*1 -> 1 | FJ69: =FG69&FE69&REPT("0",3-LEN(FI69))&FI69 -> 002002005001 | FK69: 002002005 | FL69: =LEFT(FJ69,6)&FF69 -> 002002001 | FT69: 3 | FU69: Cooperative Governance | FV69: 4 | FW69: National Disaster Management Centre | FX69: 2 | FY69: Disaster Risk Reduction, Capacity Building and Intervention | GQ69: International Relations and Cooperation | GR69: 5 | GS69: International Transfers | GT69: 2 | GU69: Membership contribution | GV69: Organisation for Economic Cooperation and Development | GW69: Current | GX69: Foreign governments and international organisations | GY69: NAT | GZ69: =+GQ69&"|"&GS69&"|"&GU69&"|"&GV69&"|"&GW69&"|"&GX69 -> International Relations and Cooperation|International Transfers|Membership contribution|Organisation for Economic Cooperation and Development|Current|Foreign governments and international organisations | HA69: 0 | HB69: 0 | HC69: 0 | HD69: =+LEN(GZ69) -> 201 | HE69: 1
Y70: 46 | DG70: Parliament | DH70: Associated Services | DI70: 9 | DJ70: 6 | DK70: 6 | DL70: 0 | DM70: 8 | DN70: 4584 | DO70: 6 | DP70: 2035 | DQ70: 6 | DR70: 2112 | DS70: 6 | DT70: 2229 | DU70: 6 | DV70: 2367 | DW70: Parliament|Associated Services | DX70: 002 | DY70: 005 | DZ70: 002005 | EC70: 235 | ED70: 2 | EE70: 2 | EF70: Parliament | EG70: 2 | EH70: Administration | EI70: 5 | EJ70: Legislative Sector Support | EK70: Current payments | EL70: Goods and services | EM70: Goods and services | EN70: 0 | EO70: 0 | EP70: 0 | EQ70: 0 | ER70: 0 | ES70: 0 | ET70: 0 | EU70: 0 | EW70: 0 | EX70: 0 | EY70: 0 | EZ70: 0 | FA70: 0 | FB70: Parliament|Administration | FC70: 002 | FD70: 002 | FE70: 005 | FF70: 002 | FG70: 002002 | FH70: 002002 | FI70: 2 | FJ70: 002002005002 | FK70: =+FG70&FE70 -> 002002005 | FL70: 002002002 | FT70: 3 | FU70: Cooperative Governance | FV70: 4 | FW70: National Disaster Management Centre | FX70: 3 | FY70: Legislation and Policy Management | GQ70: International Relations and Cooperation | GR70: 5 | GS70: International Transfers | GT70: 2 | GU70: Membership contribution | GV70: Perez-Guerrero Trust Fund | GW70: Current | GX70: Foreign governments and international organisations | GY70: NAT | GZ70: International Relations and Cooperation|International Transfers|Membership contribution|Perez-Guerrero Trust Fund|Current|Foreign governments and international organisations | HA70: 0 | HB70: 0 | HC70: 0 | HD70: 173 | HE70: 1
Y71: 47 | DG71: Parliament | DH71: Associated Services | DI71: 10 | DJ71: 4 | DK71: 4 | DL71: 0 | DM71: 2 | DN71: 2042 | DO71: 4 | DP71: 1541 | DQ71: 4 | DR71: 1600 | DS71: 4 | DT71: 1688 | DU71: 4 | DV71: 1792 | DW71: Parliament|Associated Services | DX71: 002 | DY71: 005 | DZ71: 002005 | EC71: 235 | ED71: 57 | EE71: 2 | EF71: Parliament | EG71: 2 | EH71: Administration | EI71: 5 | EJ71: Legislative Sector Support | EK71: Payments for capital assets | EL71: Machinery and equipment | EM71: Other machinery and equipment | EN71: 0 | EO71: 0 | EP71: 0 | EQ71: 0 | ER71: 0 | ES71: 0 | ET71: 0 | EU71: 0 | EW71: 0 | EX71: 0 | EY71: 0 | EZ71: 0 | FA71: 0 | FB71: Parliament|Administration | FC71: 002 | FD71: 002 | FE71: 005 | FF71: 057 | FG71: 002002 | FH71: 002057 | FI71: 57 | FJ71: 002002005057 | FK71: 002002005 | FL71: 002002057 | FT71: 3 | FU71: Cooperative Governance | FV71: 4 | FW71: National Disaster Management Centre | FX71: 4 | FY71: Integrated Provincial Disaster Management Support, Monitoring and Evaluation Systems | GQ71: International Relations and Cooperation | GR71: 5 | GS71: International Transfers | GT71: 2 | GU71: Membership contribution | GV71: Permanent Court of Arbitration | GW71: Current | GX71: Foreign governments and international organisations | GY71: NAT | GZ71: International Relations and Cooperation|International Transfers|Membership contribution|Permanent Court of Arbitration|Current|Foreign governments and international organisations | HA71: 0 | HB71: 0 | HC71: 0 | HD71: 178 | HE71: 1
AP72: =SUM(AP25:AP71) -> 1758627100 | AQ72: =SUM(AQ25:AQ71) -> 1838621911 | AR72: =SUM(AR25:AR71) -> 1884929576 | AT72: Grand Total | AV72: =SUM(AV25:AV71) -> 1758627100 | AW72: =SUM(AW25:AW71) -> 1838621911 | AX72: =SUM(AX25:AX71) -> 1884929576 | DG72: Parliament | DH72: Associated Services | DI72: 11 | DJ72: 3 | DK72: 3 | DL72: 0 | DM72: 2 | DN72: 2972 | DO72: 3 | DP72: 1916 | DQ72: 3 | DR72: 1989 | DS72: 3 | DT72: 2098 | DU72: 3 | DV72: 2228 | DW72: Parliament|Associated Services | DX72: 002 | DY72: 005 | DZ72: 002005 | EC72: 236 | ED72: 1 | EE72: 2 | EF72: Parliament | EG72: 2 | EH72: Administration | EI72: 6 | EJ72: Registrar of Member's Interest | EK72: Current payments | EL72: Compensation of employees | EM72: Compensation of employees | EN72: 0 | EO72: 2658 | EP72: 1696 | EQ72: 1696 | ER72: 1696 | ES72: 1870 | ET72: 2014 | EU72: 2088 | EW72: 0 | EX72: 0 | EY72: 1739 | EZ72: 1740 | FA72: 1740 | FB72: Parliament|Administration | FC72: 002 | FD72: 002 | FE72: 006 | FF72: 001 | FG72: 002002 | FH72: 002001 | FI72: 1 | FJ72: 002002006001 | FK72: 002002006 | FL72: 002002001 | FT72: 3 | FU72: Cooperative Governance | FV72: 4 | FW72: National Disaster Management Centre | FX72: 5 | FY72: Fire Services | GQ72: International Relations and Cooperation | GR72: 5 | GS72: International Transfers | GT72: 2 | GU72: Membership contribution | GV72: South Centre Capital Fund | GW72: Current | GX72: Foreign governments and international organisations | GY72: NAT | GZ72: International Relations and Cooperation|International Transfers|Membership contribution|South Centre Capital Fund|Current|Foreign governments and international organisations | HA72: 0 | HB72: 0 | HC72: 0 | HD72: 173 | HE72: 1
DG73: Parliament | DH73: Associated Services | DI73: 12 | DJ73: 1 | DK73: 1 | DL73: 0 | DM73: 0 | DN73: 0 | DO73: 1 | DP73: 699 | DQ73: 1 | DR73: 726 | DS73: 1 | DT73: 765 | DU73: 1 | DV73: 813 | DW73: Parliament|Associated Services | DX73: 002 | DY73: 005 | DZ73: 002005 | EC73: 236 | ED73: 2 | EE73: 2 | EF73: Parliament | EG73: 2 | EH73: Administration | EI73: 6 | EJ73: Registrar of Member's Interest | EK73: Current payments | EL73: Goods and services | EM73: Goods and services | EN73: 0 | EO73: 342 | EP73: 501 | EQ73: 501 | ER73: 501 | ES73: 482 | ET73: 163 | EU73: 165 | EW73: 0 | EX73: 0 | EY73: 157 | EZ73: 158 | FA73: 157 | FB73: Parliament|Administration | FC73: 002 | FD73: 002 | FE73: 006 | FF73: 002 | FG73: 002002 | FH73: 002002 | FI73: 2 | FJ73: 002002006002 | FK73: 002002006 | FL73: 002002002 | FT73: 3 | FU73: Cooperative Governance | FV73: 4 | FW73: National Disaster Management Centre | FX73: 6 | FY73: Information Technology, Intelligence and Information Management Systems | GQ73: International Relations and Cooperation | GR73: 5 | GS73: International Transfers | GT73: 2 | GU73: Membership contribution | GV73: Southern African Development Community | GW73: Current | GX73: Foreign governments and international organisations | GY73: NAT | GZ73: International Relations and Cooperation|International Transfers|Membership contribution|Southern African Development Community|Current|Foreign governments and international organisations | HA73: 0 | HB73: 0 | HC73: 0 | HD73: 186 | HE73: 1
DG74: Parliament | DH74: Associated Services | DI74: 13 | DJ74: 0 | DK74: 0 | DL74: 0 | DM74: 1 | DN74: 1434 | DO74: 0 | DP74: 0 | DQ74: 0 | DR74: 0 | DS74: 0 | DT74: 0 | DU74: 0 | DV74: 0 | DW74: Parliament|Associated Services | DX74: 002 | DY74: 005 | DZ74: 002005 | EC74: 236 | ED74: 57 | EE74: 2 | EF74: Parliament | EG74: 2 | EH74: Administration | EI74: 6 | EJ74: Registrar of Member's Interest | EK74: Payments for capital assets | EL74: Machinery and equipment | EM74: Other machinery and equipment | EN74: 0 | EO74: 0 | EP74: 0 | EQ74: 0 | ER74: 0 | ES74: 0 | ET74: 0 | EU74: 0 | EW74: 0 | EX74: 0 | EY74: 0 | EZ74: 0 | FA74: 0 | FB74: Parliament|Administration | FC74: 002 | FD74: 002 | FE74: 006 | FF74: 057 | FG74: 002002 | FH74: 002057 | FI74: 57 | FJ74: 002002006057 | FK74: 002002006 | FL74: 002002057 | FT74: 3 | FU74: Cooperative Governance | FV74: 4 | FW74: National Disaster Management Centre | FX74: 7 | FY74: Disaster Relief Grant | GQ74: International Relations and Cooperation | GR74: 5 | GS74: International Transfers | GT74: 2 | GU74: Membership contribution | GV74: UNICEF | GW74: Current | GX74: Foreign governments and international organisations | GY74: NAT | GZ74: International Relations and Cooperation|International Transfers|Membership contribution|UNICEF|Current|Foreign governments and international organisations | HA74: 0 | HB74: 0 | HC74: 0 | HD74: 154 | HE74: 1
DG75: Parliament | DH75: Associated Services | DI75: 14 | DJ75: 1 | DK75: 1 | DL75: 0 | DM75: 1 | DN75: 1509 | DO75: 1 | DP75: 1129 | DQ75: 1 | DR75: 1172 | DS75: 1 | DT75: 1236 | DU75: 1 | DV75: 1313 | DW75: Parliament|Associated Services | DX75: 002 | DY75: 005 | DZ75: 002005 | EC75: 241 | ED75: 1 | EE75: 2 | EF75: Parliament | EG75: 2 | EH75: Administration | EI75: 7 | EJ75: Projects | EK75: Current payments | EL75: Compensation of employees | EM75: Compensation of employees | EN75: 0 | EO75: 0 | EP75: 0 | EQ75: 0 | ER75: 0 | ES75: 0 | ET75: 0 | EU75: 0 | EW75: 0 | EX75: 0 | EY75: 0 | EZ75: 0 | FA75: 0 | FB75: Parliament|Administration | FC75: 002 | FD75: 002 | FE75: 007 | FF75: 001 | FG75: 002002 | FH75: 002001 | FI75: 1 | FJ75: 002002007001 | FK75: 002002007 | FL75: 002002001 | FT75: 3 | FU75: Cooperative Governance | FV75: 4 | FW75: National Disaster Management Centre | FX75: 8 | FY75: Municipal Disaster Recovery Grant | GQ75: International Relations and Cooperation | GR75: 5 | GS75: International Transfers | GT75: 2 | GU75: Membership contribution | GV75: United Nations | GW75: Current | GX75: Foreign governments and international organisations | GY75: NAT | GZ75: International Relations and Cooperation|International Transfers|Membership contribution|United Nations|Current|Foreign governments and international organisations | HA75: 0 | HB75: 0 | HC75: 0 | HD75: 162 | HE75: 1
DG76: Parliament | DH76: Associated Services | DI76: 15 | DJ76: 2 | DK76: 2 | DL76: 0 | DM76: 0 | DN76: 0 | DO76: 1 | DP76: 1318 | DQ76: 1 | DR76: 1368 | DS76: 1 | DT76: 1443 | DU76: 1 | DV76: 1533 | DW76: Parliament|Associated Services | DX76: 002 | DY76: 005 | DZ76: 002005 | EC76: 241 | ED76: 2 | EE76: 2 | EF76: Parliament | EG76: 2 | EH76: Administration | EI76: 7 | EJ76: Projects | EK76: Current payments | EL76: Goods and services | EM76: Goods and services | EN76: 0 | EO76: 0 | EP76: 1370 | EQ76: 1370 | ER76: 1370 | ES76: 55568 | ET76: 43668 | EU76: 45220 | EW76: 0 | EX76: 0 | EY76: 41938 | EZ76: 42973 | FA76: 43138 | FB76: Parliament|Administration | FC76: 002 | FD76: 002 | FE76: 007 | FF76: 002 | FG76: 002002 | FH76: 002002 | FI76: 2 | FJ76: 002002007002 | FK76: 002002007 | FL76: 002002002 | FT76: 3 | FU76: Cooperative Governance | FV76: 4 | FW76: National Disaster Management Centre | FX76: 9 | FY76: Provincial Disaster Recovery Grant | GQ76: International Relations and Cooperation | GR76: 5 | GS76: International Transfers | GT76: 2 | GU76: Membership contribution | GV76: United Nations Convention on the Law of the Sea | GW76: Current | GX76: Foreign governments and international organisations | GY76: NAT | GZ76: International Relations and Cooperation|International Transfers|Membership contribution|United Nations Convention on the Law of the Sea|Current|Foreign governments and international organisations | HA76: 0 | HB76: 0 | HC76: 0 | HD76: 195 | HE76: 1
DG77: Parliament | DH77: Associated Services | DI77: Other please specify | DJ77: 0 | DK77: 0 | DL77: 0 | DM77: 0 | DN77: 0 | DO77: 0 | DP77: 0 | DQ77: 0 | DR77: 50955 | DS77: 0 | DT77: 0 | DU77: 0 | DV77: 0 | DW77: Parliament|Associated Services | DX77: 002 | DY77: 005 | DZ77: 002005 | EC77: 241 | ED77: 57 | EE77: 2 | EF77: Parliament | EG77: 2 | EH77: Administration | EI77: 7 | EJ77: Projects | EK77: Payments for capital assets | EL77: Machinery and equipment | EM77: Other machinery and equipment | EN77: 0 | EO77: 0 | EP77: 0 | EQ77: 0 | ER77: 0 | ES77: 0 | ET77: 0 | EU77: 0 | EW77: 0 | EX77: 0 | EY77: 0 | EZ77: 0 | FA77: 0 | FB77: Parliament|Administration | FC77: 002 | FD77: 002 | FE77: 007 | FF77: 057 | FG77: 002002 | FH77: 002057 | FI77: 57 | FJ77: 002002007057 | FK77: 002002007 | FL77: 002002057 | FT77: 3 | FU77: Cooperative Governance | FV77: 5 | FW77: Local Government Support and Intervention Management | FX77: 1 | FY77: Management: Local Government Support and Interventions | GQ77: International Relations and Cooperation | GR77: 5 | GS77: International Transfers | GT77: 2 | GU77: Membership contribution | GV77: United Nations Development Programme | GW77: Current | GX77: Foreign governments and international organisations | GY77: NAT | GZ77: International Relations and Cooperation|International Transfers|Membership contribution|United Nations Development Programme|Current|Foreign governments and international organisations | HA77: 0 | HB77: 0 | HC77: 0 | HD77: 184 | HE77: 1
DG78: Parliament | DH78: Associated Services | DI78: Parmed Medical Aid | DJ78: 0 | DK78: 0 | DL78: 0 | DM78: 0 | DN78: 47284 | DO78: 0 | DP78: 49089 | DQ78: 0 | DR78: 0 | DS78: 0 | DT78: 53761 | DU78: 0 | DV78: 57101 | DW78: Parliament|Associated Services | DX78: 002 | DY78: 005 | DZ78: 002005 | EC78: 242 | ED78: 2 | EE78: 2 | EF78: Parliament | EG78: 2 | EH78: Administration | EI78: 8 | EJ78: State of the Nation Address | EK78: Current payments | EL78: Goods and services | EM78: Goods and services | EN78: 0 | EO78: 0 | EP78: 4000 | EQ78: 4000 | ER78: 4000 | ES78: 4240 | ET78: 4473 | EU78: 4639 | EW78: 0 | EX78: 0 | EY78: 4297 | EZ78: 4409 | FA78: 4426 | FB78: Parliament|Administration | FC78: 002 | FD78: 002 | FE78: 008 | FF78: 002 | FG78: 002002 | FH78: 002002 | FI78: 2 | FJ78: 002002008002 | FK78: 002002008 | FL78: 002002002 | FT78: 3 | FU78: Cooperative Governance | FV78: 5 | FW78: Local Government Support and Intervention Management | FX78: 2 | FY78: Municipal Performance Monitoring | GQ78: International Relations and Cooperation | GR78: 5 | GS78: International Transfers | GT78: 2 | GU78: Membership contribution | GV78: United Nations Development Programme in Southern Africa | GW78: Current | GX78: Foreign governments and international organisations | GY78: NAT | GZ78: International Relations and Cooperation|International Transfers|Membership contribution|United Nations Development Programme in Southern Africa|Current|Foreign governments and international organisations | HA78: 0 | HB78: 0 | HC78: 0 | HD78: 203 | HE78: 1
DG79: Communications | DH79: Administration | DI79: 3 | DJ79: 2 | DK79: 2 | DL79: 0 | DM79: 0 | DN79: 0 | DO79: 0 | DP79: 0 | DQ79: 0 | DR79: 0 | DS79: 0 | DT79: 0 | DU79: 2 | DV79: 134 | DW79: Communications|Administration | DX79: 003 | DY79: 001 | DZ79: 003001 | EC79: 242 | ED79: 1 | EE79: 2 | EF79: Parliament | EG79: 3 | EH79: Core Business | EI79: 1 | EJ79: Office of the Deputy Secretary | EK79: Current payments | EL79: Compensation of employees | EM79: Compensation of employees | EN79: 3491 | EO79: 3589 | EP79: 0 | EQ79: 0 | ER79: 0 | ES79: 0 | ET79: 0 | EU79: 0 | EW79: 0 | EX79: 0 | EY79: 0 | EZ79: 0 | FA79: 0 | FB79: Parliament|Core Business | FC79: 002 | FD79: 003 | FE79: 001 | FF79: 001 | FG79: 002003 | FH79: 002001 | FI79: 1 | FJ79: 002003001001 | FK79: 002003001 | FL79: 002003001 | FT79: 3 | FU79: Cooperative Governance | FV79: 5 | FW79: Local Government Support and Intervention Management | FX79: 3 | FY79: Local Government Improvement Programme | GQ79: International Relations and Cooperation | GR79: 5 | GS79: International Transfers | GT79: 2 | GU79: Membership contribution | GV79: United Nations Human Rights Council | GW79: Current | GX79: Foreign governments and international organisations | GY79: NAT | GZ79: International Relations and Cooperation|International Transfers|Membership contribution|United Nations Human Rights Council|Current|Foreign governments and international organisations | HA79: 0 | HB79: 0 | HC79: 0 | HD79: 183 | HE79: 1
DG80: Communications | DH80: Administration | DI80: 4 | DJ80: 0 | DK80: 1 | DL80: 1 | DM80: 0 | DN80: 0 | DO80: 6 | DP80: 704 | DQ80: 0 | DR80: 0 | DS80: 0 | DT80: 0 | DU80: 2 | DV80: 186 | DW80: Communications|Administration | DX80: 003 | DY80: 001 | DZ80: 003001 | EC80: 243 | ED80: 2 | EE80: 2 | EF80: Parliament | EG80: 3 | EH80: Core Business | EI80: 1 | EJ80: Office of the Deputy Secretary | EK80: Current payments | EL80: Goods and services | EM80: Goods and services | EN80: 1860 | EO80: 1805 | EP80: 3000 | EQ80: 3000 | ER80: 3000 | ES80: 3159 | ET80: 3351 | EU80: 3487 | EW80: 0 | EX80: 0 | EY80: 3218 | EZ80: 3311 | FA80: 3328 | FB80: Parliament|Core Business | FC80: 002 | FD80: 003 | FE80: 001 | FF80: 002 | FG80: 002003 | FH80: 002002 | FI80: 2 | FJ80: 002003001002 | FK80: 002003001 | FL80: 002003002 | FT80: 3 | FU80: Cooperative Governance | FV80: 5 | FW80: Local Government Support and Intervention Management | FX80: 4 | FY80: Litigations and Interventions | GQ80: International Relations and Cooperation | GR80: 5 | GS80: International Transfers | GT80: 2 | GU80: Membership contribution | GV80: United Nations Technical Cooperation | GW80: Current | GX80: Foreign governments and international organisations | GY80: NAT | GZ80: International Relations and Cooperation|International Transfers|Membership contribution|United Nations Technical Cooperation|Current|Foreign governments and international organisations | HA80: 0 | HB80: 0 | HC80: 0 | HD80: 184 | HE80: 1
DG81: Communications | DH81: Administration | DI81: 5 | DJ81: 3 | DK81: 3 | DL81: 0 | DM81: 2 | DN81: 442 | DO81: 2 | DP81: 760 | DQ81: 7 | DR81: 2450 | DS81: 10 | DT81: 3671 | DU81: 9 | DV81: 3000 | DW81: Communications|Administration | DX81: 003 | DY81: 001 | DZ81: 003001 | EC81: 243 | ED81: 1 | EE81: 2 | EF81: Parliament | EG81: 3 | EH81: Core Business | EI81: 2 | EJ81: National Assembly | EK81: Current payments | EL81: Compensation of employees | EM81: Compensation of employees | EN81: 19187 | EO81: 21206 | EP81: 32880 | EQ81: 32880 | ER81: 32880 | ES81: 39023 | ET81: 42034 | EU81: 43600 | EW81: 0 | EX81: 0 | EY81: 36295 | EZ81: 36296 | FA81: 36296 | FB81: Parliament|Core Business | FC81: 002 | FD81: 003 | FE81: 002 | FF81: 001 | FG81: 002003 | FH81: 002001 | FI81: 1 | FJ81: 002003002001 | FK81: 002003002 | FL81: 002003001 | FT81: 3 | FU81: Cooperative Governance | FV81: 5 | FW81: Local Government Support and Intervention Management | FX81: 5 | FY81: Municipal Infrastructure Administration | GQ81: International Relations and Cooperation | GR81: 5 | GS81: International Transfers | GT81: 2 | GU81: Membership contribution | GV81: United Nations Voluntary Fund on Disability | GW81: Current | GX81: Foreign governments and international organisations | GY81: NAT | GZ81: International Relations and Cooperation|International Transfers|Membership contribution|United Nations Voluntary Fund on Disability|Current|Foreign governments and international organisations | HA81: 0 | HB81: 0 | HC81: 0 | HD81: 191 | HE81: 1
DG82: Communications | DH82: Administration | DI82: 6 | DJ82: 9 | DK82: 9 | DL82: 0 | DM82: 2 | DN82: 508 | DO82: 2 | DP82: 830 | DQ82: 6 | DR82: 2243 | DS82: 9 | DT82: 3523 | DU82: 6 | DV82: 2963 | DW82: Communications|Administration | DX82: 003 | DY82: 001 | DZ82: 003001 | EC82: 243 | ED82: 2 | EE82: 2 | EF82: Parliament | EG82: 3 | EH82: Core Business | EI82: 2 | EJ82: National Assembly | EK82: Current payments | EL82: Goods and services | EM82: Goods and services | EN82: 7904 | EO82: 7863 | EP82: 2500 | EQ82: 2500 | ER82: 2500 | ES82: 2377 | ET82: 10485 | EU82: 10927 | EW82: 0 | EX82: 0 | EY82: 10068 | EZ82: 10384 | FA82: 10424 | FB82: Parliament|Core Business | FC82: 002 | FD82: 003 | FE82: 002 | FF82: 002 | FG82: 002003 | FH82: 002002 | FI82: 2 | FJ82: 002003002002 | FK82: 002003002 | FL82: 002003002 | FT82: 3 | FU82: Cooperative Governance | FV82: 5 | FW82: Local Government Support and Intervention Management | FX82: 6 | FY82: Municipal Infrastructure Grant | GQ82: National School of Government | GR82: 2 | GS82: Public Sector Organisational and Staff Development | GT82: 1 | GU82: National School of Government Training Trading Account | GV82: National School of Government training trading account | GW82: Current | GX82: Departmental agencies (non-business entities) | GY82: NAT | GZ82: National School of Government|Public Sector Organisational and Staff Development|National School of Government Training Trading Account|National School of Government training trading account|Current|Departmental agencies (non-business entities) | HA82: 0 | HB82: 0 | HC82: 0 | HD82: 244 | HE82: 1
DG83: Communications | DH83: Administration | DI83: 7 | DJ83: 2 | DK83: 2 | DL83: 0 | DM83: 0 | DN83: 0 | DO83: 0 | DP83: 0 | DQ83: 2 | DR83: 875 | DS83: 3 | DT83: 1620 | DU83: 4 | DV83: 2237 | DW83: Communications|Administration | DX83: 003 | DY83: 001 | DZ83: 003001 | EC83: 244 | ED83: 57 | EE83: 2 | EF83: Parliament | EG83: 3 | EH83: Core Business | EI83: 2 | EJ83: National Assembly | EK83: Payments for capital assets | EL83: Machinery and equipment | EM83: Other machinery and equipment | EN83: 0 | EO83: 0 | EP83: 0 | EQ83: 0 | ER83: 0 | ES83: 0 | ET83: 22 | EU83: 23 | EW83: 0 | EX83: 0 | EY83: 22 | EZ83: 23 | FA83: 24 | FB83: Parliament|Core Business | FC83: 002 | FD83: 003 | FE83: 002 | FF83: 057 | FG83: 002003 | FH83: 002057 | FI83: 57 | FJ83: 002003002057 | FK83: 002003002 | FL83: 002003057 | FT83: 3 | FU83: Cooperative Governance | FV83: 5 | FW83: Local Government Support and Intervention Management | FX83: 7 | FY83: Municipal Infrastructure Support Agent | GQ83: National Treasury | GR83: 1 | GS83: Administration | GT83: 3 | GU83: Corporate Services | GV83: Bursaries for non-employees | GW83: Current | GX83: Other transfers to households | GY83: NAT | GZ83: National Treasury|Administration|Corporate Services|Bursaries for non-employees|Current|Other transfers to households | HA83: 0 | HB83: 0 | HC83: 0 | HD83: 117 | HE83: 1
DG84: Communications | DH84: Administration | DI84: 8 | DJ84: 7 | DK84: 7 | DL84: 0 | DM84: 2 | DN84: 706 | DO84: 3 | DP84: 1670 | DQ84: 0 | DR84: 0 | DS84: 4 | DT84: 0 | DU84: 6 | DV84: 0 | DW84: Communications|Administration | DX84: 003 | DY84: 001 | DZ84: 003001 | EC84: 244 | ED84: 1 | EE84: 2 | EF84: Parliament | EG84: 3 | EH84: Core Business | EI84: 3 | EJ84: National Council of Provinces | EK84: Current payments | EL84: Compensation of employees | EM84: Compensation of employees | EN84: 22699 | EO84: 24302 | EP84: 25197 | EQ84: 25197 | ER84: 25197 | ES84: 30549 | ET84: 32907 | EU84: 34134 | EW84: 0 | EX84: 0 | EY84: 28414 | EZ84: 28414 | FA84: 28413 | FB84: Parliament|Core Business | FC84: 002 | FD84: 003 | FE84: 003 | FF84: 001 | FG84: 002003 | FH84: 002001 | FI84: 1 | FJ84: 002003003001 | FK84: 002003003 | FL84: 002003001 | FT84: 3 | FU84: Cooperative Governance | FV84: 6 | FW84: Community Work Programme | FX84: 1 | FY84: Management: Community Work Programme | GQ84: National Treasury | GR84: 1 | GS84: Administration | GT84: 3 | GU84: Corporate Services | GV84: Finance and Accounting Services Sector Education and Training Authority | GW84: Current | GX84: Departmental agencies (non-business entities) | GY84: NAT | GZ84: National Treasury|Administration|Corporate Services|Finance and Accounting Services Sector Education and Training Authority|Current|Departmental agencies (non-business entities) | HA84: 0 | HB84: 0 | HC84: 0 | HD84: 177 | HE84: 1
DG85: Communications | DH85: Administration | DI85: 9 | DJ85: 6 | DK85: 6 | DL85: 0 | DM85: 9 | DN85: 2790 | DO85: 7 | DP85: 3640 | DQ85: 10 | DR85: 4502 | DS85: 11 | DT85: 6005 | DU85: 13 | DV85: 8150 | DW85: Communications|Administration | DX85: 003 | DY85: 001 | DZ85: 003001 | EC85: 244 | ED85: 2 | EE85: 2 | EF85: Parliament | EG85: 3 | EH85: Core Business | EI85: 3 | EJ85: National Council of Provinces | EK85: Current payments | EL85: Goods and services | EM85: Goods and services | EN85: 14092 | EO85: 14310 | EP85: 22500 | EQ85: 22500 | ER85: 22500 | ES85: 26218 | ET85: 28380 | EU85: 29492 | EW85: 0 | EX85: 0 | EY85: 27256 | EZ85: 28027 | FA85: 28136 | FB85: Parliament|Core Business | FC85: 002 | FD85: 003 | FE85: 003 | FF85: 002 | FG85: 002003 | FH85: 002002 | FI85: 2 | FJ85: 002003003002 | FK85: 002003003 | FL85: 002003002 | FT85: 3 | FU85: Cooperative Governance | FV85: 6 | FW85: Community Work Programme | FX85: 2 | FY85: Programme Coordination | GQ85: National Treasury | GR85: 2 | GS85: Economic Policy, Tax, Financial Regulation and Research | GT85: 6 | GU85: Cooperative Banks Development Agency | GV85: Cooperative Banks Development Agency | GW85: Current | GX85: Departmental agencies (non-business entities) | GY85: NAT | GZ85: National Treasury|Economic Policy, Tax, Financial Regulation and Research|Cooperative Banks Development Agency|Cooperative Banks Development Agency|Current|Departmental agencies (non-business entities) | HA85: 0 | HB85: 0 | HC85: 0 | HD85: 201 | HE85: 1
DG86: Communications | DH86: Administration | DI86: 10 | DJ86: 0 | DK86: 1 | DL86: 1 | DM86: 1 | DN86: 350 | DO86: 2 | DP86: 1325 | DQ86: 3 | DR86: 1576 | DS86: 3 | DT86: 1860 | DU86: 4 | DV86: 3006 | DW86: Communications|Administration | DX86: 003 | DY86: 001 | DZ86: 003001 | EC86: 245 | ED86: 1 | EE86: 2 | EF86: Parliament | EG86: 3 | EH86: Core Business | EI86: 4 | EJ86: Core Business Support | EK86: Current payments | EL86: Compensation of employees | EM86: Compensation of employees | EN86: 181706 | EO86: 186434 | EP86: 184834 | EQ86: 184834 | ER86: 184834 | ES86: 195817 | ET86: 211805 | EU86: 229741 | EW86: 0 | EX86: 0 | EY86: 182130 | EZ86: 182130 | FA86: 182130 | FB86: Parliament|Core Business | FC86: 002 | FD86: 003 | FE86: 004 | FF86: 001 | FG86: 002003 | FH86: 002001 | FI86: 1 | FJ86: 002003004001 | FK86: 002003004 | FL86: 002003001 | FT86: 3 | FU86: Cooperative Governance | FV86: 6 | FW86: Community Work Programme | FX86: 3 | FY86: Partnerships, Norms, Standards and Innovation | GQ86: National Treasury | GR86: 3 | GS86: Public Finance and Budget Management | GT86: 5 | GU86: Financial and Fiscal Commission | GV86: Financial and Fiscal Commission | GW86: Current | GX86: Departmental agencies (non-business entities) | GY86: NAT | GZ86: National Treasury|Public Finance and Budget Management|Financial and Fiscal Commission|Financial and Fiscal Commission|Current|Departmental agencies (non-business entities) | HA86: 0 | HB86: 0 | HC86: 0 | HD86: 172 | HE86: 1
DG87: Communications | DH87: Administration | DI87: 11 | DJ87: 11 | DK87: 12 | DL87: 1 | DM87: 2 | DN87: 1100 | DO87: 6 | DP87: 3603 | DQ87: 9 | DR87: 4994 | DS87: 8 | DT87: 6230 | DU87: 7 | DV87: 5994 | DW87: Communications|Administration | DX87: 003 | DY87: 001 | DZ87: 003001 | EC87: 245 | ED87: 2 | EE87: 2 | EF87: Parliament | EG87: 3 | EH87: Core Business | EI87: 4 | EJ87: Core Business Support | EK87: Current payments | EL87: Goods and services | EM87: Goods and services | EN87: 76759 | EO87: 86011 | EP87: 133547 | EQ87: 133547 | ER87: 133547 | ES87: 136798 | ET87: 161884 | EU87: 168117 | EW87: 0 | EX87: 0 | EY87: 155471 | EZ87: 159765 | FA87: 160380 | FB87: Parliament|Core Business | FC87: 002 | FD87: 003 | FE87: 004 | FF87: 002 | FG87: 002003 | FH87: 002002 | FI87: 2 | FJ87: 002003004002 | FK87: 002003004 | FL87: 002003002 | FT87: 4 | FU87: Government Communication and Information System | FV87: 1 | FW87: Administration | FX87: 1 | FY87: Departmental Management | GQ87: National Treasury | GR87: 3 | GS87: Public Finance and Budget Management | GT87: 6 | GU87: Facilitation of Conditional Grants | GV87: Infrastructure skills development grant | GW87: Current | GX87: Municipal bank accounts | GY87: LCG | GZ87: National Treasury|Public Finance and Budget Management|Facilitation of Conditional Grants|Infrastructure skills development grant|Current|Municipal bank accounts | HA87: 0 | HB87: 0 | HC87: 0 | HD87: 161 | HE87: 1
DG88: Communications | DH88: Administration | DI88: 12 | DJ88: 4 | DK88: 4 | DL88: 0 | DM88: 3 | DN88: 1890 | DO88: 5 | DP88: 3523 | DQ88: 4 | DR88: 2560 | DS88: 4 | DT88: 3500 | DU88: 3 | DV88: 2920 | DW88: Communications|Administration | DX88: 003 | DY88: 001 | DZ88: 003001 | EC88: 245 | ED88: 57 | EE88: 2 | EF88: Parliament | EG88: 3 | EH88: Core Business | EI88: 4 | EJ88: Core Business Support | EK88: Payments for capital assets | EL88: Machinery and equipment | EM88: Other machinery and equipment | EN88: 318 | EO88: 955 | EP88: 1008 | EQ88: 1008 | ER88: 1008 | ES88: 1626 | ET88: 1127 | EU88: 1193 | EW88: 0 | EX88: 0 | EY88: 1127 | EZ88: 1193 | FA88: 1246 | FB88: Parliament|Core Business | FC88: 002 | FD88: 003 | FE88: 004 | FF88: 057 | FG88: 002003 | FH88: 002057 | FI88: 57 | FJ88: 002003004057 | FK88: 002003004 | FL88: 002003057 | FT88: 4 | FU88: Government Communication and Information System | FV88: 1 | FW88: Administration | FX88: 2 | FY88: Corporate Services | GQ88: National Treasury | GR88: 3 | GS88: Public Finance and Budget Management | GT88: 6 | GU88: Facilitation of Conditional Grants | GV88: Integrated city development grant | GW88: Capital | GX88: Municipal bank accounts | GY88: LCG | GZ88: National Treasury|Public Finance and Budget Management|Facilitation of Conditional Grants|Integrated city development grant|Capital|Municipal bank accounts | HA88: 0 | HB88: 0 | HC88: 0 | HD88: 155 | HE88: 1
DG89: Communications | DH89: Administration | DI89: 13 | DJ89: 13 | DK89: 15 | DL89: 2 | DM89: 4 | DN89: 3900 | DO89: 6 | DP89: 4772 | DQ89: 5 | DR89: 4494 | DS89: 6 | DT89: 5400 | DU89: 5 | DV89: 5444 | DW89: Communications|Administration | DX89: 003 | DY89: 001 | DZ89: 003001 | EC89: 251 | ED89: 1 | EE89: 2 | EF89: Parliament | EG89: 3 | EH89: Core Business | EI89: 5 | EJ89: Knowledge and Information Services | EK89: Current payments | EL89: Compensation of employees | EM89: Compensation of employees | EN89: 154831 | EO89: 153903 | EP89: 141796 | EQ89: 141796 | ER89: 141796 | ES89: 159873 | ET89: 172578 | EU89: 179014 | EW89: 0 | EX89: 0 | EY89: 148698 | EZ89: 148699 | FA89: 148699 | FB89: Parliament|Core Business | FC89: 002 | FD89: 003 | FE89: 005 | FF89: 001 | FG89: 002003 | FH89: 002001 | FI89: 1 | FJ89: 002003005001 | FK89: 002003005 | FL89: 002003001 | FT89: 4 | FU89: Government Communication and Information System | FV89: 1 | FW89: Administration | FX89: 3 | FY89: Financial Administration | GQ89: National Treasury | GR89: 3 | GS89: Public Finance and Budget Management | GT89: 6 | GU89: Facilitation of Conditional Grants | GV89: Local government financial management grant | GW89: Current | GX89: Municipal bank accounts | GY89: LCG | GZ89: National Treasury|Public Finance and Budget Management|Facilitation of Conditional Grants|Local government financial management grant|Current|Municipal bank accounts | HA89: 0 | HB89: 0 | HC89: 0 | HD89: 165 | HE89: 1
DG90: Communications | DH90: Administration | DI90: 14 | DJ90: 3 | DK90: 4 | DL90: 1 | DM90: 2 | DN90: 2931 | DO90: 3 | DP90: 3782 | DQ90: 3 | DR90: 2933 | DS90: 3 | DT90: 3200 | DU90: 3 | DV90: 3513 | DW90: Communications|Administration | DX90: 003 | DY90: 001 | DZ90: 003001 | EC90: 251 | ED90: 2 | EE90: 2 | EF90: Parliament | EG90: 3 | EH90: Core Business | EI90: 5 | EJ90: Knowledge and Information Services | EK90: Current payments | EL90: Goods and services | EM90: Goods and services | EN90: 13641 | EO90: 21404 | EP90: 50015 | EQ90: 50015 | ER90: 50015 | ES90: 47498 | ET90: 49145 | EU90: 51100 | EW90: 0 | EX90: 0 | EY90: 47198 | EZ90: 48561 | FA90: 48746 | FB90: Parliament|Core Business | FC90: 002 | FD90: 003 | FE90: 005 | FF90: 002 | FG90: 002003 | FH90: 002002 | FI90: 2 | FJ90: 002003005002 | FK90: 002003005 | FL90: 002003002 | FT90: 4 | FU90: Government Communication and Information System | FV90: 1 | FW90: Administration | FX90: 4 | FY90: Internal Audit | GQ90: National Treasury | GR90: 3 | GS90: Public Finance and Budget Management | GT90: 6 | GU90: Facilitation of Conditional Grants | GV90: Neighbourhood development partnership grant | GW90: Capital | GX90: Municipal bank accounts | GY90: LCG | GZ90: National Treasury|Public Finance and Budget Management|Facilitation of Conditional Grants|Neighbourhood development partnership grant|Capital|Municipal bank accounts | HA90: 0 | HB90: 0 | HC90: 0 | HD90: 165 | HE90: 1
DG91: Communications | DH91: Administration | DI91: 15 | DJ91: 0 | DK91: 2 | DL91: 2 | DM91: 2 | DN91: 3500 | DO91: 2 | DP91: 4673 | DQ91: 2 | DR91: 3926 | DS91: 3 | DT91: 4500 | DU91: 2 | DV91: 3926 | DW91: Communications|Administration | DX91: 003 | DY91: 001 | DZ91: 003001 | EC91: 251 | ED91: 57 | EE91: 2 | EF91: Parliament | EG91: 3 | EH91: Core Business | EI91: 5 | EJ91: Knowledge and Information Services | EK91: Payments for capital assets | EL91: Machinery and equipment | EM91: Other machinery and equipment | EN91: 268 | EO91: 377 | EP91: 398 | EQ91: 398 | ER91: 398 | ES91: 421 | ET91: 444 | EU91: 470 | EW91: 0 | EX91: 0 | EY91: 444 | EZ91: 470 | FA91: 491 | FB91: Parliament|Core Business | FC91: 002 | FD91: 003 | FE91: 005 | FF91: 057 | FG91: 002003 | FH91: 002057 | FI91: 57 | FJ91: 002003005057 | FK91: 002003005 | FL91: 002003057 | FT91: 4 | FU91: Government Communication and Information System | FV91: 1 | FW91: Administration | FX91: 6 | FY91: Office Accommodation | GQ91: National Treasury | GR91: 3 | GS91: Public Finance and Budget Management | GT91: 7 | GU91: Catalytic Infrastructure and Development Support Programme | GV91: Development Bank of Southern Africa | GW91: Current | GX91: Departmental agencies (non-business entities) | GY91: NAT | GZ91: National Treasury|Public Finance and Budget Management|Catalytic Infrastructure and Development Support Programme |Development Bank of Southern Africa|Current|Departmental agencies (non-business entities) | HA91: 0 | HB91: 0 | HC91: 0 | HD91: 204 | HE91: 1
DG92: Communications | DH92: Administration | DI92: 16 | DJ92: 3 | DK92: 3 | DL92: 0 | DM92: 2 | DN92: 6287 | DO92: 2 | DP92: 5890 | DQ92: 2 | DR92: 5400 | DS92: 2 | DT92: 5770 | DU92: 2 | DV92: 6443 | DW92: Communications|Administration | DX92: 003 | DY92: 001 | DZ92: 003001 | EC92: 252 | ED92: 1 | EE92: 2 | EF92: Parliament | EG92: 3 | EH92: Core Business | EI92: 6 | EJ92: International Relations and Protocol | EK92: Current payments | EL92: Compensation of employees | EM92: Compensation of employees | EN92: 15928 | EO92: 29115 | EP92: 17751 | EQ92: 17751 | ER92: 17751 | ES92: 24799 | ET92: 27031 | EU92: 28040 | EW92: 0 | EX92: 0 | EY92: 23066 | EZ92: 23066 | FA92: 23066 | FB92: Parliament|Core Business | FC92: 002 | FD92: 003 | FE92: 006 | FF92: 001 | FG92: 002003 | FH92: 002001 | FI92: 1 | FJ92: 002003006001 | FK92: 002003006 | FL92: 002003001 | FT92: 4 | FU92: Government Communication and Information System | FV92: 2 | FW92: Content Processing and Dissemination | FX92: 1 | FY92: Programme Management for Content Processing and Dissemination | GQ92: National Treasury | GR92: 3 | GS92: Public Finance and Budget Management | GT92: 8 | GU92: Government Technical Advisory Centre | GV92: Government Technical Advisory Centre | GW92: Capital | GX92: Departmental agencies (non-business entities) | GY92: NAT | GZ92: National Treasury|Public Finance and Budget Management|Government Technical Advisory Centre|Government Technical Advisory Centre|Capital|Departmental agencies (non-business entities) | HA92: 0 | HB92: 0 | HC92: 0 | HD92: 182 | HE92: 1
DG93: Communications | DH93: Communications Policy, Research and Development | DI93: 8 | DJ93: 2 | DK93: 2 | DL93: 0 | DM93: 2 | DN93: 648 | DO93: 2 | DP93: 563 | DQ93: 2 | DR93: 435 | DS93: 4 | DT93: 1359 | DU93: 4 | DV93: 1326 | DW93: Communications|Communications Policy, Research and Development | DX93: 003 | DY93: 002 | DZ93: 003002 | EC93: 253 | ED93: 2 | EE93: 2 | EF93: Parliament | EG93: 3 | EH93: Core Business | EI93: 6 | EJ93: International Relations and Protocol | EK93: Current payments | EL93: Goods and services | EM93: Goods and services | EN93: 36482 | EO93: 28190 | EP93: 27482 | EQ93: 27482 | ER93: 27482 | ES93: 19273 | ET93: 20601 | EU93: 21376 | EW93: 0 | EX93: 0 | EY93: 19785 | EZ93: 20313 | FA93: 20390 | FB93: Parliament|Core Business | FC93: 002 | FD93: 003 | FE93: 006 | FF93: 002 | FG93: 002003 | FH93: 002002 | FI93: 2 | FJ93: 002003006002 | FK93: 002003006 | FL93: 002003002 | FT93: 4 | FU93: Government Communication and Information System | FV93: 2 | FW93: Content Processing and Dissemination | FX93: 2 | FY93: Policy and Research | GQ93: National Treasury | GR93: 3 | GS93: Public Finance and Budget Management | GT93: 8 | GU93: Government Technical Advisory Centre | GV93: Government Technical Advisory Centre | GW93: Current | GX93: Departmental agencies (non-business entities) | GY93: NAT | GZ93: National Treasury|Public Finance and Budget Management|Government Technical Advisory Centre|Government Technical Advisory Centre|Current|Departmental agencies (non-business entities) | HA93: 0 | HB93: 0 | HC93: 0 | HD93: 182 | HE93: 1
DG94: Communications | DH94: Communications Policy, Research and Development | DI94: 9 | DJ94: 1 | DK94: 1 | DL94: 0 | DM94: 1 | DN94: 384 | DO94: 0 | DP94: 0 | DQ94: 4 | DR94: 1484 | DS94: 3 | DT94: 818 | DU94: 3 | DV94: 1023 | DW94: Communications|Communications Policy, Research and Development | DX94: 003 | DY94: 002 | DZ94: 003002 | EC94: 254 | ED94: 57 | EE94: 2 | EF94: Parliament | EG94: 3 | EH94: Core Business | EI94: 6 | EJ94: International Relations and Protocol | EK94: Payments for capital assets | EL94: Machinery and equipment | EM94: Other machinery and equipment | EN94: 0 | EO94: 0 | EP94: 0 | EQ94: 0 | ER94: 0 | ES94: 0 | ET94: 0 | EU94: 0 | EW94: 0 | EX94: 0 | EY94: 0 | EZ94: 0 | FA94: 0 | FB94: Parliament|Core Business | FC94: 002 | FD94: 003 | FE94: 006 | FF94: 057 | FG94: 002003 | FH94: 002057 | FI94: 57 | FJ94: 002003006057 | FK94: 002003006 | FL94: 002003057 | FT94: 4 | FU94: Government Communication and Information System | FV94: 2 | FW94: Content Processing and Dissemination | FX94: 3 | FY94: Products and Platforms | GQ94: National Treasury | GR94: 5 | GS94: Financial Accounting and Supply Chain Management Systems | GT94: 4 | GU94: Financial Reporting for National Accounts | GV94: Accounting Standards Board | GW94: Current | GX94: Departmental agencies (non-business entities) | GY94: NAT | GZ94: National Treasury|Financial Accounting and Supply Chain Management Systems|Financial Reporting for National Accounts|Accounting Standards Board|Current|Departmental agencies (non-business entities) | HA94: 0 | HB94: 0 | HC94: 0 | HD94: 197 | HE94: 1
DG95: Communications | DH95: Communications Policy, Research and Development | DI95: 11 | DJ95: 1 | DK95: 1 | DL95: 0 | DM95: 2 | DN95: 1064 | DO95: 2 | DP95: 767 | DQ95: 2 | DR95: 764 | DS95: 2 | DT95: 1123 | DU95: 2 | DV95: 1533 | DW95: Communications|Communications Policy, Research and Development | DX95: 003 | DY95: 002 | DZ95: 003002 | EC95: 255 | ED95: 2 | EE95: 2 | EF95: Parliament | EG95: 3 | EH95: Core Business | EI95: 7 | EJ95: Youth Parliament | EK95: Current payments | EL95: Goods and services | EM95: Goods and services | EN95: 0 | EO95: 0 | EP95: 0 | EQ95: 0 | ER95: 0 | ES95: 0 | ET95: 0 | EU95: 0 | EW95: 0 | EX95: 0 | EY95: 0 | EZ95: 0 | FA95: 0 | FB95: Parliament|Core Business | FC95: 002 | FD95: 003 | FE95: 007 | FF95: 002 | FG95: 002003 | FH95: 002002 | FI95: 2 | FJ95: 002003007002 | FK95: 002003007 | FL95: 002003002 | FT95: 4 | FU95: Government Communication and Information System | FV95: 2 | FW95: Content Processing and Dissemination | FX95: 4 | FY95: Communication Service Agency | GQ95: National Treasury | GR95: 5 | GS95: Financial Accounting and Supply Chain Management Systems | GT95: 4 | GU95: Financial Reporting for National Accounts | GV95: Independent Regulatory Board for Auditors | GW95: Current | GX95: Departmental agencies (non-business entities) | GY95: NAT | GZ95: National Treasury|Financial Accounting and Supply Chain Management Systems|Financial Reporting for National Accounts|Independent Regulatory Board for Auditors|Current|Departmental agencies (non-business entities) | HA95: 0 | HB95: 0 | HC95: 0 | HD95: 212 | HE95: 1
DG96: Communications | DH96: Communications Policy, Research and Development | DI96: 12 | DJ96: 2 | DK96: 2 | DL96: 0 | DM96: 1 | DN96: 670 | DO96: 1 | DP96: 603 | DQ96: 1 | DR96: 720 | DS96: 2 | DT96: 1319 | DU96: 2 | DV96: 1719 | DW96: Communications|Communications Policy, Research and Development | DX96: 003 | DY96: 002 | DZ96: 003002 | EC96: 255 | ED96: 2 | EE96: 2 | EF96: Parliament | EG96: 3 | EH96: Core Business | EI96: 8 | EJ96: Women's Parliament | EK96: Current payments | EL96: Goods and services | EM96: Goods and services | EN96: 0 | EO96: 0 | EP96: 0 | EQ96: 0 | ER96: 0 | ES96: 0 | ET96: 0 | EU96: 0 | EW96: 0 | EX96: 0 | EY96: 0 | EZ96: 0 | FA96: 0 | FB96: Parliament|Core Business | FC96: 002 | FD96: 003 | FE96: 008 | FF96: 002 | FG96: 002003 | FH96: 002002 | FI96: 2 | FJ96: 002003008002 | FK96: 002003008 | FL96: 002003002 | FT96: 4 | FU96: Government Communication and Information System | FV96: 2 | FW96: Content Processing and Dissemination | FX96: 5 | FY96: Entity Oversight | GQ96: National Treasury | GR96: 5 | GS96: Financial Accounting and Supply Chain Management Systems | GT96: 5 | GU96: Financial Management Policy and Compliance Improvement | GV96: Employee social benefits | GW96: Current | GX96: Social benefits | GY96: NAT | GZ96: National Treasury|Financial Accounting and Supply Chain Management Systems|Financial Management Policy and Compliance Improvement|Employee social benefits|Current|Social benefits | HA96: 0 | HB96: 0 | HC96: 0 | HD96: 178 | HE96: 1
DG97: Communications | DH97: Communications Policy, Research and Development | DI97: 13 | DJ97: 1 | DK97: 1 | DL97: 0 | DM97: 2 | DN97: 1638 | DO97: 2 | DP97: 1294 | DQ97: 2 | DR97: 1319 | DS97: 2 | DT97: 1410 | DU97: 2 | DV97: 1450 | DW97: Communications|Communications Policy, Research and Development | DX97: 003 | DY97: 002 | DZ97: 003002 | EC97: 255 | ED97: 1 | EE97: 2 | EF97: Parliament | EG97: 4 | EH97: Support Services | EI97: 1 | EJ97: Office of the Deputy Secretary | EK97: Current payments | EL97: Compensation of employees | EM97: Compensation of employees | EN97: 2613 | EO97: 2561 | EP97: 3410 | EQ97: 3410 | ER97: 3410 | ES97: 3760 | ET97: 4051 | EU97: 4203 | EW97: 0 | EX97: 0 | EY97: 3497 | EZ97: 3497 | FA97: 3497 | FB97: Parliament|Support Services | FC97: 002 | FD97: 004 | FE97: 001 | FF97: 001 | FG97: 002004 | FH97: 002001 | FI97: 1 | FJ97: 002004001001 | FK97: 002004001 | FL97: 002004001 | FT97: 4 | FU97: Government Communication and Information System | FV97: 2 | FW97: Content Processing and Dissemination | FX97: 6 | FY97: Media Policy | GQ97: National Treasury | GR97: 6 | GS97: International Financial Relations | GT97: 3 | GU97: African Integration and Support | GV97: African Institute for Economic Development and Planning | GW97: Current | GX97: Foreign governments and international organisations | GY97: NAT | GZ97: National Treasury|International Financial Relations|African Integration and Support|African Institute for Economic Development and Planning|Current|Foreign governments and international organisations | HA97: 0 | HB97: 0 | HC97: 0 | HD97: 199 | HE97: 1
DG98: Communications | DH98: Communications Policy, Research and Development | DI98: 14 | DJ98: 1 | DK98: 1 | DL98: 0 | DM98: 1 | DN98: 1003 | DO98: 1 | DP98: 1098 | DQ98: 1 | DR98: 1434 | DS98: 1 | DT98: 1563 | DU98: 1 | DV98: 1579 | DW98: Communications|Communications Policy, Research and Development | DX98: 003 | DY98: 002 | DZ98: 003002 | EC98: 256 | ED98: 2 | EE98: 2 | EF98: Parliament | EG98: 4 | EH98: Support Services | EI98: 1 | EJ98: Office of the Deputy Secretary | EK98: Current payments | EL98: Goods and services | EM98: Goods and services | EN98: 2589 | EO98: 2382 | EP98: 2409 | EQ98: 2409 | ER98: 2409 | ES98: 391 | ET98: 1172 | EU98: 1229 | EW98: 0 | EX98: 0 | EY98: 1125 | EZ98: 1169 | FA98: 1172 | FB98: Parliament|Support Services | FC98: 002 | FD98: 004 | FE98: 001 | FF98: 002 | FG98: 002004 | FH98: 002002 | FI98: 2 | FJ98: 002004001002 | FK98: 002004001 | FL98: 002004002 | FT98: 4 | FU98: Government Communication and Information System | FV98: 3 | FW98: Intergovernmental Coordination and Stakeholder Management | FX98: 1 | FY98: Programme Management for Intergovernmental Coordination and Stakeholder Management | GQ98: National Treasury | GR98: 6 | GS98: International Financial Relations | GT98: 3 | GU98: African Integration and Support | GV98: Collaborative Africa Budget Reform Initiative | GW98: Current | GX98: Foreign governments and international organisations | GY98: NAT | GZ98: National Treasury|International Financial Relations|African Integration and Support|Collaborative Africa Budget Reform Initiative|Current|Foreign governments and international organisations | HA98: 0 | HB98: 0 | HC98: 0 | HD98: 189 | HE98: 1
DG99: Communications | DH99: Industry and Capacity Development | DI99: 4 | DJ99: 1 | DK99: 1 | DL99: 0 | DM99: 2 | DN99: 270 | DO99: 1 | DP99: 197 | DQ99: 1 | DR99: 94 | DS99: 1 | DT99: 104 | DU99: 2 | DV99: 250 | DW99: Communications|Industry and Capacity Development | DX99: 003 | DY99: 003 | DZ99: 003003 | EC99: 2161 | ED99: 57 | EE99: 2 | EF99: Parliament | EG99: 4 | EH99: Support Services | EI99: 1 | EJ99: Office of the Deputy Secretary | EK99: Payments for capital assets | EL99: Machinery and equipment | EM99: Other machinery and equipment | EN99: 0 | EO99: 0 | EP99: 0 | EQ99: 0 | ER99: 0 | ES99: 0 | ET99: 0 | EU99: 0 | EW99: 0 | EX99: 0 | EY99: 0 | EZ99: 0 | FA99: 0 | FB99: Parliament|Support Services | FC99: 002 | FD99: 004 | FE99: 001 | FF99: 057 | FG99: 002004 | FH99: 002057 | FI99: 57 | FJ99: 002004001057 | FK99: 002004001 | FL99: 002004057 | FT99: 4 | FU99: Government Communication and Information System | FV99: 3 | FW99: Intergovernmental Coordination and Stakeholder Management | FX99: 2 | FY99: Provincial and Local Liaison | GQ99: National Treasury | GR99: 6 | GS99: International Financial Relations | GT99: 3 | GU99: African Integration and Support | GV99: Common Monetary Area compensation | GW99: Current | GX99: Foreign governments and international organisations | GY99: NAT | GZ99: National Treasury|International Financial Relations|African Integration and Support|Common Monetary Area compensation|Current|Foreign governments and international organisations | HA99: 0 | HB99: 0 | HC99: 0 | HD99: 177 | HE99: 1
DG100: Communications | DH100: Industry and Capacity Development | DI100: 7 | DJ100: 0 | DK100: 0 | DL100: 0 | DM100: 1 | DN100: 234 | DO100: 0 | DP100: 0 | DQ100: 0 | DR100: 0 | DS100: 0 | DT100: 0 | DU100: 0 | DV100: 0 | DW100: Communications|Industry and Capacity Development | DX100: 003 | DY100: 003 | DZ100: 003003 | EC100: 311 | ED100: 1 | EE100: 2 | EF100: Parliament | EG100: 4 | EH100: Support Services | EI100: 2 | EJ100: Parliamentary Communication Services | EK100: Current payments | EL100: Compensation of employees | EM100: Compensation of employees | EN100: 38883 | EO100: 48567 | EP100: 35904 | EQ100: 35904 | ER100: 35904 | ES100: 45116 | ET100: 48598 | EU100: 50409 | EW100: 0 | EX100: 0 | EY100: 41963 | EZ100: 41963 | FA100: 41963 | FB100: Parliament|Support Services | FC100: 002 | FD100: 004 | FE100: 002 | FF100: 001 | FG100: 002004 | FH100: 002001 | FI100: 1 | FJ100: 002004002001 | FK100: 002004002 | FL100: 002004001 | FT100: 4 | FU100: Government Communication and Information System | FV100: 3 | FW100: Intergovernmental Coordination and Stakeholder Management | FX100: 3 | FY100: Media Engagement | GQ100: National Treasury | GR100: 6 | GS100: International Financial Relations | GT100: 3 | GU100: African Integration and Support | GV100: Regional Technical Assistance Centre for Southern Africa | GW100: Current | GX100: Foreign governments and international organisations | GY100: NAT | GZ100: National Treasury|International Financial Relations|African Integration and Support|Regional Technical Assistance Centre for Southern Africa|Current|Foreign governments and international organisations | HA100: 0 | HB100: 0 | HC100: 0 | HD100: 200 | HE100: 1
DG101: Communications | DH101: Industry and Capacity Development | DI101: 8 | DJ101: 1 | DK101: 1 | DL101: 0 | DM101: 1 | DN101: 0 | DO101: 1 | DP101: 144 | DQ101: 2 | DR101: 430 | DS101: 1 | DT101: 525 | DU101: 1 | DV101: 556 | DW101: Communications|Industry and Capacity Development | DX101: 003 | DY101: 003 | DZ101: 003003 | EC101: 311 | ED101: 2 | EE101: 2 | EF101: Parliament | EG101: 4 | EH101: Support Services | EI101: 2 | EJ101: Parliamentary Communication Services | EK101: Current payments | EL101: Goods and services | EM101: Goods and services | EN101: 41220 | EO101: 43587 | EP101: 32603 | EQ101: 32603 | ER101: 32603 | ES101: 28381 | ET101: 30781 | EU101: 32015 | EW101: 0 | EX101: 0 | EY101: 29563 | EZ101: 30424 | FA101: 30540 | FB101: Parliament|Support Services | FC101: 002 | FD101: 004 | FE101: 002 | FF101: 002 | FG101: 002004 | FH101: 002002 | FI101: 2 | FJ101: 002004002002 | FK101: 002004002 | FL101: 002004002 | FT101: 4 | FU101: Government Communication and Information System | FV101: 3 | FW101: Intergovernmental Coordination and Stakeholder Management | FX101: 4 | FY101: Cluster Supervision (Human Development, Social Protection, and Governance and Administration) | GQ101: National Treasury | GR101: 6 | GS101: International Financial Relations | GT101: 4 | GU101: International Development Funding Institutions | GV101: African Development Fund | GW101: Capital | GX101: Foreign governments and international organisations | GY101: NAT | GZ101: National Treasury|International Financial Relations|International Development Funding Institutions|African Development Fund|Capital|Foreign governments and international organisations | HA101: 0 | HB101: 0 | HC101: 0 | HD101: 183 | HE101: 1
DG102: Communications | DH102: Industry and Capacity Development | DI102: 9 | DJ102: 0 | DK102: 1 | DL102: 1 | DM102: 0 | DN102: 0 | DO102: 1 | DP102: 217 | DQ102: 2 | DR102: 579 | DS102: 1 | DT102: 707 | DU102: 1 | DV102: 748 | DW102: Communications|Industry and Capacity Development | DX102: 003 | DY102: 003 | DZ102: 003003 | EC102: 311 | ED102: 57 | EE102: 2 | EF102: Parliament | EG102: 4 | EH102: Support Services | EI102: 2 | EJ102: Parliamentary Communication Services | EK102: Payments for capital assets | EL102: Machinery and equipment | EM102: Other machinery and equipment | EN102: 0 | EO102: 0 | EP102: 188 | EQ102: 188 | ER102: 188 | ES102: 200 | ET102: 199 | EU102: 210 | EW102: 0 | EX102: 0 | EY102: 199 | EZ102: 210 | FA102: 219 | FB102: Parliament|Support Services | FC102: 002 | FD102: 004 | FE102: 002 | FF102: 057 | FG102: 002004 | FH102: 002057 | FI102: 57 | FJ102: 002004002057 | FK102: 002004002 | FL102: 002004057 | FT102: 4 | FU102: Government Communication and Information System | FV102: 3 | FW102: Intergovernmental Coordination and Stakeholder Management | FX102: 5 | FY102: Cluster Supervision (Economic and Infrastructure, Justice and International) | GQ102: National Treasury | GR102: 6 | GS102: International Financial Relations | GT102: 4 | GU102: International Development Funding Institutions | GV102: World Bank Group | GW102: Capital | GX102: Foreign governments and international organisations | GY102: NAT | GZ102: National Treasury|International Financial Relations|International Development Funding Institutions|World Bank Group|Capital|Foreign governments and international organisations | HA102: 0 | HB102: 0 | HC102: 0 | HD102: 175 | HE102: 1
DG103: Communications | DH103: Industry and Capacity Development | DI103: 10 | DJ103: 0 | DK103: 1 | DL103: 0 | DM103: 0 | DN103: 0 | DO103: 1 | DP103: 243 | DQ103: 1 | DR103: 310 | DS103: 1 | DT103: 758 | DU103: 2 | DV103: 802 | DW103: Communications|Industry and Capacity Development | DX103: 003 | DY103: 003 | DZ103: 003003 | EC103: 312 | ED103: 1 | EE103: 2 | EF103: Parliament | EG103: 4 | EH103: Support Services | EI103: 3 | EJ103: Human Resources Management | EK103: Current payments | EL103: Compensation of employees | EM103: Compensation of employees | EN103: 36799 | EO103: 47006 | EP103: 31941 | EQ103: 31941 | ER103: 31941 | ES103: 40745 | ET103: 41389 | EU103: 42920 | EW103: 0 | EX103: 0 | EY103: 37594 | EZ103: 37897 | FA103: 37897 | FB103: Parliament|Support Services | FC103: 002 | FD103: 004 | FE103: 003 | FF103: 001 | FG103: 002004 | FH103: 002001 | FI103: 1 | FJ103: 002004003001 | FK103: 002004003 | FL103: 002004001 | FT103: 5 | FU103: Home Affairs | FV103: 1 | FW103: Administration | FX103: 1 | FY103: Ministry | GQ103: National Treasury | GR103: 6 | GS103: International Financial Relations | GT103: 5 | GU103: International Projects | GV103: Commonwealth Fund for Technical Cooperation | GW103: Current | GX103: Foreign governments and international organisations | GY103: NAT | GZ103: National Treasury|International Financial Relations|International Projects|Commonwealth Fund for Technical Cooperation|Current|Foreign governments and international organisations | HA103: 0 | HB103: 0 | HC103: 0 | HD103: 178 | HE103: 1
Z104: =IF(AI104="",1,2) -> 1 | AA104: =+AA23 -> 27 | AB104: =+AB23 -> 10 | AP104: =INDEX((AP$106:AP$152),MATCH($AA$23,$AA$106:$AA$152,1)) -> 175954 | AQ104: =INDEX((AQ$106:AQ$152),MATCH($AA$23,$AA$106:$AA$152,1)) -> 177453 | AR104: =INDEX((AR$106:AR$152),MATCH($AA$23,$AA$106:$AA$152,1)) -> 179974 | AT104: Personnel Revised Baseline | AV104: =IFERROR(INDEX((AV$106:AV$151),MATCH($AB$23,$AT$106:$AT$151,0)),0) -> 175954 | AW104: =IFERROR(INDEX((AW$106:AW$151),MATCH($AB$23,$AT$106:$AT$151,0)),0) -> 177453 | AX104: =IFERROR(INDEX((AX$106:AX$151),MATCH($AB$23,$AT$106:$AT$151,0)),0) -> 179974 | DG104: Communications | DH104: Industry and Capacity Development | DI104: 11 | DJ104: 2 | DK104: 2 | DL104: 1 | DM104: 1 | DN104: 548 | DO104: 2 | DP104: 0 | DQ104: 0 | DR104: 0 | DS104: 2 | DT104: 0 | DU104: 0 | DV104: 0 | DW104: Communications|Industry and Capacity Development | DX104: 003 | DY104: 003 | DZ104: 003003 | EC104: 312 | ED104: 2 | EE104: 2 | EF104: Parliament | EG104: 4 | EH104: Support Services | EI104: 3 | EJ104: Human Resources Management | EK104: Current payments | EL104: Goods and services | EM104: Goods and services | EN104: 13601 | EO104: 13906 | EP104: 27948 | EQ104: 27948 | ER104: 27948 | ES104: 22171 | ET104: 31860 | EU104: 33091 | EW104: 0 | EX104: 0 | EY104: 30599 | EZ104: 31447 | FA104: 31568 | FB104: Parliament|Support Services | FC104: 002 | FD104: 004 | FE104: 003 | FF104: 002 | FG104: 002004 | FH104: 002002 | FI104: 2 | FJ104: 002004003002 | FK104: 002004003 | FL104: 002004002 | FT104: 5 | FU104: Home Affairs | FV104: 1 | FW104: Administration | FX104: 2 | FY104: Management Support Services | GQ104: National Treasury | GR104: 6 | GS104: International Financial Relations | GT104: 5 | GU104: International Projects | GV104: International Finance Facility for Immunisation | GW104: Current | GX104: Foreign governments and international organisations | GY104: NAT | GZ104: National Treasury|International Financial Relations|International Projects|International Finance Facility for Immunisation|Current|Foreign governments and international organisations | HA104: 0 | HB104: 0 | HC104: 0 | HD104: 182 | HE104: 1
AA105: Dept Index No. | AB105: Vote No. | AC105: Department | AD105: Category | AE105: ID1 | AF105: Contact Person | AG105: Tel | AH105: email | AI105: Contact Person | AJ105: Tel | AK105: email | AL105: ID2 | AM105: Contact Person | AN105: Tel | AO105: email | AP105: =MyYearP1 -> 2021/22 | AQ105: =MyYearP2 -> 2022/23 | AR105: =MyYearP3 -> 2023/24 | AT105: Vote No. | AU105: Dept | AV105: =+AP105 -> 2021/22 | AW105: =+AQ105 -> 2022/23 | AX105: =+AR105 -> 2023/24 | DG105: Communications | DH105: Industry and Capacity Development | DI105: 12 | DJ105: 0 | DK105: 0 | DL105: 0 | DM105: 2 | DN105: 1230 | DO105: 0 | DP105: 0 | DQ105: 0 | DR105: 0 | DS105: 0 | DT105: 0 | DU105: 0 | DV105: 0 | DW105: Communications|Industry and Capacity Development | DX105: 003 | DY105: 003 | DZ105: 003003 | EC105: 312 | ED105: 57 | EE105: 2 | EF105: Parliament | EG105: 4 | EH105: Support Services | EI105: 3 | EJ105: Human Resources Management | EK105: Payments for capital assets | EL105: Machinery and equipment | EM105: Other machinery and equipment | EN105: 515 | EO105: 557 | EP105: 588 | EQ105: 588 | ER105: 588 | ES105: 1997 | ET105: 657 | EU105: 697 | EW105: 0 | EX105: 0 | EY105: 657 | EZ105: 697 | FA105: 728 | FB105: Parliament|Support Services | FC105: 002 | FD105: 004 | FE105: 003 | FF105: 057 | FG105: 002004 | FH105: 002057 | FI105: 57 | FJ105: 002004003057 | FK105: 002004003 | FL105: 002004057 | FT105: 5 | FU105: Home Affairs | FV105: 1 | FW105: Administration | FX105: 3 | FY105: Corporate Services | GQ105: National Treasury | GR105: 7 | GS105: Civil and Military Pensions, Contributions to Funds and Other Benefits | GT105: 2 | GU105: Civil Pensions and Contributions to Funds | GV105: Contribution to provident funds for associated institutions | GW105: Current | GX105: Social benefits | GY105: NAT | GZ105: National Treasury|Civil and Military Pensions, Contributions to Funds and Other Benefits|Civil Pensions and Contributions to Funds|Contribution to provident funds for associated institutions |Current|Social benefits | HA105: 0 | HB105: 0 | HC105: 0 | HD105: 215 | HE105: 1
Y106: 1 | AA106: 1 | AB106: 29 | AC106: Agriculture, Land Reform and Rural Development | AF106: Bothwell Deka | AG106: (012) 395 6784 | AH106: Bothwell.Deka@treasury.gov.za | AI106: Humbelani Ramuedzisi | AJ106: (012) 315 5585 | AK106: Humbelani.Ramuedzisi@treasury.gov.za | AP106: 4003045 | AQ106: 3968925 | AR106: 3856499 | AS106: 0.003929005825 | AT106: 1 | AU106: The Presidency | AV106: 372109 | AW106: 374904 | AX106: 376377 | DG106: Communications | DH106: Industry and Capacity Development | DI106: 13 | DJ106: 2 | DK106: 4 | DL106: 2 | DM106: 3 | DN106: 3493 | DO106: 4 | DP106: 2893 | DQ106: 4 | DR106: 3153 | DS106: 4 | DT106: 3247 | DU106: 4 | DV106: 3500 | DW106: Communications|Industry and Capacity Development | DX106: 003 | DY106: 003 | DZ106: 003003 | EC106: 313 | ED106: 1 | EE106: 2 | EF106: Parliament | EG106: 4 | EH106: Support Services | EI106: 4 | EJ106: Information Communication and Technology | EK106: Current payments | EL106: Compensation of employees | EM106: Compensation of employees | EN106: 35774 | EO106: 44839 | EP106: 44492 | EQ106: 44492 | ER106: 44492 | ES106: 54588 | ET106: 56301 | EU106: 58388 | EW106: 0 | EX106: 0 | EY106: 50772 | EZ106: 50773 | FA106: 50773 | FB106: Parliament|Support Services | FC106: 002 | FD106: 004 | FE106: 004 | FF106: 001 | FG106: 002004 | FH106: 002001 | FI106: 1 | FJ106: 002004004001 | FK106: 002004004 | FL106: 002004001 | FT106: 5 | FU106: Home Affairs | FV106: 1 | FW106: Administration | FX106: 4 | FY106: Transversal Information Technology Management | GQ106: National Treasury | GR106: 7 | GS106: Civil and Military Pensions, Contributions to Funds and Other Benefits | GT106: 2 | GU106: Civil Pensions and Contributions to Funds | GV106: Early retirement costs: Government Pensions Administration Agency | GW106: Current | GX106: Social benefits | GY106: NAT | GZ106: National Treasury|Civil and Military Pensions, Contributions to Funds and Other Benefits|Civil Pensions and Contributions to Funds|Early retirement costs: Government Pensions Administration Agency|Current|Social benefits | HA106: 0 | HB106: 0 | HC106: 0 | HD106: 220 | HE106: 1
Y107: 2 | AA107: 2 | AB107: 16 | AC107: Basic Education | AF107: Spencer Janari | AG107: (012) 315 5436 | AH107: Spencer.Janari@treasury.gov.za | AI107: Pindi Masiso | AJ107: (012) 315 5722 | AK107: Pindi.Masiso@treasury.gov.za | AP107: 538011 | AQ107: 532730 | AR107: 535567 | AS107: 0.0001965845753 | AT107: 2 | AU107: Parliament | AV107: 1396086 | AW107: 1398889 | AX107: 1399164 | DG107: Communications | DH107: Industry and Capacity Development | DI107: 14 | DJ107: 3 | DK107: 4 | DL107: 1 | DM107: 1 | DN107: 1354 | DO107: 2 | DP107: 1900 | DQ107: 3 | DR107: 3550 | DS107: 4 | DT107: 4577 | DU107: 4 | DV107: 4636 | DW107: Communications|Industry and Capacity Development | DX107: 003 | DY107: 003 | DZ107: 003003 | EC107: 313 | ED107: 2 | EE107: 2 | EF107: Parliament | EG107: 4 | EH107: Support Services | EI107: 4 | EJ107: Information Communication and Technology | EK107: Current payments | EL107: Goods and services | EM107: Goods and services | EN107: 24073 | EO107: 25430 | EP107: 46279 | EQ107: 46279 | ER107: 46279 | ES107: 37306 | ET107: 42878 | EU107: 44552 | EW107: 0 | EX107: 0 | EY107: 41180 | EZ107: 42338 | FA107: 42501 | FB107: Parliament|Support Services | FC107: 002 | FD107: 004 | FE107: 004 | FF107: 002 | FG107: 002004 | FH107: 002002 | FI107: 2 | FJ107: 002004004002 | FK107: 002004004 | FL107: 002004002 | FT107: 5 | FU107: Home Affairs | FV107: 1 | FW107: Administration | FX107: 5 | FY107: Office Accommodation | GQ107: National Treasury | GR107: 7 | GS107: Civil and Military Pensions, Contributions to Funds and Other Benefits | GT107: 2 | GU107: Civil Pensions and Contributions to Funds | GV107: Injury on duty | GW107: Current | GX107: Social benefits | GY107: NAT | GZ107: National Treasury|Civil and Military Pensions, Contributions to Funds and Other Benefits|Civil Pensions and Contributions to Funds|Injury on duty|Current|Social benefits | HA107: 0 | HB107: 0 | HC107: 0 | HD107: 169 | HE107: 1
Y108: 3 | AA108: 3 | AB108: 42 | AC108: Centre for Public Service Innovation | AF108: George Tembo | AG108: (012) 315 5514 | AH108: George.Tembo@treasury.gov.za | AI108: Uvadhya Singh | AJ108: (012) 315 9030 | AK108: Uvadhya.Singh@treasury.gov.za | AP108: 23785 | AQ108: 24821 | AR108: 25917 | AS108: -0.04641661971 | AT108: 3 | AU108: Cooperative Governance | AV108: 352265 | AW108: 347828 | AX108: 331683 | DG108: Communications | DH108: Entity Oversight | DI108: 7 | DJ108: 0 | DK108: 1 | DL108: 1 | DM108: 1 | DN108: 294 | DO108: 1 | DP108: 369 | DQ108: 1 | DR108: 464 | DS108: 1 | DT108: 490 | DU108: 1 | DV108: 518 | DW108: Communications|Entity Oversight | DX108: 003 | DY108: 004 | DZ108: 003004 | EC108: 314 | ED108: 57 | EE108: 2 | EF108: Parliament | EG108: 4 | EH108: Support Services | EI108: 4 | EJ108: Information Communication and Technology | EK108: Payments for capital assets | EL108: Machinery and equipment | EM108: Other machinery and equipment | EN108: 420 | EO108: 228 | EP108: 8147 | EQ108: 8147 | ER108: 8147 | ES108: 8352 | ET108: 9123 | EU108: 9644 | EW108: 0 | EX108: 0 | EY108: 9123 | EZ108: 9644 | FA108: 10069 | FB108: Parliament|Support Services | FC108: 002 | FD108: 004 | FE108: 004 | FF108: 057 | FG108: 002004 | FH108: 002057 | FI108: 57 | FJ108: 002004004057 | FK108: 002004004 | FL108: 002004057 | FT108: 5 | FU108: Home Affairs | FV108: 2 | FW108: Citizen Affairs | FX108: 1 | FY108: Citizen Affairs Management | GQ108: National Treasury | GR108: 7 | GS108: Civil and Military Pensions, Contributions to Funds and Other Benefits | GT108: 2 | GU108: Civil Pensions and Contributions to Funds | GV108: Other benefits | GW108: Current | GX108: Social benefits | GY108: NAT | GZ108: National Treasury|Civil and Military Pensions, Contributions to Funds and Other Benefits|Civil Pensions and Contributions to Funds|Other benefits|Current|Social benefits | HA108: 0 | HB108: 0 | HC108: 0 | HD108: 169 | HE108: 1
Y109: 4 | AA109: 4 | AB109: 21 | AC109: Civilian Secretariat for the Police Service | AF109: Nompumelelo Radebe | AG109: (012) 315 5957 | AH109: Nompumelelo.Radebe@treasury.gov.za | AI109: Velisubuhle Buti | AJ109: (012) 395 6709 | AK109: Velisubuhle.Buti@treasury.gov.za | AP109: 103742 | AQ109: 103744 | AR109: 103740 | AS109: 0.0002689500771 | AT109: 4 | AU109: Government Communication and Information System | AV109: 275099 | AW109: 275144 | AX109: 275218 | DG109: Communications | DH109: Entity Oversight | DI109: 11 | DJ109: 0 | DK109: 1 | DL109: 0 | DM109: 0 | DN109: 0 | DO109: 1 | DP109: 495 | DQ109: 1 | DR109: 765 | DS109: 1 | DT109: 809 | DU109: 1 | DV109: 855 | DW109: Communications|Entity Oversight | DX109: 003 | DY109: 004 | DZ109: 003004 | EC109: 314 | ED109: 62 | EE109: 2 | EF109: Parliament | EG109: 4 | EH109: Support Services | EI109: 4 | EJ109: Information Communication and Technology | EK109: Payments for capital assets | EL109: Software and other intangible assets | EM109: Software and other intangible assets | EN109: 0 | EO109: 0 | EP109: 0 | EQ109: 0 | ER109: 0 | ES109: 0 | ET109: 0 | EU109: 0 | EW109: 0 | EX109: 0 | EY109: 0 | EZ109: 0 | FA109: 0 | FB109: Parliament|Support Services | FC109: 002 | FD109: 004 | FE109: 004 | FF109: 062 | FG109: 002004 | FH109: 002062 | FI109: 62 | FJ109: 002004004062 | FK109: 002004004 | FL109: 002004062 | FT109: 5 | FU109: Home Affairs | FV109: 2 | FW109: Citizen Affairs | FX109: 2 | FY109: Status Services | GQ109: National Treasury | GR109: 7 | GS109: Civil and Military Pensions, Contributions to Funds and Other Benefits | GT109: 2 | GU109: Civil Pensions and Contributions to Funds | GV109: Parliamentary Awards | GW109: Current | GX109: Social benefits | GY109: NAT | GZ109: National Treasury|Civil and Military Pensions, Contributions to Funds and Other Benefits|Civil Pensions and Contributions to Funds|Parliamentary Awards|Current|Social benefits | HA109: 0 | HB109: 0 | HC109: 0 | HD109: 175 | HE109: 1
Y110: 5 | AA110: 5 | AB110: 30 | AC110: Communications and Digital Technologies | AF110: Rezah Atcha | AG110: (012) 315 5287 | AH110: Rezah.Atcha@treasury.gov.za | AI110: Keitumetse Motshegwe | AJ110: (012) 395 6750 | AK110: keitumetse.motshegwe@treasury.gov.za | AP110: 304256 | AQ110: 302941 | AR110: 291288 | AS110: 0.00715110064 | AT110: 5 | AU110: Home Affairs | AV110: 3468985 | AW110: 3478066 | AX110: 3502938 | DG110: Communications | DH110: Entity Oversight | DI110: 12 | DJ110: 0 | DK110: 1 | DL110: 0 | DM110: 1 | DN110: 670 | DO110: 1 | DP110: 750 | DQ110: 1 | DR110: 1113 | DS110: 1 | DT110: 1177 | DU110: 1 | DV110: 1244 | DW110: Communications|Entity Oversight | DX110: 003 | DY110: 004 | DZ110: 003004 | EC110: 314 | ED110: 1 | EE110: 2 | EF110: Parliament | EG110: 4 | EH110: Support Services | EI110: 5 | EJ110: Institutional Support Services | EK110: Current payments | EL110: Compensation of employees | EM110: Compensation of employees | EN110: 89554 | EO110: 101564 | EP110: 105315 | EQ110: 105315 | ER110: 105315 | ES110: 130496 | ET110: 130568 | EU110: 135386 | EW110: 0 | EX110: 0 | EY110: 118598 | EZ110: 121098 | FA110: 121375 | FB110: Parliament|Support Services | FC110: 002 | FD110: 004 | FE110: 005 | FF110: 001 | FG110: 002004 | FH110: 002001 | FI110: 1 | FJ110: 002004005001 | FK110: 002004005 | FL110: 002004001 | FT110: 5 | FU110: Home Affairs | FV110: 2 | FW110: Citizen Affairs | FX110: 3 | FY110: Identification Services | GQ110: National Treasury | GR110: 7 | GS110: Civil and Military Pensions, Contributions to Funds and Other Benefits | GT110: 2 | GU110: Civil Pensions and Contributions to Funds | GV110: Pension benefits: President of South Africa | GW110: Current | GX110: Social benefits | GY110: NAT | GZ110: National Treasury|Civil and Military Pensions, Contributions to Funds and Other Benefits|Civil Pensions and Contributions to Funds|Pension benefits: President of South Africa|Current|Social benefits | HA110: 0 | HB110: 0 | HC110: 0 | HD110: 198 | HE110: 1
Y111: 6 | AA111: 6 | AB111: 3 | AC111: Cooperative Governance | AF111: Misaveni Ngobeni | AG111: (012) 315 5305 | AH111: misaveni.ngobeni@treasury.gov.za | AI111: Millicent Mulaudzi | AJ111: (012) 395 6576 | AK111: Millicent.Mulaudzi@treasury.gov.za | AP111: 352265 | AQ111: 347828 | AR111: 331683 | AS111: 0.004449870953 | AT111: 6 | AU111: International Relations and Cooperation | AV111: 2819545 | AW111: 2827273 | AX111: 2839854 | DG111: Communications | DH111: Entity Oversight | DI111: 13 | DJ111: 1 | DK111: 1 | DL111: 0 | DM111: 1 | DN111: 882 | DO111: 1 | DP111: 890 | DQ111: 1 | DR111: 1132 | DS111: 1 | DT111: 1196 | DU111: 1 | DV111: 1265 | DW111: Communications|Entity Oversight | DX111: 003 | DY111: 004 | DZ111: 003004 | EC111: 315 | ED111: 2 | EE111: 2 | EF111: Parliament | EG111: 4 | EH111: Support Services | EI111: 5 | EJ111: Institutional Support Services | EK111: Current payments | EL111: Goods and services | EM111: Goods and services | EN111: 19492 | EO111: 20659 | EP111: 64179 | EQ111: 64179 | ER111: 64179 | ES111: 47925 | ET111: 62944 | EU111: 65518 | EW111: 0 | EX111: 0 | EY111: 60451 | EZ111: 62264 | FA111: 62502 | FB111: Parliament|Support Services | FC111: 002 | FD111: 004 | FE111: 005 | FF111: 002 | FG111: 002004 | FH111: 002002 | FI111: 2 | FJ111: 002004005002 | FK111: 002004005 | FL111: 002004002 | FT111: 5 | FU111: Home Affairs | FV111: 2 | FW111: Citizen Affairs | FX111: 5 | FY111: Service Delivery to Provinces | GQ111: National Treasury | GR111: 7 | GS111: Civil and Military Pensions, Contributions to Funds and Other Benefits | GT111: 2 | GU111: Civil Pensions and Contributions to Funds | GV111: Political Office Bearers Pension Fund | GW111: Current | GX111: Social benefits | GY111: NAT | GZ111: National Treasury|Civil and Military Pensions, Contributions to Funds and Other Benefits|Civil Pensions and Contributions to Funds|Political Office Bearers Pension Fund|Current|Social benefits | HA111: 0 | HB111: 0 | HC111: 0 | HD111: 192 | HE111: 1
Y112: 7 | AA112: 7 | AB112: 22 | AC112: Correctional Services | AF112: Elvis Ramafamba | AG112: (012) 315 5204 | AH112: elvis.ramafamba@treasury.gov.za | AI112: Keabetswe Matlwa | AJ112: (012) 395 6678 | AK112: Keabetswe.Matlwa@treasury.gov.za | AP112: 17428197 | AQ112: 17369347 | AR112: 17028739 | AS112: 1.722474852e-05 | AT112: 7 | AU112: National School of Government | AV112: 58057 | AW112: 58056 | AX112: 58057 | DG112: Communications | DH112: Entity Oversight | DI112: 14 | DJ112: 0 | DK112: 1 | DL112: 0 | DM112: 1 | DN112: 988 | DO112: 1 | DP112: 1050 | DQ112: 1 | DR112: 1350 | DS112: 1 | DT112: 1687 | DU112: 1 | DV112: 1783 | DW112: Communications|Entity Oversight | DX112: 003 | DY112: 004 | DZ112: 003004 | EC112: 315 | ED112: 58 | EE112: 2 | EF112: Parliament | EG112: 4 | EH112: Support Services | EI112: 5 | EJ112: Institutional Support Services | EK112: Payments for capital assets | EL112: Heritage assets | EM112: Heritage assets | EN112: 0 | EO112: 0 | EP112: 0 | EQ112: 0 | ER112: 0 | ES112: 0 | ET112: 0 | EU112: 0 | EW112: 0 | EX112: 0 | EY112: 0 | EZ112: 0 | FA112: 0 | FB112: Parliament|Support Services | FC112: 002 | FD112: 004 | FE112: 005 | FF112: 058 | FG112: 002004 | FH112: 002058 | FI112: 58 | FJ112: 002004005058 | FK112: 002004005 | FL112: 002004058 | FT112: 5 | FU112: Home Affairs | FV112: 2 | FW112: Citizen Affairs | FX112: 8 | FY112: Electoral Commission | GQ112: National Treasury | GR112: 7 | GS112: Civil and Military Pensions, Contributions to Funds and Other Benefits | GT112: 2 | GU112: Civil Pensions and Contributions to Funds | GV112: Post-retirement medical scheme | GW112: Current | GX112: Social benefits | GY112: NAT | GZ112: National Treasury|Civil and Military Pensions, Contributions to Funds and Other Benefits|Civil Pensions and Contributions to Funds|Post-retirement medical scheme|Current|Social benefits | HA112: 0 | HB112: 0 | HC112: 0 | HD112: 185 | HE112: 1
Y113: 8 | AA113: 8 | AB113: 23 | AC113: Defence | AF113: Mashudu Bidzha | AG113: (012) 315 5344 | AH113: Mashudu.Bidzha@treasury.gov.za | AI113: Lesiba Ledwaba | AJ113: (012) 315 6660 | AK113: Lesiba.Ledwaba@treasury.gov.za | AP113: 29346642 | AQ113: 29366491 | AR113: 29649010 | AS113: 0.0007985162454 | AT113: 8 | AU113: National Treasury | AV113: 862826 | AW113: 861598 | AX113: 862286 | DG113: Communications | DH113: Entity Oversight | DI113: 15 | DJ113: 0 | DK113: 1 | DL113: 0 | DM113: 0 | DN113: 0 | DO113: 1 | DP113: 950 | DQ113: 1 | DR113: 1786 | DS113: 1 | DT113: 1889 | DU113: 1 | DV113: 1996 | DW113: Communications|Entity Oversight | DX113: 003 | DY113: 004 | DZ113: 003004 | EC113: 315 | ED113: 57 | EE113: 2 | EF113: Parliament | EG113: 4 | EH113: Support Services | EI113: 5 | EJ113: Institutional Support Services | EK113: Payments for capital assets | EL113: Machinery and equipment | EM113: Other machinery and equipment | EN113: 319 | EO113: 289 | EP113: 200 | EQ113: 200 | ER113: 200 | ES113: 322 | ET113: 224 | EU113: 237 | EW113: 0 | EX113: 0 | EY113: 224 | EZ113: 237 | FA113: 247 | FB113: Parliament|Support Services | FC113: 002 | FD113: 004 | FE113: 005 | FF113: 057 | FG113: 002004 | FH113: 002057 | FI113: 57 | FJ113: 002004005057 | FK113: 002004005 | FL113: 002004057 | FT113: 5 | FU113: Home Affairs | FV113: 2 | FW113: Citizen Affairs | FX113: 9 | FY113: Represented Political Parties’ Fund | GQ113: National Treasury | GR113: 7 | GS113: Civil and Military Pensions, Contributions to Funds and Other Benefits | GT113: 2 | GU113: Civil Pensions and Contributions to Funds | GV113: Post-retirement medical scheme: Parliamentary staff | GW113: Current | GX113: Social benefits | GY113: NAT | GZ113: National Treasury|Civil and Military Pensions, Contributions to Funds and Other Benefits|Civil Pensions and Contributions to Funds|Post-retirement medical scheme: Parliamentary staff|Current|Social benefits | HA113: 0 | HB113: 0 | HC113: 0 | HD113: 206 | HE113: 1
Y114: 9 | AA114: 9 | AB114: 31 | AC114: Employment and Labour | AF114: Judy Naidoo | AG114: (012) 315 5269 | AH114: Judy.Naidoo@treasury.gov.za | AP114: 1375657 | AQ114: 1384089 | AR114: 1384763 | AS114: 6.792878346e-06 | AT114: 9 | AU114: Planning, Monitoring and Evaluation | AV114: 294426 | AW114: 294426 | AX114: 294428 | DG114: Communications | DH114: Entity Oversight | DI114: 16 | DJ114: 0 | DK114: 1 | DL114: 0 | DM114: 0 | DN114: 0 | DO114: 1 | DP114: 1070 | DQ114: 1 | DR114: 2334 | DS114: 1 | DT114: 2209 | DU114: 1 | DV114: 2335 | DW114: Communications|Entity Oversight | DX114: 003 | DY114: 004 | DZ114: 003004 | EC114: 322 | ED114: 56 | EE114: 2 | EF114: Parliament | EG114: 4 | EH114: Support Services | EI114: 5 | EJ114: Institutional Support Services | EK114: Payments for capital assets | EL114: Machinery and equipment | EM114: Transport equipment | EN114: 0 | EO114: 0 | EP114: 0 | EQ114: 0 | ER114: 0 | ES114: 0 | ET114: 0 | EU114: 0 | EW114: 0 | EX114: 0 | EY114: 0 | EZ114: 0 | FA114: 0 | FB114: Parliament|Support Services | FC114: 002 | FD114: 004 | FE114: 005 | FF114: 056 | FG114: 002004 | FH114: 002056 | FI114: 56 | FJ114: 002004005056 | FK114: 002004005 | FL114: 002004056 | FT114: 5 | FU114: Home Affairs | FV114: 3 | FW114: Immigration Affairs | FX114: 1 | FY114: Immigration Affairs Management | GQ114: National Treasury | GR114: 7 | GS114: Civil and Military Pensions, Contributions to Funds and Other Benefits | GT114: 2 | GU114: Civil Pensions and Contributions to Funds | GV114: Special pensions | GW114: Current | GX114: Social benefits | GY114: NAT | GZ114: National Treasury|Civil and Military Pensions, Contributions to Funds and Other Benefits|Civil Pensions and Contributions to Funds|Special pensions|Current|Social benefits | HA114: 0 | HB114: 0 | HC114: 0 | HD114: 171 | HE114: 1
Y115: 10 | AA115: 10 | AB115: 32 | AC115: Environment, Forestry and Fisheries | AF115: Gcobisa Magazi | AG115: (012) 315 5320 | AH115: Gcobisa.Magazi@treasury.gov.za | AI115: Ashley Ramasimu | AJ115: (012) 315 5166 | AK115: Ashley.Ramasimu@treasury.gov.za | AP115: 1891419 | AQ115: 1881093 | AR115: 1889993 | AS115: 0.01420657864 | AT115: 10 | AU115: Public Enterprises | AV115: 175954 | AW115: 177453 | AX115: 179974 | DG115: Cooperative Governance And Traditional Affairs | DH115: Administration | DI115: 3 | DJ115: 24 | DK115: 24 | DL115: 0 | DM115: 24 | DN115: 5630 | DO115: 24 | DP115: 6375 | DQ115: 24 | DR115: 3752 | DS115: 24 | DT115: 3955 | DU115: 24 | DV115: 4184 | DW115: Cooperative Governance And Traditional Affairs|Administration | DX115: 004 | DY115: 001 | DZ115: 004001 | EC115: 322 | ED115: 1 | EE115: 2 | EF115: Parliament | EG115: 4 | EH115: Support Services | EI115: 6 | EJ115: Member's Support Services | EK115: Current payments | EL115: Compensation of employees | EM115: Compensation of employees | EN115: 0 | EO115: 9180 | EP115: 11298 | EQ115: 11298 | ER115: 11298 | ES115: 13285 | ET115: 14309 | EU115: 14842 | EW115: 0 | EX115: 0 | EY115: 12357 | EZ115: 12357 | FA115: 12357 | FB115: Parliament|Support Services | FC115: 002 | FD115: 004 | FE115: 006 | FF115: 001 | FG115: 002004 | FH115: 002001 | FI115: 1 | FJ115: 002004006001 | FK115: 002004006 | FL115: 002004001 | FT115: 5 | FU115: Home Affairs | FV115: 3 | FW115: Immigration Affairs | FX115: 2 | FY115: Admission Services | GQ115: National Treasury | GR115: 7 | GS115: Civil and Military Pensions, Contributions to Funds and Other Benefits | GT115: 2 | GU115: Civil Pensions and Contributions to Funds | GV115: United Kingdom tax | GW115: Current | GX115: Foreign governments and international organisations | GY115: NAT | GZ115: National Treasury|Civil and Military Pensions, Contributions to Funds and Other Benefits|Civil Pensions and Contributions to Funds|United Kingdom tax|Current|Foreign governments and international organisations | HA115: 0 | HB115: 0 | HC115: 0 | HD115: 209 | HE115: 1
Y116: 11 | AA116: 11 | AB116: 4 | AC116: Government Communication and Information System | AF116: Mokgatla Tema | AG116: (012) 315 5948 | AH116: Mokgatla.Tema@treasury.gov.za | AI116: Viwe Sobudula | AJ116: (0)12 315 5015 | AK116: Viwe.Sobudula@treasury.gov.za | AP116: 275099 | AQ116: 275144 | AR116: 275218 | AS116: 0.005050365382 | AT116: 11 | AU116: Public Service and Administration | AV116: 284324 | AW116: 289286 | AX116: 290747 | DG116: Cooperative Governance And Traditional Affairs | DH116: Administration | DI116: 4 | DJ116: 5 | DK116: 5 | DL116: 0 | DM116: 5 | DN116: 1372 | DO116: 5 | DP116: 1426 | DQ116: 4 | DR116: 852 | DS116: 4 | DT116: 898 | DU116: 4 | DV116: 950 | DW116: Cooperative Governance And Traditional Affairs|Administration | DX116: 004 | DY116: 001 | DZ116: 004001 | EC116: 322 | ED116: 2 | EE116: 2 | EF116: Parliament | EG116: 4 | EH116: Support Services | EI116: 6 | EJ116: Member's Support Services | EK116: Current payments | EL116: Goods and services | EM116: Goods and services | EN116: 0 | EO116: 1036 | EP116: 6968 | EQ116: 6968 | ER116: 6968 | ES116: 2507 | ET116: 2623 | EU116: 2724 | EW116: 0 | EX116: 0 | EY116: 2519 | EZ116: 2589 | FA116: 2598 | FB116: Parliament|Support Services | FC116: 002 | FD116: 004 | FE116: 006 | FF116: 002 | FG116: 002004 | FH116: 002002 | FI116: 2 | FJ116: 002004006002 | FK116: 002004006 | FL116: 002004002 | FT116: 5 | FU116: Home Affairs | FV116: 3 | FW116: Immigration Affairs | FX116: 3 | FY116: Immigration Services | GQ116: National Treasury | GR116: 7 | GS116: Civil and Military Pensions, Contributions to Funds and Other Benefits | GT116: 3 | GU116: Military Pensions and Other Benefits | GV116: Civil protection | GW116: Current | GX116: Social benefits | GY116: NAT | GZ116: National Treasury|Civil and Military Pensions, Contributions to Funds and Other Benefits|Military Pensions and Other Benefits|Civil protection|Current|Social benefits | HA116: 0 | HB116: 0 | HC116: 0 | HD116: 166 | HE116: 1
Y117: 12 | AA117: 12 | AB117: 18 | AC117: Health | AF117: Refiloe Thokoa | AG117: (012) 395 6559 | AH117: Refiloe.thokoa@treasury.gov.za | AI117: Jonatan Daven | AJ117: (012) 315 6711 | AK117: Jonatan.Daven@treasury.gov.za | AP117: 845256 | AQ117: 843047 | AR117: 850516 | AS117: 9.395184968e-06 | AT117: 12 | AU117: Public Service Commission | AV117: 212639 | AW117: 212875 | AX117: 212877 | DG117: Cooperative Governance And Traditional Affairs | DH117: Administration | DI117: 5 | DJ117: 18 | DK117: 18 | DL117: 0 | DM117: 18 | DN117: 5396 | DO117: 18 | DP117: 5612 | DQ117: 18 | DR117: 4210 | DS117: 18 | DT117: 4537 | DU117: 18 | DV117: 4800 | DW117: Cooperative Governance And Traditional Affairs|Administration | DX117: 004 | DY117: 001 | DZ117: 004001 | EC117: 323 | ED117: 57 | EE117: 2 | EF117: Parliament | EG117: 4 | EH117: Support Services | EI117: 6 | EJ117: Member's Support Services | EK117: Payments for capital assets | EL117: Machinery and equipment | EM117: Other machinery and equipment | EN117: 0 | EO117: 106 | EP117: 24 | EQ117: 24 | ER117: 24 | ES117: 18 | ET117: 26 | EU117: 28 | EW117: 0 | EX117: 0 | EY117: 26 | EZ117: 28 | FA117: 29 | FB117: Parliament|Support Services | FC117: 002 | FD117: 004 | FE117: 006 | FF117: 057 | FG117: 002004 | FH117: 002057 | FI117: 57 | FJ117: 002004006057 | FK117: 002004006 | FL117: 002004057 | FT117: 5 | FU117: Home Affairs | FV117: 3 | FW117: Immigration Affairs | FX117: 4 | FY117: Asylum Seekers | GQ117: National Treasury | GR117: 7 | GS117: Civil and Military Pensions, Contributions to Funds and Other Benefits | GT117: 3 | GU117: Military Pensions and Other Benefits | GV117: Military pensions: Ex-servicemen | GW117: Current | GX117: Social benefits | GY117: NAT | GZ117: National Treasury|Civil and Military Pensions, Contributions to Funds and Other Benefits|Military Pensions and Other Benefits|Military pensions: Ex-servicemen|Current|Social benefits | HA117: 0 | HB117: 0 | HC117: 0 | HD117: 182 | HE117: 1
Y118: 13 | AA118: 13 | AB118: 17 | AC118: Higher Education and Training | AF118: Spencer Janari | AG118: (012) 315 5436 | AH118: Spencer.Janari@treasury.gov.za | AI118: Barileng Sape | AJ118: (012) 406 9069 | AK118: barileng.sape@treasury.gov.za | AP118: 9444174 | AQ118: 9534825 | AR118: 9534816 | AS118: 0.001683199385 | AT118: 13 | AU118: Public Works and Infrastructure | AV118: 553058 | AW118: 551331 | AX118: 552259 | DG118: Cooperative Governance And Traditional Affairs | DH118: Administration | DI118: 6 | DJ118: 39 | DK118: 39 | DL118: 0 | DM118: 39 | DN118: 12118 | DO118: 39 | DP118: 12603 | DQ118: 35 | DR118: 11144 | DS118: 35 | DT118: 11746 | DU118: 35 | DV118: 12427 | DW118: Cooperative Governance And Traditional Affairs|Administration | DX118: 004 | DY118: 001 | DZ118: 004001 | EC118: 324 | ED118: 1 | EE118: 2 | EF118: Parliament | EG118: 5 | EH118: Associated Services | EI118: 1 | EJ118: Members Support Services | EK118: Current payments | EL118: Compensation of employees | EM118: Compensation of employees | EN118: 8597 | EO118: 0 | EP118: 0 | EQ118: 0 | ER118: 0 | ES118: 0 | ET118: 0 | EU118: 0 | EW118: 0 | EX118: 0 | EY118: 0 | EZ118: 0 | FA118: 0 | FB118: Parliament|Associated Services | FC118: 002 | FD118: 005 | FE118: 001 | FF118: 001 | FG118: 002005 | FH118: 002001 | FI118: 1 | FJ118: 002005001001 | FK118: 002005001 | FL118: 002005001 | FT118: 6 | FU118: International Relations and Cooperation | FV118: 1 | FW118: Administration | FX118: 1 | FY118: Ministry | GQ118: National Treasury | GR118: 7 | GS118: Civil and Military Pensions, Contributions to Funds and Other Benefits | GT118: 3 | GU118: Military Pensions and Other Benefits | GV118: Other benefits: Ex-servicemen | GW118: Current | GX118: Social benefits | GY118: NAT | GZ118: National Treasury|Civil and Military Pensions, Contributions to Funds and Other Benefits|Military Pensions and Other Benefits|Other benefits: Ex-servicemen|Current|Social benefits | HA118: 0 | HB118: 0 | HC118: 0 | HD118: 179 | HE118: 1
Y119: 14 | AA119: 14 | AB119: 5 | AC119: Home Affairs | AF119: Timothy Murwa | AG119: (012) 315 5002 | AH119: Timothy.Murwa@treasury.gov.za | AI119: Yamkela Ngewu | AJ119: (012) 406 9078 | AK119: Yamkela.Ngewu@treasury.gov.za | AP119: 3468985 | AQ119: 3478066 | AR119: 3502938 | AS119: 0.005207708028 | AT119: 14 | AU119: Statistics South Africa | AV119: 1480831 | AW119: 1482610 | AX119: 1490331 | DG119: Cooperative Governance And Traditional Affairs | DH119: Administration | DI119: 7 | DJ119: 9 | DK119: 9 | DL119: 0 | DM119: 9 | DN119: 3217 | DO119: 9 | DP119: 3554 | DQ119: 13 | DR119: 4457 | DS119: 13 | DT119: 4698 | DU119: 13 | DV119: 4970 | DW119: Cooperative Governance And Traditional Affairs|Administration | DX119: 004 | DY119: 001 | DZ119: 004001 | EC119: 324 | ED119: 2 | EE119: 2 | EF119: Parliament | EG119: 5 | EH119: Associated Services | EI119: 1 | EJ119: Members Support Services | EK119: Current payments | EL119: Goods and services | EM119: Goods and services | EN119: 1308 | EO119: 0 | EP119: 0 | EQ119: 0 | ER119: 0 | ES119: 0 | ET119: 0 | EU119: 0 | EW119: 0 | EX119: 0 | EY119: 0 | EZ119: 0 | FA119: 0 | FB119: Parliament|Associated Services | FC119: 002 | FD119: 005 | FE119: 001 | FF119: 002 | FG119: 002005 | FH119: 002002 | FI119: 2 | FJ119: 002005001002 | FK119: 002005001 | FL119: 002005002 | FT119: 6 | FU119: International Relations and Cooperation | FV119: 1 | FW119: Administration | FX119: 2 | FY119: Departmental Management | GQ119: National Treasury | GR119: 7 | GS119: Civil and Military Pensions, Contributions to Funds and Other Benefits | GT119: 3 | GU119: Military Pensions and Other Benefits | GV119: South African citizen force | GW119: Current | GX119: Social benefits | GY119: NAT | GZ119: National Treasury|Civil and Military Pensions, Contributions to Funds and Other Benefits|Military Pensions and Other Benefits|South African citizen force|Current|Social benefits | HA119: 0 | HB119: 0 | HC119: 0 | HD119: 177 | HE119: 1
Y120: 15 | AA120: 15 | AB120: 33 | AC120: Human Settlements | AF120: Lindiwe Ngcongwane | AG120: (012) 315 5357 | AH120: Lindiwe.Ngcongwane@treasury.gov.za | AP120: 403193 | AQ120: 403094 | AR120: 403176 | AS120: 0.04406366185 | AT120: 15 | AU120: Traditional Affairs | AV120: 82971 | AW120: 85263 | AX120: 89020 | DG120: Cooperative Governance And Traditional Affairs | DH120: Administration | DI120: 8 | DJ120: 16 | DK120: 16 | DL120: 0 | DM120: 16 | DN120: 6614 | DO120: 16 | DP120: 6877 | DQ120: 25 | DR120: 9475 | DS120: 25 | DT120: 9997 | DU120: 25 | DV120: 10577 | DW120: Cooperative Governance And Traditional Affairs|Administration | DX120: 004 | DY120: 001 | DZ120: 004001 | EC120: 332 | ED120: 57 | EE120: 2 | EF120: Parliament | EG120: 5 | EH120: Associated Services | EI120: 1 | EJ120: Members Support Services | EK120: Payments for capital assets | EL120: Machinery and equipment | EM120: Other machinery and equipment | EN120: 101 | EO120: 0 | EP120: 0 | EQ120: 0 | ER120: 0 | ES120: 0 | ET120: 0 | EU120: 0 | EW120: 0 | EX120: 0 | EY120: 0 | EZ120: 0 | FA120: 0 | FB120: Parliament|Associated Services | FC120: 002 | FD120: 005 | FE120: 001 | FF120: 057 | FG120: 002005 | FH120: 002057 | FI120: 57 | FJ120: 002005001057 | FK120: 002005001 | FL120: 002005057 | FT120: 6 | FU120: International Relations and Cooperation | FV120: 1 | FW120: Administration | FX120: 3 | FY120: Audit Services | GQ120: National Treasury | GR120: 8 | GS120: Revenue Administration | GT120: 1 | GU120: South African Revenue Service | GV120: South African Revenue Service: Machinery and equipment | GW120: Capital | GX120: Departmental agencies (non-business entities) | GY120: NAT | GZ120: National Treasury|Revenue Administration|South African Revenue Service|South African Revenue Service: Machinery and equipment|Capital|Departmental agencies (non-business entities) | HA120: 0 | HB120: 0 | HC120: 0 | HD120: 179 | HE120: 1
Y121: 16 | AA121: 16 | AB121: 24 | AC121: Independent Police Investigative Directorate | AF121: Nompumelelo Radebe | AG121: (012) 315 5957 | AH121: Nompumelelo.Radebe@treasury.gov.za | AI121: Velisubuhle Buti | AJ121: (012) 395 6709 | AK121: Velisubuhle.Buti@treasury.gov.za | AP121: 233795 | AQ121: 234099 | AR121: 239613 | AS121: 0.005325399358 | AT121: 16 | AU121: Basic Education | AV121: 538011 | AW121: 532730 | AX121: 535567 | DG121: Cooperative Governance And Traditional Affairs | DH121: Administration | DI121: 9 | DJ121: 21 | DK121: 21 | DL121: 0 | DM121: 21 | DN121: 9541 | DO121: 21 | DP121: 9923 | DQ121: 35 | DR121: 13848 | DS121: 35 | DT121: 14696 | DU121: 35 | DV121: 15548 | DW121: Cooperative Governance And Traditional Affairs|Administration | DX121: 004 | DY121: 001 | DZ121: 004001 | EC121: 332 | ED121: 51 | EE121: 2 | EF121: Parliament | EG121: 5 | EH121: Associated Services | EI121: 2 | EJ121: Political Party Support | EK121: Transfers and subsidies | EL121: Non-profit institutions | EM121: Non-profit institutions | EN121: 96630 | EO121: 102235 | EP121: 107960 | EQ121: 107960 | ER121: 107960 | ES121: 112149 | ET121: 118878 | EU121: 123301 | EW121: 0 | EX121: 0 | EY121: 114170 | EZ121: 117175 | FA121: 117625 | FB121: Parliament|Associated Services | FC121: 002 | FD121: 005 | FE121: 002 | FF121: 051 | FG121: 002005 | FH121: 002051 | FI121: 51 | FJ121: 002005002051 | FK121: 002005002 | FL121: 002005051 | FT121: 6 | FU121: International Relations and Cooperation | FV121: 1 | FW121: Administration | FX121: 4 | FY121: Financial Management | GQ121: National Treasury | GR121: 8 | GS121: Revenue Administration | GT121: 1 | GU121: South African Revenue Service | GV121: South African Revenue Service: Office of the Tax Ombud | GW121: Current | GX121: Departmental agencies (non-business entities) | GY121: NAT | GZ121: National Treasury|Revenue Administration|South African Revenue Service|South African Revenue Service: Office of the Tax Ombud|Current|Departmental agencies (non-business entities) | HA121: 0 | HB121: 0 | HC121: 0 | HD121: 179 | HE121: 1
Y122: 17 | AA122: 17 | AB122: 6 | AC122: International Relations and Cooperation | AF122: George Tembo | AG122: (012) 315 5514 | AH122: George.Tembo@treasury.gov.za | AI122: Mercy Mhlophe | AJ122: (012) 315 5598 | AK122: mercy.mhlope@treasury.gov.za | AP122: 2819545 | AQ122: 2827273 | AR122: 2839854 | AS122: -9.439082521e-07 | AT122: 17 | AU122: Higher Education and Training | AV122: 9444174 | AW122: 9534825 | AX122: 9534816 | CZ122: =+CQ122&CR122&CS122 ->  | DG122: Cooperative Governance And Traditional Affairs | DH122: Administration | DI122: 10 | DJ122: 0 | DK122: 0 | DL122: 0 | DM122: 0 | DN122: 0 | DO122: 0 | DP122: 0 | DQ122: 2 | DR122: 900 | DS122: 2 | DT122: 949 | DU122: 2 | DV122: 1004 | DW122: Cooperative Governance And Traditional Affairs|Administration | DX122: 004 | DY122: 001 | DZ122: 004001 | EC122: 332 | ED122: 51 | EE122: 2 | EF122: Parliament | EG122: 5 | EH122: Associated Services | EI122: 3 | EJ122: Constituency Support | EK122: Transfers and subsidies | EL122: Non-profit institutions | EM122: Non-profit institutions | EN122: 309360 | EO122: 327303 | EP122: 345632 | EQ122: 345632 | ER122: 345632 | ES122: 359043 | ET122: 380584 | EU122: 394742 | EW122: 0 | EX122: 0 | EY122: 365510 | EZ122: 375131 | FA122: 376572 | FB122: Parliament|Associated Services | FC122: 002 | FD122: 005 | FE122: 003 | FF122: 051 | FG122: 002005 | FH122: 002051 | FI122: 51 | FJ122: 002005003051 | FK122: 002005003 | FL122: 002005051 | FT122: 6 | FU122: International Relations and Cooperation | FV122: 1 | FW122: Administration | FX122: 5 | FY122: Corporate Services | GQ122: National Treasury | GR122: 8 | GS122: Revenue Administration | GT122: 1 | GU122: South African Revenue Service | GV122: South African Revenue Service: Operations | GW122: Current | GX122: Departmental agencies (non-business entities) | GY122: NAT | GZ122: National Treasury|Revenue Administration|South African Revenue Service|South African Revenue Service: Operations|Current|Departmental agencies (non-business entities) | HA122: 0 | HB122: 0 | HC122: 0 | HD122: 166 | HE122: 1
Y123: 18 | AA123: 18 | AB123: 25 | AC123: Justice and Constitutional Development | AF123: Werner Krause | AG123: (012) 315 5211 | AH123: werner.krause@treasury.gov.za | AI123: Thabo Selahle | AJ123: (012) 395 6610 | AK123: Thabo.Selahle@treasury.gov.za | AP123: 12228115 | AQ123: 12263032 | AR123: 12327844 | AS123: 0.008859529777 | AT123: 18 | AU123: Health | AV123: 845256 | AW123: 843047 | AX123: 850516 | DG123: Cooperative Governance And Traditional Affairs | DH123: Administration | DI123: 11 | DJ123: 46 | DK123: 46 | DL123: 0 | DM123: 46 | DN123: 20897 | DO123: 39 | DP123: 21105 | DQ123: 35 | DR123: 26931 | DS123: 35 | DT123: 28385 | DU123: 35 | DV123: 30031 | DW123: Cooperative Governance And Traditional Affairs|Administration | DX123: 004 | DY123: 001 | DZ123: 004001 | EC123: 333 | ED123: 51 | EE123: 2 | EF123: Parliament | EG123: 5 | EH123: Associated Services | EI123: 4 | EJ123: Party Leadership Support | EK123: Transfers and subsidies | EL123: Non-profit institutions | EM123: Non-profit institutions | EN123: 8700 | EO123: 9205 | EP123: 9720 | EQ123: 9720 | ER123: 9720 | ES123: 10097 | ET123: 10703 | EU123: 11099 | EW123: 0 | EX123: 0 | EY123: 10279 | EZ123: 10548 | FA123: 10588 | FB123: Parliament|Associated Services | FC123: 002 | FD123: 005 | FE123: 004 | FF123: 051 | FG123: 002005 | FH123: 002051 | FI123: 51 | FJ123: 002005004051 | FK123: 002005004 | FL123: 002005051 | FT123: 6 | FU123: International Relations and Cooperation | FV123: 1 | FW123: Administration | FX123: 6 | FY123: Diplomatic Training, Research and Development | GQ123: National Treasury | GR123: 9 | GS123: Financial Intelligence and State Security | GT123: 1 | GU123: Financial Intelligence Centre | GV123: Financial Intelligence Centre: Machinery and equipment | GW123: Capital | GX123: Departmental agencies (non-business entities) | GY123: NAT | GZ123: National Treasury|Financial Intelligence and State Security|Financial Intelligence Centre|Financial Intelligence Centre: Machinery and equipment|Capital|Departmental agencies (non-business entities) | HA123: 0 | HB123: 0 | HC123: 0 | HD123: 198 | HE123: 1
Y124: 19 | AA124: 19 | AB124: 26 | AC124: Military Veterans | AF124: Mashudu Bidzha | AG124: (012) 315 5344 | AH124: Mashudu.Bidzha@treasury.gov.za | AI124: Lesiba Ledwaba | AJ124: (012) 315 6660 | AK124: Lesiba.Ledwaba@treasury.gov.za | AP124: 126866 | AQ124: 126734 | AR124: 130736 | AS124: 0.00438052303 | AT124: 19 | AU124: Social Development | AV124: 500654 | AW124: 501310 | AX124: 503506 | DG124: Cooperative Governance And Traditional Affairs | DH124: Administration | DI124: 12 | DJ124: 5 | DK124: 5 | DL124: 0 | DM124: 5 | DN124: 3106 | DO124: 5 | DP124: 3230 | DQ124: 8 | DR124: 6529 | DS124: 8 | DT124: 6982 | DU124: 8 | DV124: 7387 | DW124: Cooperative Governance And Traditional Affairs|Administration | DX124: 004 | DY124: 001 | DZ124: 004001 | EC124: 333 | ED124: 1 | EE124: 2 | EF124: Parliament | EG124: 5 | EH124: Associated Services | EI124: 5 | EJ124: National Assembly Members’ Facilities | EK124: Current payments | EL124: Compensation of employees | EM124: Compensation of employees | EN124: 54149 | EO124: 56386 | EP124: 62000 | EQ124: 62000 | ER124: 62000 | ES124: 67580 | ET124: 73662 | EU124: 76412 | EW124: 0 | EX124: 0 | EY124: 62857 | EZ124: 62856 | FA124: 62856 | FB124: Parliament|Associated Services | FC124: 002 | FD124: 005 | FE124: 005 | FF124: 001 | FG124: 002005 | FH124: 002001 | FI124: 1 | FJ124: 002005005001 | FK124: 002005005 | FL124: 002005001 | FT124: 6 | FU124: International Relations and Cooperation | FV124: 1 | FW124: Administration | FX124: 7 | FY124: Foreign Fixed Assets Management | GQ124: National Treasury | GR124: 9 | GS124: Financial Intelligence and State Security | GT124: 1 | GU124: Financial Intelligence Centre | GV124: Financial Intelligence Centre: Operations | GW124: Current | GX124: Departmental agencies (non-business entities) | GY124: NAT | GZ124: National Treasury|Financial Intelligence and State Security|Financial Intelligence Centre|Financial Intelligence Centre: Operations|Current|Departmental agencies (non-business entities) | HA124: 0 | HB124: 0 | HC124: 0 | HD124: 185 | HE124: 1
Y125: 20 | AA125: 20 | AB125: 34 | AC125: Mineral Resources and Energy | AF125: Rezah Atcha | AG125: (012) 315 5287 | AH125: Rezah.Atcha@treasury.gov.za | AI125: Nomagugu Madikane | AJ125: (012) 315 5312 | AK125: Nomagugu.Madikane@treasury.gov.za | AP125: 1037124 | AQ125: 1037127 | AR125: 1037131 | AS125: 0.007732886824 | AT125: 20 | AU125: Women, Youth and Persons with Disabilities | AV125: 111284 | AW125: 111084 | AX125: 111943 | DG125: Cooperative Governance And Traditional Affairs | DH125: Administration | DI125: 13 | DJ125: 29 | DK125: 29 | DL125: 0 | DM125: 29 | DN125: 25290 | DO125: 29 | DP125: 26351 | DQ125: 36 | DR125: 30688 | DS125: 36 | DT125: 32455 | DU125: 36 | DV125: 34337 | DW125: Cooperative Governance And Traditional Affairs|Administration | DX125: 004 | DY125: 001 | DZ125: 004001 | EC125: 333 | ED125: 2 | EE125: 2 | EF125: Parliament | EG125: 5 | EH125: Associated Services | EI125: 5 | EJ125: National Assembly Members’ Facilities | EK125: Current payments | EL125: Goods and services | EM125: Goods and services | EN125: 158406 | EO125: 169692 | EP125: 133940 | EQ125: 133940 | ER125: 133940 | ES125: 141976 | ET125: 150734 | EU125: 156386 | EW125: 0 | EX125: 0 | EY125: 144763 | EZ125: 148616 | FA125: 149188 | FB125: Parliament|Associated Services | FC125: 002 | FD125: 005 | FE125: 005 | FF125: 002 | FG125: 002005 | FH125: 002002 | FI125: 2 | FJ125: 002005005002 | FK125: 002005005 | FL125: 002005002 | FT125: 6 | FU125: International Relations and Cooperation | FV125: 1 | FW125: Administration | FX125: 8 | FY125: Office Accommodation | GQ125: National Treasury | GR125: 9 | GS125: Financial Intelligence and State Security | GT125: 2 | GU125: Secret Services | GV125: Secret Services: Machinery and equipment | GW125: Capital | GX125: Departmental agencies (non-business entities) | GY125: NAT | GZ125: National Treasury|Financial Intelligence and State Security|Secret Services|Secret Services: Machinery and equipment|Capital|Departmental agencies (non-business entities) | HA125: 0 | HB125: 0 | HC125: 0 | HD125: 170 | HE125: 1
... 156 more rows

Sheet Help
C3: Content (Click on topic to view) | D3: =" "&Indi1 -> Glossary -part2 | Q3: =COUNTA(R5:R16) -> 12 | R3: Total number of DescriptBox
Q4: 12 | R4: =CHOOSE(Q4,R5,R6,R7,R8,R9,R10,R11,R12,R13,R14,R15,R16) -> Glossary -part2
C5: 1. | Q5: 1 | R5: Introduction
Q6: 2 | R6: General workings
Q7: 3 | R7: Cover sheet
C8: 2. | Q8: 4 | R8: Summary sheet
Q9: 5 | R9: Programme sheets
Q10: 6 | R10: Grants Admin, Budget Tracking, NMOG, Function Shifts, Indirect grants
C11: 3. | Q11: 7 | R11: Performance Indicators, Personnel, Receipts
Q12: 8 | R12: Analysis, Infrastructure, ODA, Deviations, Expenditure Trends
Q13: 9 | R13: Department Information, Training, PPP Projects & Checks
C14: 4. | Q14: 10 | R14: Transfers & subsidies
Q15: 11 | R15: Glossary
Q16: 12 | R16: Glossary -part2
C17: 5.
C20: 6.
C23: 7.
C27: 8.
C29: 9.
C33: 10.
C35: 11.

Sheet Settings (hidden)
A1: ENE
A2: 2
A3: 2
A5: =IF($A$4=TRUE,"FALSE",IF($A$3=1,"TRUE","FALSE")) -> FALSE
I11: ECONOMIC CLASSIFICATION
I12: Type "Y" to show, "N" to hide (Controls unused classification rows to be hidden across the database) | R12: Check: Hidden values assigned
I13: =SUMPRODUCT(Summary!$I$61:$AU$143*(Summary!$F$61:$F$143=Settings!$K13)) -> 4357732.914 | J13: y | K13: Current payments | R13: =IF(AND(J13<>"y",I13<>0),"Incorrectly hidden Row, revise settings", "") -> 
I14: =SUMPRODUCT(Summary!$I$61:$AU$143*(Summary!$F$61:$F$143=Settings!$K14)) -> 2761138.575 | J14: y | K14: Compensation of employees
I15: =SUMPRODUCT(Summary!$I$61:$AU$143*(Summary!$F$61:$F$143=Settings!$K15)) -> 2530249.385 | J15: y | K15: Salaries and wages
I16: =SUMPRODUCT(Summary!$I$61:$AU$143*(Summary!$F$61:$F$143=Settings!$K16)) -> 230889.19 | J16: y | K16: Social contributions
I17: =SUMPRODUCT(Summary!$I$61:$AU$143*(Summary!$F$61:$F$143=Settings!$K17)) -> 1596594.339 | J17: y | K17: Goods and services
I18: =SUMPRODUCT(Summary!$I$61:$AU$143*(Summary!$F$61:$F$143=Settings!$K18)) -> 12605.87262 | J18: y | K18: Administrative fees
I19: =SUMPRODUCT(Summary!$I$61:$AU$143*(Summary!$F$61:$F$143=Settings!$K19)) -> 8001.463977 | J19: y | K19: Advertising
I20: =SUMPRODUCT(Summary!$I$61:$AU$143*(Summary!$F$61:$F$143=Settings!$K20)) -> 6523.258095 | J20: y | K20: Minor assets
I21: =SUMPRODUCT(Summary!$I$61:$AU$143*(Summary!$F$61:$F$143=Settings!$K21)) -> 73506.68655 | J21: y | K21: Audit costs: External | R21: =IF(AND(J21<>"y",I21<>0),"Incorrectly hidden Row, revise settings", "") -> 
I22: =SUMPRODUCT(Summary!$I$61:$AU$143*(Summary!$F$61:$F$143=Settings!$K22)) -> 13562.12768 | J22: y | K22: Bursaries: Employees
I23: =SUMPRODUCT(Summary!$I$61:$AU$143*(Summary!$F$61:$F$143=Settings!$K23)) -> 4391.518736 | J23: y | K23: Catering: Departmental activities
I24: =SUMPRODUCT(Summary!$I$61:$AU$143*(Summary!$F$61:$F$143=Settings!$K24)) -> 54706.83753 | J24: y | K24: Communication (G&S)
I25: =SUMPRODUCT(Summary!$I$61:$AU$143*(Summary!$F$61:$F$143=Settings!$K25)) -> 91100.44383 | J25: y | K25: Computer services
I26: =SUMPRODUCT(Summary!$I$61:$AU$143*(Summary!$F$61:$F$143=Settings!$K26)) -> 499152.967 | J26: y | K26: Consultants: Business and advisory services
I27: =SUMPRODUCT(Summary!$I$61:$AU$143*(Summary!$F$61:$F$143=Settings!$K27)) -> 189 | J27: y | K27: Infrastructure and planning services
I28: =SUMPRODUCT(Summary!$I$61:$AU$143*(Summary!$F$61:$F$143=Settings!$K28)) -> 0 | J28: y | K28: Laboratory services
I29: =SUMPRODUCT(Summary!$I$61:$AU$143*(Summary!$F$61:$F$143=Settings!$K29)) -> 73189.028 | J29: y | K29: Legal services (G&S)
I30: =SUMPRODUCT(Summary!$I$61:$AU$143*(Summary!$F$61:$F$143=Settings!$K30)) -> 28762.94937 | J30: y | K30: Science and technological services
I31: =SUMPRODUCT(Summary!$I$61:$AU$143*(Summary!$F$61:$F$143=Settings!$K31)) -> 26775.99334 | J31: y | K31: Contractors
I32: =SUMPRODUCT(Summary!$I$61:$AU$143*(Summary!$F$61:$F$143=Settings!$K32)) -> 4853.341733 | J32: y | K32: Agency and support/outsourced services
I33: =SUMPRODUCT(Summary!$I$61:$AU$143*(Summary!$F$61:$F$143=Settings!$K33)) -> 57.62588572 | J33: y | K33: Entertainment
I34: =SUMPRODUCT(Summary!$I$61:$AU$143*(Summary!$F$61:$F$143=Settings!$K34)) -> 15180.83558 | J34: y | K34: Fleet services (including government motor transport)
J35: y | K35: Housing
J36: y | K36: Inventory: Clothing material and accessories
J37: y | K37: Inventory: Farming supplies
I38: =SUMPRODUCT(Summary!$I$61:$AU$143*(Summary!$F$61:$F$143=Settings!$K38)) -> 0 | J38: y | K38: Inventory: Food and food supplies
I39: =SUMPRODUCT(Summary!$I$61:$AU$143*(Summary!$F$61:$F$143=Settings!$K39)) -> 0 | J39: y | K39: Inventory: Fuel, oil and gas
I40: =SUMPRODUCT(Summary!$I$61:$AU$143*(Summary!$F$61:$F$143=Settings!$K40)) -> 0 | J40: y | K40: Inventory: Learner and teacher support material
I41: =SUMPRODUCT(Summary!$I$61:$AU$143*(Summary!$F$61:$F$143=Settings!$K41)) -> 0 | J41: y | K41: Inventory: Materials and supplies
I42: =SUMPRODUCT(Summary!$I$61:$AU$143*(Summary!$F$61:$F$143=Settings!$K42)) -> 0 | J42: y | K42: Inventory: Medical supplies
I43: =SUMPRODUCT(Summary!$I$61:$AU$143*(Summary!$F$61:$F$143=Settings!$K43)) -> 0 | J43: y | K43: Inventory: Medicine
I44: =SUMPRODUCT(Summary!$I$61:$AU$143*(Summary!$F$61:$F$143=Settings!$K44)) -> 0 | J44: y | K44: Medsas inventory interface
I45: =SUMPRODUCT(Summary!$I$61:$AU$143*(Summary!$F$61:$F$143=Settings!$K45)) -> 0 | J45: y | K45: Inventory: Other supplies
I46: =SUMPRODUCT(Summary!$I$61:$AU$143*(Summary!$F$61:$F$143=Settings!$K46)) -> 8689.041182 | J46: y | K46: Consumable supplies
I47: =SUMPRODUCT(Summary!$I$61:$AU$143*(Summary!$F$61:$F$143=Settings!$K47)) -> 22343.42965 | J47: y | K47: Consumables: Stationery, printing and office supplies
I48: =SUMPRODUCT(Summary!$I$61:$AU$143*(Summary!$F$61:$F$143=Settings!$K48)) -> 210110.8638 | J48: y | K48: Operating leases
I49: =SUMPRODUCT(Summary!$I$61:$AU$143*(Summary!$F$61:$F$143=Settings!$K49)) -> 7617.998444 | J49: y | K49: Rental and hiring
I50: =SUMPRODUCT(Summary!$I$61:$AU$143*(Summary!$F$61:$F$143=Settings!$K50)) -> 71738.86312 | J50: y | K50: Property payments
I51: =SUMPRODUCT(Summary!$I$61:$AU$143*(Summary!$F$61:$F$143=Settings!$K51)) -> 36835.77971 | J51: y | K51: Transport provided: Departmental activity
I52: =SUMPRODUCT(Summary!$I$61:$AU$143*(Summary!$F$61:$F$143=Settings!$K52)) -> 242873.7781 | J52: y | K52: Travel and subsistence
I53: =SUMPRODUCT(Summary!$I$61:$AU$143*(Summary!$F$61:$F$143=Settings!$K53)) -> 21074.65128 | J53: y | K53: Training and development
I54: =SUMPRODUCT(Summary!$I$61:$AU$143*(Summary!$F$61:$F$143=Settings!$K54)) -> 48887.21774 | J54: y | K54: Operating payments
I55: =SUMPRODUCT(Summary!$I$61:$AU$143*(Summary!$F$61:$F$143=Settings!$K55)) -> 13862.76555 | J55: y | K55: Venues and facilities
I56: =SUMPRODUCT(Summary!$I$61:$AU$143*(Summary!$F$61:$F$143=Settings!$K56)) -> 0 | J56: y | K56: Interest and rent on land
I57: =SUMPRODUCT(Summary!$I$61:$AU$143*(Summary!$F$61:$F$143=Settings!$K57)) -> 0 | J57: y | K57: Interest (Incl. interest on unitary payments (PPP))
I58: =SUMPRODUCT(Summary!$I$61:$AU$143*(Summary!$F$61:$F$143=Settings!$K58)) -> 0 | J58: y | K58: Rent on land
I59: =SUMPRODUCT(Summary!$I$61:$AU$143*(Summary!$F$61:$F$143=Settings!$K59)) -> 21519 | J59: y | K59: Transfers and subsidies
I60: =SUMPRODUCT(Summary!$I$61:$AU$143*(Summary!$F$61:$F$143=Settings!$K60)) -> 275 | J60: y | K60: Provinces and municipalities
I61: =SUMPRODUCT(Summary!$I$61:$AU$143*(Summary!$F$61:$F$143=Settings!$K61)) -> 0 | J61: y | K61: Provinces
I62: =SUMPRODUCT(Summary!$I$61:$AU$143*(Summary!$F$61:$F$143=Settings!$K62)) -> 0 | J62: y | K62: Provincial Revenue Funds
I63: =SUMPRODUCT(Summary!$I$61:$AU$143*(Summary!$F$61:$F$143=Settings!$K63)) -> 0 | J63: y | K63: Provincial agencies and funds
I64: =SUMPRODUCT(Summary!$I$61:$AU$143*(Summary!$F$61:$F$143=Settings!$K64)) -> 275 | J64: y | K64: Municipalities
I65: =SUMPRODUCT(Summary!$I$61:$AU$143*(Summary!$F$61:$F$143=Settings!$K65)) -> 275 | J65: y | K65: Municipal bank accounts
I66: =SUMPRODUCT(Summary!$I$61:$AU$143*(Summary!$F$61:$F$143=Settings!$K66)) -> 0 | J66: y | K66: Municipal agencies and funds
I67: =SUMPRODUCT(Summary!$I$61:$AU$143*(Summary!$F$61:$F$143=Settings!$K67)) -> 0 | J67: y | K67: Departmental agencies and accounts
I68: =SUMPRODUCT(Summary!$I$61:$AU$143*(Summary!$F$61:$F$143=Settings!$K68)) -> 0 | J68: y | K68: Social security funds
I69: =SUMPRODUCT(Summary!$I$61:$AU$143*(Summary!$F$61:$F$143=Settings!$K69)) -> 0 | J69: y | K69: Departmental agencies (non-business entities)
I70: =SUMPRODUCT(Summary!$I$61:$AU$143*(Summary!$F$61:$F$143=Settings!$K70)) -> 0 | J70: y | K70: Higher education institutions
I71: =SUMPRODUCT(Summary!$I$61:$AU$143*(Summary!$F$61:$F$143=Settings!$K71)) -> 0 | J71: y | K71: Foreign governments and international organisations
I72: =SUMPRODUCT(Summary!$I$61:$AU$143*(Summary!$F$61:$F$143=Settings!$K72)) -> 7576 | J72: y | K72: Public corporations and private enterprises
I73: =SUMPRODUCT(Summary!$I$61:$AU$143*(Summary!$F$61:$F$143=Settings!$K73)) -> 5953 | J73: y | K73: Public corporations
I74: =SUMPRODUCT(Summary!$I$61:$AU$143*(Summary!$F$61:$F$143=Settings!$K74)) -> 0 | J74: y | K74: Subsidies on products and production (pc)
I75: =SUMPRODUCT(Summary!$I$61:$AU$143*(Summary!$F$61:$F$143=Settings!$K75)) -> 5953 | J75: y | K75: Other transfers to public corporations
I76: =SUMPRODUCT(Summary!$I$61:$AU$143*(Summary!$F$61:$F$143=Settings!$K76)) -> 1623 | J76: y | K76: Private enterprises
I77: =SUMPRODUCT(Summary!$I$61:$AU$143*(Summary!$F$61:$F$143=Settings!$K77)) -> 0 | J77: y | K77: Subsidies on products and production (pe)
I78: =SUMPRODUCT(Summary!$I$61:$AU$143*(Summary!$F$61:$F$143=Settings!$K78)) -> 1623 | J78: y | K78: Other transfers to private enterprises
I79: =SUMPRODUCT(Summary!$I$61:$AU$143*(Summary!$F$61:$F$143=Settings!$K79)) -> 0 | J79: y | K79: Non-profit institutions | R79: =IF(AND(J79<>"y",I79<>0),"Incorrectly hidden Row, revise settings", "") -> 
I80: =SUMPRODUCT(Summary!$I$61:$AU$143*(Summary!$F$61:$F$143=Settings!$K80)) -> 13668 | J80: y | K80: Households
I81: =SUMPRODUCT(Summary!$I$61:$AU$143*(Summary!$F$61:$F$143=Settings!$K81)) -> 13501 | J81: y | K81: Social benefits
I82: =SUMPRODUCT(Summary!$I$61:$AU$143*(Summary!$F$61:$F$143=Settings!$K82)) -> 167 | J82: y | K82: Other transfers to households
I83: =SUMPRODUCT(Summary!$I$61:$AU$143*(Summary!$F$61:$F$143=Settings!$K83)) -> 68199 | J83: y | K83: Payments for capital assets
I84: =SUMPRODUCT(Summary!$I$61:$AU$143*(Summary!$F$61:$F$143=Settings!$K84)) -> 0 | J84: y | K84: Buildings and other fixed structures
I85: =SUMPRODUCT(Summary!$I$61:$AU$143*(Summary!$F$61:$F$143=Settings!$K85)) -> 0 | J85: y | K85: Buildings
I86: =SUMPRODUCT(Summary!$I$61:$AU$143*(Summary!$F$61:$F$143=Settings!$K86)) -> 0 | J86: y | K86: Other fixed structures
I87: =SUMPRODUCT(Summary!$I$61:$AU$143*(Summary!$F$61:$F$143=Settings!$K87)) -> 67465 | J87: y | K87: Machinery and equipment
I88: =SUMPRODUCT(Summary!$I$61:$AU$143*(Summary!$F$61:$F$143=Settings!$K88)) -> 0 | J88: y | K88: Transport equipment
I89: =SUMPRODUCT(Summary!$I$61:$AU$143*(Summary!$F$61:$F$143=Settings!$K89)) -> 67465 | J89: y | K89: Other machinery and equipment
I90: =SUMPRODUCT(Summary!$I$61:$AU$143*(Summary!$F$61:$F$143=Settings!$K90)) -> 0 | J90: y | K90: Heritage assets
I91: =SUMPRODUCT(Summary!$I$61:$AU$143*(Summary!$F$61:$F$143=Settings!$K91)) -> 0 | J91: y | K91: Specialised military assets
I92: =SUMPRODUCT(Summary!$I$61:$AU$143*(Summary!$F$61:$F$143=Settings!$K92)) -> 0 | J92: y | K92: Biological assets
I93: =SUMPRODUCT(Summary!$I$61:$AU$143*(Summary!$F$61:$F$143=Settings!$K93)) -> 0 | J93: y | K93: Land and sub-soil assets
I94: =SUMPRODUCT(Summary!$I$61:$AU$143*(Summary!$F$61:$F$143=Settings!$K94)) -> 734 | J94: y | K94: Software and other intangible assets
I95: =SUMPRODUCT(Summary!$I$61:$AU$143*(Summary!$F$61:$F$143=Settings!$K95)) -> 367920889 | J95: y | K95: Payments for financial assets
R96: =COUNTBLANK(R13:R95) -> 83
C1313: View Selection: MTEC / ENE
C1314: View dependent on current process for which template is in use

Sheet Summary
A1: A | B1: B | C1: C | D1: D | E1: E | F1: F | G1: G | I1: H | J1: I | K1: J | L1: K | M1: L | N1: M | O1: N | P1: O | Q1: P | R1: Q | T1: R | U1: S | V1: T | W1: W | X1: X | AA1: Y | AB1: Z | AC1: AA | AD1: AB | AE1: AC | AF1: AF | AG1: AG | AJ1: AH | AK1: AI | AL1: AJ | AM1: AK | AN1: AL
A3: P's created | B3: =COUNTIF(B31:B45,"<>0") -> 3 | BK3: SheetList
A4: P's listed | B4: =COUNTIF(C31:C45,"<>0") -> 3 | BK4: 1
A5: P'Var | B5: =B4-B3 -> 0 | F5: =IF(G5="","",IF($B$5>0,"No. of programme units to create","No. of programme units to delete")) ->  | G5: =IF(B4-B3=0,"",IF(B4-B3<0,B3-B4,B4-B3)) ->  | BK5: 2
A6: Check | B6: =B4-MAX(B31:B45) -> 0 | F6: Vote no. | G6: =MyVoteNo -> 10 | BK6: 3
A7: Check2 | B7: =MAX(D60:D63) -> 0 | F7: Department name: | G7: =MyDeptName -> Public Enterprises | BK7: 4
A8: 1 | F8: Executive Authority: | G8: Pravin Gordhan | BK8: 5
F9: Accounting Officer: | G9: Kgathatso Tlhakudi | BK9: 6
BK10: 7
F11: Purpose: | BK11: 8
F12: Drive investment, productivity and transformation in the department’s portfolio of state-owned companies to unlock growth, drive industrialisation, create jobs and develop skills. | BK12: 9
BK13: 10
A14: 1 | I14: =MyYearP1 -> 2021/22 | J14: =MyYearP2 -> 2022/23 | K14: =MyYearP3 -> 2023/24 | BK14: 11
A15: 1 | F15: Departmental Realigned Indicative Baseline | I15: =IndiBL1 -> 4598874 | J15: =IndiBL2 -> 2071587 | K15: =IndiBL3 -> 297553 | BK15: 12
A16: 1 | F16: Variance (Departmental Realigned Indicative Baseline less Input) | I16: =I15-Y56 -> 0 | J16: =J15-AH56 -> 0 | K16: =K15-AQ56 -> 0 | BK16: 13
A17: 1 | F17: Revised departmental baseline | I17: =+Cover!$AV$23 -> 4598874 | J17: =+Cover!$AW$23 -> 2071587 | K17: =+Cover!$AX$23 -> 297553 | BK17: 14
A18: 1 | F18: Variance (Revised departmental baseline less Input) | I18: =I17-AB56 -> 0 | J18: =J17-AK56 -> 0 | K18: =K17-AT56 -> 0 | BK18: 15
A19: 1 | F19: Compensation of employees Indicative Baseline | I19: =+Cover!$AP$104 -> 175954 | J19: =+Cover!$AQ$104 -> 177453 | K19: =+Cover!$AR$104 -> 179974 | BK19: Direct_charges
A20: 1 | F20: Variance (Personnel budget indicative baseline less Input) | I20: =I19-SUM('1:Direct_charges'!$U$75) -> 0 | J20: =J19-SUM('1:Direct_charges'!$AD$75) -> 0 | K20: =K19-SUM('1:Direct_charges'!$AM$75) -> 0
A21: 1 | F21: Compensation of employees ceiling (Revised baseline) | I21: =+Cover!$AV$104 -> 175954 | J21: =+Cover!$AW$104 -> 177453 | K21: =+Cover!$AX$104 -> 179974
A22: 1 | F22: Variance (Revised personnel budget less Input) | I22: =I21-SUM('1:Direct_charges'!$AB$75) -> 0 | J22: =J21-SUM('1:Direct_charges'!$AK$75) -> 0 | K22: =K21-SUM('1:Direct_charges'!$AT$75) -> 0
A23: 1
A24: 1
A25: 1 | AE25: =IF(AND(-$AE$46<(Reprioritisation!$AA$10*$AD$46),$AE$46<>0),"You have not reached the required 3% of baseline realignment","") ->  | AN25: =IF(AND(-$AN$46<(Reprioritisation!$AB$10*$AM$46),$AN$46<>0),"You have not reached the required 5% of baseline realignment","") -> 
A26: 1 | F26: =IF(COUNTIF(I156:AU156,">0.5")+COUNTIF(I156:AU156,"<-0.49999")<>0,"Inconsistencies in programmes sheets","") ->  | I26: =MyYearM3 -> 2017/18 | J26: =MyYearM2 -> 2018/19 | K26: =MyYearM1 -> 2019/20 | M26: =MyYear0 -> 2020/21 | U26: =MyYearP1 -> 2021/22 | AD26: =MyYearP2 -> 2022/23 | AM26: =MyYearP3 -> 2023/24 | AW26: =MyYear0 -> 2020/21
A27: 1 | F27: =IF(COUNTIF(I154:AU154,">0.5")+COUNTIF(I154:AU154,"<-0.49999")<>0,"Inconsistencies between programmes and economic classification","") ->  | I27: Audited outcome | J27: Audited outcome | K27: Adjusted appropriation | L27: =IF(Settings!$A$3=2,"Audited outcome","Audited outcome") -> Audited outcome | M27: Main appropriation | N27: Adjustments | R27: Adjusted Appropriation | S27: Estimated under / (over) spending | T27: Revised Estimate | U27: Indicative baseline | V27: Indicative baseline realignment | Y27: Realigned indicative baseline | Z27: Budget reduction | AA27: Budget increase | AB27: Revised Baseline | AC27: Total change from indicative baseline | AD27: Indicative baseline | AE27: Indicative baseline realignment | AH27: Realigned indicative baseline | AI27: Budget reduction | AJ27: Budget increase | AK27: Revised Baseline | AL27: Total change from indicative baseline | AM27: Planning baseline | AN27: Total planning baseline realignment | AQ27: Realigned planning baseline | AR27: Budget reduction | AS27: Budget increase | AT27: Revised Baseline | AU27: Total change from planning baseline | AW27: Reasons for under/ (over) spending [Amounts in Column S]
A28: 1 | F28: =IF(COUNTBLANK(Settings!R13:R95)<>83,"Economic Classification hidden row, revise settings", "") ->  | V28: Realignment | X28: Total Indicative baseline realignment | AE28: Realignment | AG28: Total Indicative baseline realignment | AN28: Realignment | AP28: Total planning baseline realignment
A29: 1 | C29: =SUM(C60:C63) -> 0 | F29: Rand thousand | N29: Roll-overs | O29: Unforeseeable/ unavoidable | P29: Virement | Q29: Other adjustments | V29: From | W29: To | AE29: From | AF29: To | AN29: From | AO29: To
A30: 1 | B30: Sht format | C30: Name | F30: Programmes
A31: 1 | B31: =IF('1'!$F$6<>"",E31,0) -> 1 | C31: =IF(LEN(F31)>2,1,0) -> 1 | D31: =IF(OR(AND(B31=0,C31<>0),AND(B31<>0,C31=0)),1,0) -> 0 | E31: 1 | F31: Administration | G31: =IF(AND(F31="",COUNTA(F31:F$45)>0),"Please fill Subprogrammes from the top","") ->  | I31: =IF(ISERROR('1'!I$72),0,'1'!I$72) -> 144042 | J31: =IF(ISERROR('1'!J$72),0,'1'!J$72) -> 136031 | K31: =IF(ISERROR('1'!K$72),0,'1'!K$72) -> 163121 | L31: =IF(ISERROR('1'!L$72),0,'1'!L$72) -> 149078 | M31: =IF(ISERROR('1'!M$72),0,'1'!M$72) -> 164315 | N31: =IF(ISERROR('1'!N$72),0,'1'!N$72) -> 0 | O31: =IF(ISERROR('1'!O$72),0,'1'!O$72) -> 0 | P31: =IF(ISERROR('1'!P$72),0,'1'!P$72) -> -2000 | Q31: =IF(ISERROR('1'!Q$72),0,'1'!Q$72) -> -19834 | R31: =IF(ISERROR('1'!R$72),0,'1'!R$72) -> 142481 | S31: =IF(ISERROR('1'!S$72),0,'1'!S$72) -> 0 | T31: =IF(ISERROR('1'!T$72),0,'1'!T$72) -> 142481 | U31: =IF(ISERROR('1'!U$72),0,'1'!U$72) -> 155826 | V31: =IF(ISERROR('1'!V$72),0,'1'!V$72) -> 0 | W31: =IF(ISERROR('1'!W$72),0,'1'!W$72) -> 4021 | X31: =SUM(V31:W31) -> 4021 | Y31: =U31+X31 -> 159847 | Z31: =IF(ISERROR('1'!Z$72),0,'1'!Z$72) -> 0 | AA31: =IF(ISERROR('1'!AA$72),0,'1'!AA$72) -> 0 | AB31: =IF(ISERROR('1'!AB$72),0,'1'!AB$72) -> 159847 | AC31: =IF(ISERROR('1'!AC$72),0,'1'!AC$72) -> 4021 | AD31: =IF(ISERROR('1'!AD$72),0,'1'!AD$72) -> 158747 | AE31: =IF(ISERROR('1'!AE$72),0,'1'!AE$72) -> -1 | AF31: =IF(ISERROR('1'!AF$72),0,'1'!AF$72) -> 0 | AG31: =SUM(AE31:AF31) -> -1 | AH31: =AD31+AG31 -> 158746 | AI31: =IF(ISERROR('1'!AI$72),0,'1'!AI$72) -> 0 | AJ31: =IF(ISERROR('1'!AJ$72),0,'1'!AJ$72) -> 0 | AK31: =IF(ISERROR('1'!AK$72),0,'1'!AK$72) -> 158746 | AL31: =IF(ISERROR('1'!AL$72),0,'1'!AL$72) -> -1 | AM31: =IF(ISERROR('1'!AM$72),0,'1'!AM$72) -> 159820 | AN31: =IF(ISERROR('1'!AN$72),0,'1'!AN$72) -> -4 | AO31: =IF(ISERROR('1'!AO$72),0,'1'!AO$72) -> 1 | AP31: =SUM(AN31:AO31) -> -3 | AQ31: =AM31+AP31 -> 159817 | AR31: =IF(ISERROR('1'!AR$72),0,'1'!AR$72) -> 0 | AS31: =IF(ISERROR('1'!AS$72),0,'1'!AS$72) -> 0 | AT31: =IF(ISERROR('1'!AT$72),0,'1'!AT$72) -> 159817 | AU31: =IF(ISERROR('1'!AU$72),0,'1'!AU$72) -> -3
A32: =COUNTIF(I32:AU32,"<>0")+IF(LEN(F32)>2,1,0) -> 30 | B32: =IF('2'!$F$6<>"",E32,0) -> 2 | C32: =IF(LEN(F32)>2,1,0) -> 1 | D32: =IF(OR(AND(B32=0,C32<>0),AND(B32<>0,C32=0)),1,0) -> 0 | E32: 2 | F32: State-owned Companies Governance Assurance and Performance | G32: =IF(AND(F32="",COUNTA(F32:F$45)>0),"Please fill Subprogrammes from the top","") ->  | I32: =IF(ISERROR('2'!I$72),0,'2'!I$72) -> 27532 | J32: =IF(ISERROR('2'!J$72),0,'2'!J$72) -> 33490 | K32: =IF(ISERROR('2'!K$72),0,'2'!K$72) -> 41613 | L32: =IF(ISERROR('2'!L$72),0,'2'!L$72) -> 36879.84746 | M32: =IF(ISERROR('2'!M$72),0,'2'!M$72) -> 54647 | N32: =IF(ISERROR('2'!N$72),0,'2'!N$72) -> 0 | O32: =IF(ISERROR('2'!O$72),0,'2'!O$72) -> 0 | P32: =IF(ISERROR('2'!P$72),0,'2'!P$72) -> 0 | Q32: =IF(ISERROR('2'!Q$72),0,'2'!Q$72) -> -9193 | R32: =IF(ISERROR('2'!R$72),0,'2'!R$72) -> 45454 | S32: =IF(ISERROR('2'!S$72),0,'2'!S$72) -> 0 | T32: =IF(ISERROR('2'!T$72),0,'2'!T$72) -> 45454 | U32: =IF(ISERROR('2'!U$72),0,'2'!U$72) -> 65674 | V32: =IF(ISERROR('2'!V$72),0,'2'!V$72) -> -16907 | W32: =IF(ISERROR('2'!W$72),0,'2'!W$72) -> 12906 | X32: =SUM(V32:W32) -> -4001 | Y32: =U32+X32 -> 61673 | Z32: =IF(ISERROR('2'!Z$72),0,'2'!Z$72) -> 0 | AA32: =IF(ISERROR('2'!AA$72),0,'2'!AA$72) -> 0 | AB32: =IF(ISERROR('2'!AB$72),0,'2'!AB$72) -> 61673 | AC32: =IF(ISERROR('2'!AC$72),0,'2'!AC$72) -> -4001 | AD32: =IF(ISERROR('2'!AD$72),0,'2'!AD$72) -> 67687 | AE32: =IF(ISERROR('2'!AE$72),0,'2'!AE$72) -> -17928 | AF32: =IF(ISERROR('2'!AF$72),0,'2'!AF$72) -> 17929 | AG32: =SUM(AE32:AF32) -> 1 | AH32: =AD32+AG32 -> 67688 | AI32: =IF(ISERROR('2'!AI$72),0,'2'!AI$72) -> 0 | AJ32: =IF(ISERROR('2'!AJ$72),0,'2'!AJ$72) -> 0 | AK32: =IF(ISERROR('2'!AK$72),0,'2'!AK$72) -> 67688 | AL32: =IF(ISERROR('2'!AL$72),0,'2'!AL$72) -> 1 | AM32: =IF(ISERROR('2'!AM$72),0,'2'!AM$72) -> 68945 | AN32: =IF(ISERROR('2'!AN$72),0,'2'!AN$72) -> -19139 | AO32: =IF(ISERROR('2'!AO$72),0,'2'!AO$72) -> 19142 | AP32: =SUM(AN32:AO32) -> 3 | AQ32: =AM32+AP32 -> 68948 | AR32: =IF(ISERROR('2'!AR$72),0,'2'!AR$72) -> 0 | AS32: =IF(ISERROR('2'!AS$72),0,'2'!AS$72) -> 0 | AT32: =IF(ISERROR('2'!AT$72),0,'2'!AT$72) -> 68948 | AU32: =IF(ISERROR('2'!AU$72),0,'2'!AU$72) -> 3
A33: 28 | B33: =IF('3'!$F$6<>"",E33,0) -> 3 | C33: =IF(LEN(F33)>2,1,0) -> 1 | D33: =IF(OR(AND(B33=0,C33<>0),AND(B33<>0,C33=0)),1,0) -> 0 | E33: 3 | F33: Business Enhancement, Transformation and Industrialisation | G33: =IF(AND(F33="",COUNTA(F33:F$45)>0),"Please fill Subprogrammes from the top","") ->  | I33: =IF(ISERROR('3'!I$72),0,'3'!I$72) -> 78839 | J33: =IF(ISERROR('3'!J$72),0,'3'!J$72) -> 6305272 | K33: =IF(ISERROR('3'!K$72),0,'3'!K$72) -> 56678296 | L33: =IF(ISERROR('3'!L$72),0,'3'!L$72) -> 56660431.81 | M33: =IF(ISERROR('3'!M$72),0,'3'!M$72) -> 37630393 | N33: =IF(ISERROR('3'!N$72),0,'3'!N$72) -> 0 | O33: =IF(ISERROR('3'!O$72),0,'3'!O$72) -> 0 | P33: =IF(ISERROR('3'!P$72),0,'3'!P$72) -> 2000 | Q33: =IF(ISERROR('3'!Q$72),0,'3'!Q$72) -> 39039501 | R33: =IF(ISERROR('3'!R$72),0,'3'!R$72) -> 76671894 | S33: =IF(ISERROR('3'!S$72),0,'3'!S$72) -> 0 | T33: =IF(ISERROR('3'!T$72),0,'3'!T$72) -> 76671894 | U33: =IF(ISERROR('3'!U$72),0,'3'!U$72) -> 4377374 | V33: =IF(ISERROR('3'!V$72),0,'3'!V$72) -> -6047 | W33: =IF(ISERROR('3'!W$72),0,'3'!W$72) -> 6027 | X33: =SUM(V33:W33) -> -20 | Y33: =U33+X33 -> 4377354 | Z33: =IF(ISERROR('3'!Z$72),0,'3'!Z$72) -> 0 | AA33: =IF(ISERROR('3'!AA$72),0,'3'!AA$72) -> 0 | AB33: =IF(ISERROR('3'!AB$72),0,'3'!AB$72) -> 4377354 | AC33: =IF(ISERROR('3'!AC$72),0,'3'!AC$72) -> -20 | AD33: =IF(ISERROR('3'!AD$72),0,'3'!AD$72) -> 1845153 | AE33: =IF(ISERROR('3'!AE$72),0,'3'!AE$72) -> -7076 | AF33: =IF(ISERROR('3'!AF$72),0,'3'!AF$72) -> 7076 | AG33: 0 | AH33: 1845153 | AI33: =IF(ISERROR('3'!AI$72),0,'3'!AI$72) -> 0 | AJ33: =IF(ISERROR('3'!AJ$72),0,'3'!AJ$72) -> 0 | AK33: =IF(ISERROR('3'!AK$72),0,'3'!AK$72) -> 1845153 | AL33: =IF(ISERROR('3'!AL$72),0,'3'!AL$72) -> 0 | AM33: =IF(ISERROR('3'!AM$72),0,'3'!AM$72) -> 68788 | AN33: =IF(ISERROR('3'!AN$72),0,'3'!AN$72) -> -14050 | AO33: =IF(ISERROR('3'!AO$72),0,'3'!AO$72) -> 14050 | AP33: 0 | AQ33: =AM33+AP33 -> 68788 | AR33: =IF(ISERROR('3'!AR$72),0,'3'!AR$72) -> 0 | AS33: =IF(ISERROR('3'!AS$72),0,'3'!AS$72) -> 0 | AT33: =IF(ISERROR('3'!AT$72),0,'3'!AT$72) -> 68788 | AU33: =IF(ISERROR('3'!AU$72),0,'3'!AU$72) -> 1.818989404e-12
A34: 0 | B34: =IF('4'!$F$6<>"",E34,0) -> 0 | C34: =IF(LEN(F34)>2,1,0) -> 0 | D34: =IF(OR(AND(B34=0,C34<>0),AND(B34<>0,C34=0)),1,0) -> 0 | E34: 4 | G34: =IF(AND(F34="",COUNTA(F34:F$45)>0),"Please fill Subprogrammes from the top","") ->  | I34: =IF(ISERROR('4'!I$72),0,'4'!I$72) -> 0 | J34: =IF(ISERROR('4'!J$72),0,'4'!J$72) -> 0 | K34: =IF(ISERROR('4'!K$72),0,'4'!K$72) -> 0 | L34: =IF(ISERROR('4'!L$72),0,'4'!L$72) -> 0 | M34: =IF(ISERROR('4'!M$72),0,'4'!M$72) -> 0 | N34: =IF(ISERROR('4'!N$72),0,'4'!N$72) -> 0 | O34: =IF(ISERROR('4'!O$72),0,'4'!O$72) -> 0 | P34: =IF(ISERROR('4'!P$72),0,'4'!P$72) -> 0 | Q34: =IF(ISERROR('4'!Q$72),0,'4'!Q$72) -> 0 | R34: =IF(ISERROR('4'!R$72),0,'4'!R$72) -> 0 | S34: =IF(ISERROR('4'!S$72),0,'4'!S$72) -> 0 | T34: =IF(ISERROR('4'!T$72),0,'4'!T$72) -> 0 | U34: =IF(ISERROR('4'!U$72),0,'4'!U$72) -> 0 | V34: =IF(ISERROR('4'!V$72),0,'4'!V$72) -> 0 | W34: =IF(ISERROR('4'!W$72),0,'4'!W$72) -> 0 | X34: 0 | Y34: 0 | Z34: =IF(ISERROR('4'!Z$72),0,'4'!Z$72) -> 0 | AA34: =IF(ISERROR('4'!AA$72),0,'4'!AA$72) -> 0 | AB34: =IF(ISERROR('4'!AB$72),0,'4'!AB$72) -> 0 | AC34: =IF(ISERROR('4'!AC$72),0,'4'!AC$72) -> 0 | AD34: =IF(ISERROR('4'!AD$72),0,'4'!AD$72) -> 0 | AE34: =IF(ISERROR('4'!AE$72),0,'4'!AE$72) -> 0 | AF34: =IF(ISERROR('4'!AF$72),0,'4'!AF$72) -> 0 | AG34: 0 | AH34: 0 | AI34: =IF(ISERROR('4'!AI$72),0,'4'!AI$72) -> 0 | AJ34: =IF(ISERROR('4'!AJ$72),0,'4'!AJ$72) -> 0 | AK34: =IF(ISERROR('4'!AK$72),0,'4'!AK$72) -> 0 | AL34: =IF(ISERROR('4'!AL$72),0,'4'!AL$72) -> 0 | AM34: =IF(ISERROR('4'!AM$72),0,'4'!AM$72) -> 0 | AN34: =IF(ISERROR('4'!AN$72),0,'4'!AN$72) -> 0 | AO34: =IF(ISERROR('4'!AO$72),0,'4'!AO$72) -> 0 | AP34: 0 | AQ34: 0 | AR34: =IF(ISERROR('4'!AR$72),0,'4'!AR$72) -> 0 | AS34: =IF(ISERROR('4'!AS$72),0,'4'!AS$72) -> 0 | AT34: =IF(ISERROR('4'!AT$72),0,'4'!AT$72) -> 0 | AU34: =IF(ISERROR('4'!AU$72),0,'4'!AU$72) -> 0
A35: 0 | B35: =IF('5'!$F$6<>"",E35,0) -> 0 | C35: 0 | D35: 0 | E35: 5 | G35: =IF(AND(F35="",COUNTA(F35:F$45)>0),"Please fill Subprogrammes from the top","") ->  | I35: =IF(ISERROR('5'!I$72),0,'5'!I$72) -> 0 | J35: =IF(ISERROR('5'!J$72),0,'5'!J$72) -> 0 | K35: =IF(ISERROR('5'!K$72),0,'5'!K$72) -> 0 | L35: =IF(ISERROR('5'!L$72),0,'5'!L$72) -> 0 | M35: =IF(ISERROR('5'!M$72),0,'5'!M$72) -> 0 | N35: =IF(ISERROR('5'!N$72),0,'5'!N$72) -> 0 | O35: =IF(ISERROR('5'!O$72),0,'5'!O$72) -> 0 | P35: =IF(ISERROR('5'!P$72),0,'5'!P$72) -> 0 | Q35: =IF(ISERROR('5'!Q$72),0,'5'!Q$72) -> 0 | R35: =IF(ISERROR('5'!R$72),0,'5'!R$72) -> 0 | S35: =IF(ISERROR('5'!S$72),0,'5'!S$72) -> 0 | T35: =IF(ISERROR('5'!T$72),0,'5'!T$72) -> 0 | U35: =IF(ISERROR('5'!U$72),0,'5'!U$72) -> 0 | V35: =IF(ISERROR('5'!V$72),0,'5'!V$72) -> 0 | W35: =IF(ISERROR('5'!W$72),0,'5'!W$72) -> 0 | X35: 0 | Y35: 0 | Z35: =IF(ISERROR('5'!Z$72),0,'5'!Z$72) -> 0 | AA35: =IF(ISERROR('5'!AA$72),0,'5'!AA$72) -> 0 | AB35: =IF(ISERROR('5'!AB$72),0,'5'!AB$72) -> 0 | AC35: =IF(ISERROR('5'!AC$72),0,'5'!AC$72) -> 0 | AD35: =IF(ISERROR('5'!AD$72),0,'5'!AD$72) -> 0 | AE35: =IF(ISERROR('5'!AE$72),0,'5'!AE$72) -> 0 | AF35: =IF(ISERROR('5'!AF$72),0,'5'!AF$72) -> 0 | AG35: 0 | AH35: 0 | AI35: =IF(ISERROR('5'!AI$72),0,'5'!AI$72) -> 0 | AJ35: =IF(ISERROR('5'!AJ$72),0,'5'!AJ$72) -> 0 | AK35: =IF(ISERROR('5'!AK$72),0,'5'!AK$72) -> 0 | AL35: =IF(ISERROR('5'!AL$72),0,'5'!AL$72) -> 0 | AM35: =IF(ISERROR('5'!AM$72),0,'5'!AM$72) -> 0 | AN35: =IF(ISERROR('5'!AN$72),0,'5'!AN$72) -> 0 | AO35: =IF(ISERROR('5'!AO$72),0,'5'!AO$72) -> 0 | AP35: 0 | AQ35: 0 | AR35: =IF(ISERROR('5'!AR$72),0,'5'!AR$72) -> 0 | AS35: =IF(ISERROR('5'!AS$72),0,'5'!AS$72) -> 0 | AT35: =IF(ISERROR('5'!AT$72),0,'5'!AT$72) -> 0 | AU35: =IF(ISERROR('5'!AU$72),0,'5'!AU$72) -> 0
A36: 0 | B36: =IF('6'!$F$6<>"",E36,0) -> 0 | C36: 0 | D36: 0 | E36: 6 | G36: =IF(AND(F36="",COUNTA(F36:F$45)>0),"Please fill Subprogrammes from the top","") ->  | I36: =IF(ISERROR('6'!I$72),0,'6'!I$72) -> 0 | J36: =IF(ISERROR('6'!J$72),0,'6'!J$72) -> 0 | K36: =IF(ISERROR('6'!K$72),0,'6'!K$72) -> 0 | L36: =IF(ISERROR('6'!L$72),0,'6'!L$72) -> 0 | M36: =IF(ISERROR('6'!M$72),0,'6'!M$72) -> 0 | N36: =IF(ISERROR('6'!N$72),0,'6'!N$72) -> 0 | O36: =IF(ISERROR('6'!O$72),0,'6'!O$72) -> 0 | P36: =IF(ISERROR('6'!P$72),0,'6'!P$72) -> 0 | Q36: =IF(ISERROR('6'!Q$72),0,'6'!Q$72) -> 0 | R36: =IF(ISERROR('6'!R$72),0,'6'!R$72) -> 0 | S36: =IF(ISERROR('6'!S$72),0,'6'!S$72) -> 0 | T36: =IF(ISERROR('6'!T$72),0,'6'!T$72) -> 0 | U36: =IF(ISERROR('6'!U$72),0,'6'!U$72) -> 0 | V36: =IF(ISERROR('6'!V$72),0,'6'!V$72) -> 0 | W36: =IF(ISERROR('6'!W$72),0,'6'!W$72) -> 0 | X36: 0 | Y36: 0 | Z36: =IF(ISERROR('6'!Z$72),0,'6'!Z$72) -> 0 | AA36: =IF(ISERROR('6'!AA$72),0,'6'!AA$72) -> 0 | AB36: =IF(ISERROR('6'!AB$72),0,'6'!AB$72) -> 0 | AC36: =IF(ISERROR('6'!AC$72),0,'6'!AC$72) -> 0 | AD36: =IF(ISERROR('6'!AD$72),0,'6'!AD$72) -> 0 | AE36: =IF(ISERROR('6'!AE$72),0,'6'!AE$72) -> 0 | AF36: =IF(ISERROR('6'!AF$72),0,'6'!AF$72) -> 0 | AG36: 0 | AH36: 0 | AI36: =IF(ISERROR('6'!AI$72),0,'6'!AI$72) -> 0 | AJ36: =IF(ISERROR('6'!AJ$72),0,'6'!AJ$72) -> 0 | AK36: =IF(ISERROR('6'!AK$72),0,'6'!AK$72) -> 0 | AL36: =IF(ISERROR('6'!AL$72),0,'6'!AL$72) -> 0 | AM36: =IF(ISERROR('6'!AM$72),0,'6'!AM$72) -> 0 | AN36: =IF(ISERROR('6'!AN$72),0,'6'!AN$72) -> 0 | AO36: =IF(ISERROR('6'!AO$72),0,'6'!AO$72) -> 0 | AP36: 0 | AQ36: 0 | AR36: =IF(ISERROR('6'!AR$72),0,'6'!AR$72) -> 0 | AS36: =IF(ISERROR('6'!AS$72),0,'6'!AS$72) -> 0 | AT36: =IF(ISERROR('6'!AT$72),0,'6'!AT$72) -> 0 | AU36: =IF(ISERROR('6'!AU$72),0,'6'!AU$72) -> 0
A37: 0 | B37: =IF('7'!$F$6<>"",E37,0) -> 0 | C37: 0 | D37: 0 | E37: 7 | G37: =IF(AND(F37="",COUNTA(F37:F$45)>0),"Please fill Subprogrammes from the top","") ->  | I37: =IF(ISERROR('7'!I$72),0,'7'!I$72) -> 0 | J37: =IF(ISERROR('7'!J$72),0,'7'!J$72) -> 0 | K37: =IF(ISERROR('7'!K$72),0,'7'!K$72) -> 0 | L37: =IF(ISERROR('7'!L$72),0,'7'!L$72) -> 0 | M37: =IF(ISERROR('7'!M$72),0,'7'!M$72) -> 0 | N37: =IF(ISERROR('7'!N$72),0,'7'!N$72) -> 0 | O37: =IF(ISERROR('7'!O$72),0,'7'!O$72) -> 0 | P37: =IF(ISERROR('7'!P$72),0,'7'!P$72) -> 0 | Q37: =IF(ISERROR('7'!Q$72),0,'7'!Q$72) -> 0 | R37: =IF(ISERROR('7'!R$72),0,'7'!R$72) -> 0 | S37: =IF(ISERROR('7'!S$72),0,'7'!S$72) -> 0 | T37: =IF(ISERROR('7'!T$72),0,'7'!T$72) -> 0 | U37: =IF(ISERROR('7'!U$72),0,'7'!U$72) -> 0 | V37: =IF(ISERROR('7'!V$72),0,'7'!V$72) -> 0 | W37: =IF(ISERROR('7'!W$72),0,'7'!W$72) -> 0 | X37: 0 | Y37: 0 | Z37: =IF(ISERROR('7'!Z$72),0,'7'!Z$72) -> 0 | AA37: =IF(ISERROR('7'!AA$72),0,'7'!AA$72) -> 0 | AB37: =IF(ISERROR('7'!AB$72),0,'7'!AB$72) -> 0 | AC37: =IF(ISERROR('7'!AC$72),0,'7'!AC$72) -> 0 | AD37: =IF(ISERROR('7'!AD$72),0,'7'!AD$72) -> 0 | AE37: =IF(ISERROR('7'!AE$72),0,'7'!AE$72) -> 0 | AF37: =IF(ISERROR('7'!AF$72),0,'7'!AF$72) -> 0 | AG37: 0 | AH37: 0 | AI37: =IF(ISERROR('7'!AI$72),0,'7'!AI$72) -> 0 | AJ37: =IF(ISERROR('7'!AJ$72),0,'7'!AJ$72) -> 0 | AK37: =IF(ISERROR('7'!AK$72),0,'7'!AK$72) -> 0 | AL37: =IF(ISERROR('7'!AL$72),0,'7'!AL$72) -> 0 | AM37: =IF(ISERROR('7'!AM$72),0,'7'!AM$72) -> 0 | AN37: =IF(ISERROR('7'!AN$72),0,'7'!AN$72) -> 0 | AO37: =IF(ISERROR('7'!AO$72),0,'7'!AO$72) -> 0 | AP37: 0 | AQ37: 0 | AR37: =IF(ISERROR('7'!AR$72),0,'7'!AR$72) -> 0 | AS37: =IF(ISERROR('7'!AS$72),0,'7'!AS$72) -> 0 | AT37: =IF(ISERROR('7'!AT$72),0,'7'!AT$72) -> 0 | AU37: =IF(ISERROR('7'!AU$72),0,'7'!AU$72) -> 0
A38: 0 | B38: =IF('8'!$F$6<>"",E38,0) -> 0 | C38: 0 | D38: 0 | E38: 8 | G38: =IF(AND(F38="",COUNTA(F38:F$45)>0),"Please fill Subprogrammes from the top","") ->  | I38: =IF(ISERROR('8'!I$72),0,'8'!I$72) -> 0 | J38: =IF(ISERROR('8'!J$72),0,'8'!J$72) -> 0 | K38: =IF(ISERROR('8'!K$72),0,'8'!K$72) -> 0 | L38: =IF(ISERROR('8'!L$72),0,'8'!L$72) -> 0 | M38: =IF(ISERROR('8'!M$72),0,'8'!M$72) -> 0 | N38: =IF(ISERROR('8'!N$72),0,'8'!N$72) -> 0 | O38: =IF(ISERROR('8'!O$72),0,'8'!O$72) -> 0 | P38: =IF(ISERROR('8'!P$72),0,'8'!P$72) -> 0 | Q38: =IF(ISERROR('8'!Q$72),0,'8'!Q$72) -> 0 | R38: =IF(ISERROR('8'!R$72),0,'8'!R$72) -> 0 | S38: =IF(ISERROR('8'!S$72),0,'8'!S$72) -> 0 | T38: =IF(ISERROR('8'!T$72),0,'8'!T$72) -> 0 | U38: =IF(ISERROR('8'!U$72),0,'8'!U$72) -> 0 | V38: =IF(ISERROR('8'!V$72),0,'8'!V$72) -> 0 | W38: =IF(ISERROR('8'!W$72),0,'8'!W$72) -> 0 | X38: 0 | Y38: 0 | Z38: =IF(ISERROR('8'!Z$72),0,'8'!Z$72) -> 0 | AA38: =IF(ISERROR('8'!AA$72),0,'8'!AA$72) -> 0 | AB38: =IF(ISERROR('8'!AB$72),0,'8'!AB$72) -> 0 | AC38: =IF(ISERROR('8'!AC$72),0,'8'!AC$72) -> 0 | AD38: =IF(ISERROR('8'!AD$72),0,'8'!AD$72) -> 0 | AE38: =IF(ISERROR('8'!AE$72),0,'8'!AE$72) -> 0 | AF38: =IF(ISERROR('8'!AF$72),0,'8'!AF$72) -> 0 | AG38: 0 | AH38: 0 | AI38: =IF(ISERROR('8'!AI$72),0,'8'!AI$72) -> 0 | AJ38: =IF(ISERROR('8'!AJ$72),0,'8'!AJ$72) -> 0 | AK38: =IF(ISERROR('8'!AK$72),0,'8'!AK$72) -> 0 | AL38: =IF(ISERROR('8'!AL$72),0,'8'!AL$72) -> 0 | AM38: =IF(ISERROR('8'!AM$72),0,'8'!AM$72) -> 0 | AN38: =IF(ISERROR('8'!AN$72),0,'8'!AN$72) -> 0 | AO38: =IF(ISERROR('8'!AO$72),0,'8'!AO$72) -> 0 | AP38: 0 | AQ38: 0 | AR38: =IF(ISERROR('8'!AR$72),0,'8'!AR$72) -> 0 | AS38: =IF(ISERROR('8'!AS$72),0,'8'!AS$72) -> 0 | AT38: =IF(ISERROR('8'!AT$72),0,'8'!AT$72) -> 0 | AU38: =IF(ISERROR('8'!AU$72),0,'8'!AU$72) -> 0
A39: 0 | B39: =IF('9'!$F$6<>"",E39,0) -> 0 | C39: 0 | D39: 0 | E39: 9 | G39: =IF(AND(F39="",COUNTA(F39:F$45)>0),"Please fill Subprogrammes from the top","") ->  | I39: =IF(ISERROR('9'!I$72),0,'9'!I$72) -> 0 | J39: =IF(ISERROR('9'!J$72),0,'9'!J$72) -> 0 | K39: =IF(ISERROR('9'!K$72),0,'9'!K$72) -> 0 | L39: =IF(ISERROR('9'!L$72),0,'9'!L$72) -> 0 | M39: =IF(ISERROR('9'!M$72),0,'9'!M$72) -> 0 | N39: =IF(ISERROR('9'!N$72),0,'9'!N$72) -> 0 | O39: =IF(ISERROR('9'!O$72),0,'9'!O$72) -> 0 | P39: =IF(ISERROR('9'!P$72),0,'9'!P$72) -> 0 | Q39: =IF(ISERROR('9'!Q$72),0,'9'!Q$72) -> 0 | R39: =IF(ISERROR('9'!R$72),0,'9'!R$72) -> 0 | S39: =IF(ISERROR('9'!S$72),0,'9'!S$72) -> 0 | T39: =IF(ISERROR('9'!T$72),0,'9'!T$72) -> 0 | U39: =IF(ISERROR('9'!U$72),0,'9'!U$72) -> 0 | V39: =IF(ISERROR('9'!V$72),0,'9'!V$72) -> 0 | W39: =IF(ISERROR('9'!W$72),0,'9'!W$72) -> 0 | X39: 0 | Y39: 0 | Z39: =IF(ISERROR('9'!Z$72),0,'9'!Z$72) -> 0 | AA39: =IF(ISERROR('9'!AA$72),0,'9'!AA$72) -> 0 | AB39: =IF(ISERROR('9'!AB$72),0,'9'!AB$72) -> 0 | AC39: =IF(ISERROR('9'!AC$72),0,'9'!AC$72) -> 0 | AD39: =IF(ISERROR('9'!AD$72),0,'9'!AD$72) -> 0 | AE39: =IF(ISERROR('9'!AE$72),0,'9'!AE$72) -> 0 | AF39: =IF(ISERROR('9'!AF$72),0,'9'!AF$72) -> 0 | AG39: 0 | AH39: 0 | AI39: =IF(ISERROR('9'!AI$72),0,'9'!AI$72) -> 0 | AJ39: =IF(ISERROR('9'!AJ$72),0,'9'!AJ$72) -> 0 | AK39: =IF(ISERROR('9'!AK$72),0,'9'!AK$72) -> 0 | AL39: =IF(ISERROR('9'!AL$72),0,'9'!AL$72) -> 0 | AM39: =IF(ISERROR('9'!AM$72),0,'9'!AM$72) -> 0 | AN39: =IF(ISERROR('9'!AN$72),0,'9'!AN$72) -> 0 | AO39: =IF(ISERROR('9'!AO$72),0,'9'!AO$72) -> 0 | AP39: 0 | AQ39: 0 | AR39: =IF(ISERROR('9'!AR$72),0,'9'!AR$72) -> 0 | AS39: =IF(ISERROR('9'!AS$72),0,'9'!AS$72) -> 0 | AT39: =IF(ISERROR('9'!AT$72),0,'9'!AT$72) -> 0 | AU39: =IF(ISERROR('9'!AU$72),0,'9'!AU$72) -> 0
A40: 0 | B40: =IF('10'!$F$6<>"",E40,0) -> 0 | C40: 0 | D40: 0 | E40: 10 | G40: =IF(AND(F40="",COUNTA(F40:F$45)>0),"Please fill Subprogrammes from the top","") ->  | I40: =IF(ISERROR('10'!I$72),0,'10'!I$72) -> 0 | J40: =IF(ISERROR('10'!J$72),0,'10'!J$72) -> 0 | K40: =IF(ISERROR('10'!K$72),0,'10'!K$72) -> 0 | L40: =IF(ISERROR('10'!L$72),0,'10'!L$72) -> 0 | M40: =IF(ISERROR('10'!M$72),0,'10'!M$72) -> 0 | N40: =IF(ISERROR('10'!N$72),0,'10'!N$72) -> 0 | O40: =IF(ISERROR('10'!O$72),0,'10'!O$72) -> 0 | P40: =IF(ISERROR('10'!P$72),0,'10'!P$72) -> 0 | Q40: =IF(ISERROR('10'!Q$72),0,'10'!Q$72) -> 0 | R40: =IF(ISERROR('10'!R$72),0,'10'!R$72) -> 0 | S40: =IF(ISERROR('10'!S$72),0,'10'!S$72) -> 0 | T40: =IF(ISERROR('10'!T$72),0,'10'!T$72) -> 0 | U40: =IF(ISERROR('10'!U$72),0,'10'!U$72) -> 0 | V40: =IF(ISERROR('10'!V$72),0,'10'!V$72) -> 0 | W40: =IF(ISERROR('10'!W$72),0,'10'!W$72) -> 0 | X40: 0 | Y40: 0 | Z40: =IF(ISERROR('10'!Z$72),0,'10'!Z$72) -> 0 | AA40: =IF(ISERROR('10'!AA$72),0,'10'!AA$72) -> 0 | AB40: =IF(ISERROR('10'!AB$72),0,'10'!AB$72) -> 0 | AC40: =IF(ISERROR('10'!AC$72),0,'10'!AC$72) -> 0 | AD40: =IF(ISERROR('10'!AD$72),0,'10'!AD$72) -> 0 | AE40: =IF(ISERROR('10'!AE$72),0,'10'!AE$72) -> 0 | AF40: =IF(ISERROR('10'!AF$72),0,'10'!AF$72) -> 0 | AG40: 0 | AH40: 0 | AI40: =IF(ISERROR('10'!AI$72),0,'10'!AI$72) -> 0 | AJ40: =IF(ISERROR('10'!AJ$72),0,'10'!AJ$72) -> 0 | AK40: =IF(ISERROR('10'!AK$72),0,'10'!AK$72) -> 0 | AL40: =IF(ISERROR('10'!AL$72),0,'10'!AL$72) -> 0 | AM40: =IF(ISERROR('10'!AM$72),0,'10'!AM$72) -> 0 | AN40: =IF(ISERROR('10'!AN$72),0,'10'!AN$72) -> 0 | AO40: =IF(ISERROR('10'!AO$72),0,'10'!AO$72) -> 0 | AP40: 0 | AQ40: 0 | AR40: =IF(ISERROR('10'!AR$72),0,'10'!AR$72) -> 0 | AS40: =IF(ISERROR('10'!AS$72),0,'10'!AS$72) -> 0 | AT40: =IF(ISERROR('10'!AT$72),0,'10'!AT$72) -> 0 | AU40: =IF(ISERROR('10'!AU$72),0,'10'!AU$72) -> 0
A41: 0 | B41: =IF('11'!$F$6<>"",E41,0) -> 0 | C41: 0 | D41: 0 | E41: 11 | G41: =IF(AND(F41="",COUNTA(F41:F$45)>0),"Please fill Subprogrammes from the top","") ->  | I41: =IF(ISERROR('11'!I$72),0,'11'!I$72) -> 0 | J41: =IF(ISERROR('11'!J$72),0,'11'!J$72) -> 0 | K41: =IF(ISERROR('11'!K$72),0,'11'!K$72) -> 0 | L41: =IF(ISERROR('11'!L$72),0,'11'!L$72) -> 0 | M41: =IF(ISERROR('11'!M$72),0,'11'!M$72) -> 0 | N41: =IF(ISERROR('11'!N$72),0,'11'!N$72) -> 0 | O41: =IF(ISERROR('11'!O$72),0,'11'!O$72) -> 0 | P41: =IF(ISERROR('11'!P$72),0,'11'!P$72) -> 0 | Q41: =IF(ISERROR('11'!Q$72),0,'11'!Q$72) -> 0 | R41: =IF(ISERROR('11'!R$72),0,'11'!R$72) -> 0 | S41: =IF(ISERROR('11'!S$72),0,'11'!S$72) -> 0 | T41: =IF(ISERROR('11'!T$72),0,'11'!T$72) -> 0 | U41: =IF(ISERROR('11'!U$72),0,'11'!U$72) -> 0 | V41: =IF(ISERROR('11'!V$72),0,'11'!V$72) -> 0 | W41: =IF(ISERROR('11'!W$72),0,'11'!W$72) -> 0 | X41: =SUM(V41:W41) -> 0 | Y41: =U41+X41 -> 0 | Z41: =IF(ISERROR('11'!Z$72),0,'11'!Z$72) -> 0 | AA41: =IF(ISERROR('11'!AA$72),0,'11'!AA$72) -> 0 | AB41: =IF(ISERROR('11'!AB$72),0,'11'!AB$72) -> 0 | AC41: =IF(ISERROR('11'!AC$72),0,'11'!AC$72) -> 0 | AD41: =IF(ISERROR('11'!AD$72),0,'11'!AD$72) -> 0 | AE41: =IF(ISERROR('11'!AE$72),0,'11'!AE$72) -> 0 | AF41: =IF(ISERROR('11'!AF$72),0,'11'!AF$72) -> 0 | AG41: =SUM(AE41:AF41) -> 0 | AH41: =AD41+AG41 -> 0 | AI41: =IF(ISERROR('11'!AI$72),0,'11'!AI$72) -> 0 | AJ41: =IF(ISERROR('11'!AJ$72),0,'11'!AJ$72) -> 0 | AK41: =IF(ISERROR('11'!AK$72),0,'11'!AK$72) -> 0 | AL41: =IF(ISERROR('11'!AL$72),0,'11'!AL$72) -> 0 | AM41: =IF(ISERROR('11'!AM$72),0,'11'!AM$72) -> 0 | AN41: =IF(ISERROR('11'!AN$72),0,'11'!AN$72) -> 0 | AO41: =IF(ISERROR('11'!AO$72),0,'11'!AO$72) -> 0 | AP41: =SUM(AN41:AO41) -> 0 | AQ41: =AM41+AP41 -> 0 | AR41: =IF(ISERROR('11'!AR$72),0,'11'!AR$72) -> 0 | AS41: =IF(ISERROR('11'!AS$72),0,'11'!AS$72) -> 0 | AT41: =IF(ISERROR('11'!AT$72),0,'11'!AT$72) -> 0 | AU41: =IF(ISERROR('11'!AU$72),0,'11'!AU$72) -> 0
A42: 0 | B42: =IF('12'!$F$6<>"",E42,0) -> 0 | C42: 0 | D42: 0 | E42: 12 | G42: =IF(AND(F42="",COUNTA(F42:F$45)>0),"Please fill Subprogrammes from the top","") ->  | I42: =IF(ISERROR('12'!I$72),0,'12'!I$72) -> 0 | J42: =IF(ISERROR('12'!J$72),0,'12'!J$72) -> 0 | K42: =IF(ISERROR('12'!K$72),0,'12'!K$72) -> 0 | L42: =IF(ISERROR('12'!L$72),0,'12'!L$72) -> 0 | M42: =IF(ISERROR('12'!M$72),0,'12'!M$72) -> 0 | N42: =IF(ISERROR('12'!N$72),0,'12'!N$72) -> 0 | O42: =IF(ISERROR('12'!O$72),0,'12'!O$72) -> 0 | P42: =IF(ISERROR('12'!P$72),0,'12'!P$72) -> 0 | Q42: =IF(ISERROR('12'!Q$72),0,'12'!Q$72) -> 0 | R42: =IF(ISERROR('12'!R$72),0,'12'!R$72) -> 0 | S42: =IF(ISERROR('12'!S$72),0,'12'!S$72) -> 0 | T42: =IF(ISERROR('12'!T$72),0,'12'!T$72) -> 0 | U42: =IF(ISERROR('12'!U$72),0,'12'!U$72) -> 0 | V42: =IF(ISERROR('12'!V$72),0,'12'!V$72) -> 0 | W42: =IF(ISERROR('12'!W$72),0,'12'!W$72) -> 0 | X42: 0 | Y42: 0 | Z42: =IF(ISERROR('12'!Z$72),0,'12'!Z$72) -> 0 | AA42: =IF(ISERROR('12'!AA$72),0,'12'!AA$72) -> 0 | AB42: =IF(ISERROR('12'!AB$72),0,'12'!AB$72) -> 0 | AC42: =IF(ISERROR('12'!AC$72),0,'12'!AC$72) -> 0 | AD42: =IF(ISERROR('12'!AD$72),0,'12'!AD$72) -> 0 | AE42: =IF(ISERROR('12'!AE$72),0,'12'!AE$72) -> 0 | AF42: =IF(ISERROR('12'!AF$72),0,'12'!AF$72) -> 0 | AG42: 0 | AH42: =AD42+AG42 -> 0 | AI42: =IF(ISERROR('12'!AI$72),0,'12'!AI$72) -> 0 | AJ42: =IF(ISERROR('12'!AJ$72),0,'12'!AJ$72) -> 0 | AK42: =IF(ISERROR('12'!AK$72),0,'12'!AK$72) -> 0 | AL42: =IF(ISERROR('12'!AL$72),0,'12'!AL$72) -> 0 | AM42: =IF(ISERROR('12'!AM$72),0,'12'!AM$72) -> 0 | AN42: =IF(ISERROR('12'!AN$72),0,'12'!AN$72) -> 0 | AO42: =IF(ISERROR('12'!AO$72),0,'12'!AO$72) -> 0 | AP42: 0 | AQ42: =AM42+AP42 -> 0 | AR42: =IF(ISERROR('12'!AR$72),0,'12'!AR$72) -> 0 | AS42: =IF(ISERROR('12'!AS$72),0,'12'!AS$72) -> 0 | AT42: =IF(ISERROR('12'!AT$72),0,'12'!AT$72) -> 0 | AU42: =IF(ISERROR('12'!AU$72),0,'12'!AU$72) -> 0
A43: 0 | B43: =IF('13'!$F$6<>"",E43,0) -> 0 | C43: 0 | D43: 0 | E43: 13 | G43: =IF(AND(F43="",COUNTA(F43:F$45)>0),"Please fill Subprogrammes from the top","") ->  | I43: =IF(ISERROR('13'!I$72),0,'13'!I$72) -> 0 | J43: =IF(ISERROR('13'!J$72),0,'13'!J$72) -> 0 | K43: =IF(ISERROR('13'!K$72),0,'13'!K$72) -> 0 | L43: =IF(ISERROR('13'!L$72),0,'13'!L$72) -> 0 | M43: =IF(ISERROR('13'!M$72),0,'13'!M$72) -> 0 | N43: =IF(ISERROR('13'!N$72),0,'13'!N$72) -> 0 | O43: =IF(ISERROR('13'!O$72),0,'13'!O$72) -> 0 | P43: =IF(ISERROR('13'!P$72),0,'13'!P$72) -> 0 | Q43: =IF(ISERROR('13'!Q$72),0,'13'!Q$72) -> 0 | R43: =IF(ISERROR('13'!R$72),0,'13'!R$72) -> 0 | S43: =IF(ISERROR('13'!S$72),0,'13'!S$72) -> 0 | T43: =IF(ISERROR('13'!T$72),0,'13'!T$72) -> 0 | U43: =IF(ISERROR('13'!U$72),0,'13'!U$72) -> 0 | V43: =IF(ISERROR('13'!V$72),0,'13'!V$72) -> 0 | W43: =IF(ISERROR('13'!W$72),0,'13'!W$72) -> 0 | X43: 0 | Y43: 0 | Z43: =IF(ISERROR('13'!Z$72),0,'13'!Z$72) -> 0 | AA43: =IF(ISERROR('13'!AA$72),0,'13'!AA$72) -> 0 | AB43: =IF(ISERROR('13'!AB$72),0,'13'!AB$72) -> 0 | AC43: =IF(ISERROR('13'!AC$72),0,'13'!AC$72) -> 0 | AD43: =IF(ISERROR('13'!AD$72),0,'13'!AD$72) -> 0 | AE43: =IF(ISERROR('13'!AE$72),0,'13'!AE$72) -> 0 | AF43: =IF(ISERROR('13'!AF$72),0,'13'!AF$72) -> 0 | AG43: 0 | AH43: =AD43+AG43 -> 0 | AI43: =IF(ISERROR('13'!AI$72),0,'13'!AI$72) -> 0 | AJ43: =IF(ISERROR('13'!AJ$72),0,'13'!AJ$72) -> 0 | AK43: =IF(ISERROR('13'!AK$72),0,'13'!AK$72) -> 0 | AL43: =IF(ISERROR('13'!AL$72),0,'13'!AL$72) -> 0 | AM43: =IF(ISERROR('13'!AM$72),0,'13'!AM$72) -> 0 | AN43: =IF(ISERROR('13'!AN$72),0,'13'!AN$72) -> 0 | AO43: =IF(ISERROR('13'!AO$72),0,'13'!AO$72) -> 0 | AP43: 0 | AQ43: =AM43+AP43 -> 0 | AR43: =IF(ISERROR('13'!AR$72),0,'13'!AR$72) -> 0 | AS43: =IF(ISERROR('13'!AS$72),0,'13'!AS$72) -> 0 | AT43: =IF(ISERROR('13'!AT$72),0,'13'!AT$72) -> 0 | AU43: =IF(ISERROR('13'!AU$72),0,'13'!AU$72) -> 0
A44: 0 | B44: =IF('14'!$F$6<>"",E44,0) -> 0 | C44: 0 | D44: 0 | E44: 14 | G44: =IF(AND(F44="",COUNTA(F44:F$45)>0),"Please fill Subprogrammes from the top","") ->  | I44: =IF(ISERROR('14'!I$72),0,'14'!I$72) -> 0 | J44: =IF(ISERROR('14'!J$72),0,'14'!J$72) -> 0 | K44: =IF(ISERROR('14'!K$72),0,'14'!K$72) -> 0 | L44: =IF(ISERROR('14'!L$72),0,'14'!L$72) -> 0 | M44: =IF(ISERROR('14'!M$72),0,'14'!M$72) -> 0 | N44: =IF(ISERROR('14'!N$72),0,'14'!N$72) -> 0 | O44: =IF(ISERROR('14'!O$72),0,'14'!O$72) -> 0 | P44: =IF(ISERROR('14'!P$72),0,'14'!P$72) -> 0 | Q44: =IF(ISERROR('14'!Q$72),0,'14'!Q$72) -> 0 | R44: =IF(ISERROR('14'!R$72),0,'14'!R$72) -> 0 | S44: =IF(ISERROR('14'!S$72),0,'14'!S$72) -> 0 | T44: =IF(ISERROR('14'!T$72),0,'14'!T$72) -> 0 | U44: =IF(ISERROR('14'!U$72),0,'14'!U$72) -> 0 | V44: =IF(ISERROR('14'!V$72),0,'14'!V$72) -> 0 | W44: =IF(ISERROR('14'!W$72),0,'14'!W$72) -> 0 | X44: 0 | Y44: 0 | Z44: =IF(ISERROR('14'!Z$72),0,'14'!Z$72) -> 0 | AA44: =IF(ISERROR('14'!AA$72),0,'14'!AA$72) -> 0 | AB44: =IF(ISERROR('14'!AB$72),0,'14'!AB$72) -> 0 | AC44: =IF(ISERROR('14'!AC$72),0,'14'!AC$72) -> 0 | AD44: =IF(ISERROR('14'!AD$72),0,'14'!AD$72) -> 0 | AE44: =IF(ISERROR('14'!AE$72),0,'14'!AE$72) -> 0 | AF44: =IF(ISERROR('14'!AF$72),0,'14'!AF$72) -> 0 | AG44: 0 | AH44: =AD44+AG44 -> 0 | AI44: =IF(ISERROR('14'!AI$72),0,'14'!AI$72) -> 0 | AJ44: =IF(ISERROR('14'!AJ$72),0,'14'!AJ$72) -> 0 | AK44: =IF(ISERROR('14'!AK$72),0,'14'!AK$72) -> 0 | AL44: =IF(ISERROR('14'!AL$72),0,'14'!AL$72) -> 0 | AM44: =IF(ISERROR('14'!AM$72),0,'14'!AM$72) -> 0 | AN44: =IF(ISERROR('14'!AN$72),0,'14'!AN$72) -> 0 | AO44: =IF(ISERROR('14'!AO$72),0,'14'!AO$72) -> 0 | AP44: 0 | AQ44: =AM44+AP44 -> 0 | AR44: =IF(ISERROR('14'!AR$72),0,'14'!AR$72) -> 0 | AS44: =IF(ISERROR('14'!AS$72),0,'14'!AS$72) -> 0 | AT44: =IF(ISERROR('14'!AT$72),0,'14'!AT$72) -> 0 | AU44: =IF(ISERROR('14'!AU$72),0,'14'!AU$72) -> 0
A45: 0 | B45: =IF('15'!$F$6<>"",E45,0) -> 0 | C45: 0 | D45: 0 | E45: 15 | G45: =IF(AND(F45="",COUNTA(F45:F$45)>0),"Please fill Subprogrammes from the top","") ->  | I45: =IF(ISERROR('15'!I$72),0,'15'!I$72) -> 0 | J45: =IF(ISERROR('15'!J$72),0,'15'!J$72) -> 0 | K45: =IF(ISERROR('15'!K$72),0,'15'!K$72) -> 0 | L45: =IF(ISERROR('15'!L$72),0,'15'!L$72) -> 0 | M45: =IF(ISERROR('15'!M$72),0,'15'!M$72) -> 0 | N45: =IF(ISERROR('15'!N$72),0,'15'!N$72) -> 0 | O45: =IF(ISERROR('15'!O$72),0,'15'!O$72) -> 0 | P45: =IF(ISERROR('15'!P$72),0,'15'!P$72) -> 0 | Q45: =IF(ISERROR('15'!Q$72),0,'15'!Q$72) -> 0 | R45: =IF(ISERROR('15'!R$72),0,'15'!R$72) -> 0 | S45: =IF(ISERROR('15'!S$72),0,'15'!S$72) -> 0 | T45: =IF(ISERROR('15'!T$72),0,'15'!T$72) -> 0 | U45: =IF(ISERROR('15'!U$72),0,'15'!U$72) -> 0 | V45: =IF(ISERROR('15'!V$72),0,'15'!V$72) -> 0 | W45: =IF(ISERROR('15'!W$72),0,'15'!W$72) -> 0 | X45: 0 | Y45: 0 | Z45: =IF(ISERROR('15'!Z$72),0,'15'!Z$72) -> 0 | AA45: =IF(ISERROR('15'!AA$72),0,'15'!AA$72) -> 0 | AB45: =IF(ISERROR('15'!AB$72),0,'15'!AB$72) -> 0 | AC45: =IF(ISERROR('15'!AC$72),0,'15'!AC$72) -> 0 | AD45: =IF(ISERROR('15'!AD$72),0,'15'!AD$72) -> 0 | AE45: =IF(ISERROR('15'!AE$72),0,'15'!AE$72) -> 0 | AF45: =IF(ISERROR('15'!AF$72),0,'15'!AF$72) -> 0 | AG45: 0 | AH45: =AD45+AG45 -> 0 | AI45: =IF(ISERROR('15'!AI$72),0,'15'!AI$72) -> 0 | AJ45: =IF(ISERROR('15'!AJ$72),0,'15'!AJ$72) -> 0 | AK45: =IF(ISERROR('15'!AK$72),0,'15'!AK$72) -> 0 | AL45: =IF(ISERROR('15'!AL$72),0,'15'!AL$72) -> 0 | AM45: =IF(ISERROR('15'!AM$72),0,'15'!AM$72) -> 0 | AN45: =IF(ISERROR('15'!AN$72),0,'15'!AN$72) -> 0 | AO45: =IF(ISERROR('15'!AO$72),0,'15'!AO$72) -> 0 | AP45: 0 | AQ45: =AM45+AP45 -> 0 | AR45: =IF(ISERROR('15'!AR$72),0,'15'!AR$72) -> 0 | AS45: =IF(ISERROR('15'!AS$72),0,'15'!AS$72) -> 0 | AT45: =IF(ISERROR('15'!AT$72),0,'15'!AT$72) -> 0 | AU45: =IF(ISERROR('15'!AU$72),0,'15'!AU$72) -> 0
A46: 1 | B46: =IF(Direct_charges!$F$6<>"",E46,0) -> 0 | C46: 1 | D46: 1 | F46: Total for Programmes | I46: =SUM(I31:I45) -> 250413 | J46: 6474793 | K46: 56883030 | L46: 56846389.66 | M46: 37849355 | N46: 0 | O46: 0 | P46: 0 | Q46: 39010474 | R46: 76859829 | S46: =SUM(S31:S45) -> 0 | T46: =SUM(T31:T45) -> 76859829 | U46: =SUM(U31:U45) -> 4598874 | V46: =IFERROR(SUM('1:15'!V72),0) -> -22954 | W46: =IFERROR(SUM('1:15'!W72),0) -> 22954 | X46: 0 | Y46: 4598874 | Z46: =SUM(Z31:Z45) -> 0 | AA46: 0 | AB46: 4598874 | AC46: 0 | AD46: =SUM(AD31:AD45) -> 2071587 | AE46: =IFERROR(SUM('1:15'!AE72),0) -> -25005 | AF46: =IFERROR(SUM('1:15'!AF72),0) -> 25005 | AG46: 0 | AH46: 2071587 | AI46: 0 | AJ46: 0 | AK46: 2071587 | AL46: 0 | AM46: 297553 | AN46: =IFERROR(SUM('1:15'!AN72),0) -> -33193 | AO46: =IFERROR(SUM('1:15'!AO72),0) -> 33193 | AP46: 0 | AQ46: 297553 | AR46: 0 | AS46: 0 | AT46: 297553 | AU46: 1.818989404e-12
A47: 1 | F47: Direct charge against the National Revenue Fund | I47: =SUM(I48:I54) -> 0 | J47: =SUM(J48:J54) -> 0 | K47: =SUM(K48:K54) -> 0 | L47: 0 | M47: 0 | N47: 0 | O47: 0 | P47: 0 | Q47: 143395 | R47: 143395 | S47: 0 | T47: 143395 | U47: 0 | V47: =IF(AND(Settings!$A$3=1,Settings!$A$5="TRUE"),Direct_charges!V72,SUM(V48:V54)) -> 0 | W47: =IF(AND(Settings!$A$3=1,Settings!$A$5="TRUE"),Direct_charges!W72,SUM(W48:W54)) -> 0 | X47: 0 | Y47: 0 | Z47: =SUM(Z48:Z54) -> 0 | AA47: 0 | AB47: 0 | AC47: 0 | AD47: 0 | AE47: =IF(AND(Settings!$A$3=1,Settings!$A$5="TRUE"),Direct_charges!AE72,SUM(AE48:AE54)) -> 0 | AF47: =IF(AND(Settings!$A$3=1,Settings!$A$5="TRUE"),Direct_charges!AF72,SUM(AF48:AF54)) -> 0 | AG47: 0 | AH47: =AD47+AG47 -> 0 | AI47: 0 | AJ47: 0 | AK47: 0 | AL47: 0 | AM47: 0 | AN47: =IF(AND(Settings!$A$3=1,Settings!$A$5="TRUE"),Direct_charges!AN72,SUM(AN48:AN54)) -> 0 | AO47: =IF(AND(Settings!$A$3=1,Settings!$A$5="TRUE"),Direct_charges!AO72,SUM(AO48:AO54)) -> 0 | AP47: 0 | AQ47: =AM47+AP47 -> 0 | AR47: 0 | AS47: 0 | AT47: 0 | AU47: 0
A48: 1 | F48: =IFERROR(IF(LEN(Direct_charges!$F47)<3,"", Direct_charges!$F47),"") -> Section 70 of the PFMA payments: South African Express Airways | I48: =IFERROR(Direct_charges!I47,0) -> 0 | J48: =IFERROR(Direct_charges!J47,0) -> 0 | K48: =IFERROR(Direct_charges!K47,0) -> 0 | L48: =IFERROR(Direct_charges!L47,0) -> 0 | M48: =IFERROR(Direct_charges!M47,0) -> 0 | N48: =IFERROR(Direct_charges!N47,0) -> 0 | O48: =IFERROR(Direct_charges!O47,0) -> 0 | P48: =IFERROR(Direct_charges!P47,0) -> 0 | Q48: =IFERROR(Direct_charges!Q47,0) -> 143395 | R48: =IFERROR(Direct_charges!R47,0) -> 143395 | S48: =IFERROR(Direct_charges!S47,0) -> 0 | T48: =IFERROR(Direct_charges!T47,0) -> 143395 | U48: =IFERROR(Direct_charges!U47,0) -> 0 | V48: =IF(AND(Settings!$A$3=1,Settings!A5="TRUE"),0,(IFERROR(Direct_charges!V47,0))) -> 0 | W48: =IF(AND(Settings!$A$3=1,Settings!B5="TRUE"),0,(IFERROR(Direct_charges!W47,0))) -> 0 | X48: 0 | Y48: 0 | Z48: =IFERROR(Direct_charges!Z47,0) -> 0 | AA48: =IFERROR(Direct_charges!AA47,0) -> 0 | AB48: =IFERROR(Direct_charges!AB47,0) -> 0 | AC48: =IFERROR(Direct_charges!AC47,0) -> 0 | AD48: =IFERROR(Direct_charges!AD47,0) -> 0 | AE48: =IF(AND(Settings!$A$3=1,Settings!J5="TRUE"),0,(IFERROR(Direct_charges!AE47,0))) -> 0 | AF48: =IF(AND(Settings!$A$3=1,Settings!K5="TRUE"),0,(IFERROR(Direct_charges!AF47,0))) -> 0 | AG48: 0 | AH48: 0 | AI48: =IFERROR(Direct_charges!AI47,0) -> 0 | AJ48: =IFERROR(Direct_charges!AJ47,0) -> 0 | AK48: =IFERROR(Direct_charges!AK47,0) -> 0 | AL48: =IFERROR(Direct_charges!AL47,0) -> 0 | AM48: =IFERROR(Direct_charges!AM47,0) -> 0 | AN48: =IF(AND(Settings!$A$3=1,Settings!S5="TRUE"),0,(IFERROR(Direct_charges!AN47,0))) -> 0 | AO48: =IF(AND(Settings!$A$3=1,Settings!T5="TRUE"),0,(IFERROR(Direct_charges!AO47,0))) -> 0 | AP48: 0 | AQ48: 0 | AR48: =IFERROR(Direct_charges!AR47,0) -> 0 | AS48: =IFERROR(Direct_charges!AS47,0) -> 0 | AT48: =IFERROR(Direct_charges!AT47,0) -> 0 | AU48: =IFERROR(Direct_charges!AU47,0) -> 0
A49: =COUNTIF(I49:AU49,"<>0")+IF(LEN(F49)>2,1,0) -> 0 | F49: =IFERROR(IF(LEN(Direct_charges!$F48)<3,"", Direct_charges!$F48),"") ->  | I49: =IFERROR(Direct_charges!I48,0) -> 0 | J49: =IFERROR(Direct_charges!J48,0) -> 0 | K49: =IFERROR(Direct_charges!K48,0) -> 0 | L49: =IFERROR(Direct_charges!L48,0) -> 0 | M49: =IFERROR(Direct_charges!M48,0) -> 0 | N49: =IFERROR(Direct_charges!N48,0) -> 0 | O49: =IFERROR(Direct_charges!O48,0) -> 0 | P49: =IFERROR(Direct_charges!P48,0) -> 0 | Q49: =IFERROR(Direct_charges!Q48,0) -> 0 | R49: =IFERROR(Direct_charges!R48,0) -> 0 | S49: =IFERROR(Direct_charges!S48,0) -> 0 | T49: =IFERROR(Direct_charges!T48,0) -> 0 | U49: =IFERROR(Direct_charges!U48,0) -> 0 | V49: =IF(AND(Settings!$A$3=1,Settings!A6="TRUE"),0,(IFERROR(Direct_charges!V48,0))) -> 0 | W49: =IF(AND(Settings!$A$3=1,Settings!B6="TRUE"),0,(IFERROR(Direct_charges!W48,0))) -> 0 | X49: 0 | Y49: 0 | Z49: =IFERROR(Direct_charges!Z48,0) -> 0 | AA49: =IFERROR(Direct_charges!AA48,0) -> 0 | AB49: =IFERROR(Direct_charges!AB48,0) -> 0 | AC49: =IFERROR(Direct_charges!AC48,0) -> 0 | AD49: =IFERROR(Direct_charges!AD48,0) -> 0 | AE49: =IF(AND(Settings!$A$3=1,Settings!J6="TRUE"),0,(IFERROR(Direct_charges!AE48,0))) -> 0 | AF49: =IF(AND(Settings!$A$3=1,Settings!K6="TRUE"),0,(IFERROR(Direct_charges!AF48,0))) -> 0 | AG49: 0 | AH49: 0 | AI49: =IFERROR(Direct_charges!AI48,0) -> 0 | AJ49: =IFERROR(Direct_charges!AJ48,0) -> 0 | AK49: =IFERROR(Direct_charges!AK48,0) -> 0 | AL49: =IFERROR(Direct_charges!AL48,0) -> 0 | AM49: =IFERROR(Direct_charges!AM48,0) -> 0 | AN49: =IF(AND(Settings!$A$3=1,Settings!S6="TRUE"),0,(IFERROR(Direct_charges!AN48,0))) -> 0 | AO49: =IF(AND(Settings!$A$3=1,Settings!T6="TRUE"),0,(IFERROR(Direct_charges!AO48,0))) -> 0 | AP49: 0 | AQ49: 0 | AR49: =IFERROR(Direct_charges!AR48,0) -> 0 | AS49: =IFERROR(Direct_charges!AS48,0) -> 0 | AT49: =IFERROR(Direct_charges!AT48,0) -> 0 | AU49: =IFERROR(Direct_charges!AU48,0) -> 0
A50: =COUNTIF(I50:AU50,"<>0")+IF(LEN(F50)>2,1,0) -> 0 | F50: =IFERROR(IF(LEN(Direct_charges!$F49)<3,"", Direct_charges!$F49),"") ->  | I50: =IFERROR(Direct_charges!I49,0) -> 0 | J50: =IFERROR(Direct_charges!J49,0) -> 0 | K50: =IFERROR(Direct_charges!K49,0) -> 0 | L50: =IFERROR(Direct_charges!L49,0) -> 0 | M50: =IFERROR(Direct_charges!M49,0) -> 0 | N50: =IFERROR(Direct_charges!N49,0) -> 0 | O50: =IFERROR(Direct_charges!O49,0) -> 0 | P50: =IFERROR(Direct_charges!P49,0) -> 0 | Q50: =IFERROR(Direct_charges!Q49,0) -> 0 | R50: =IFERROR(Direct_charges!R49,0) -> 0 | S50: =IFERROR(Direct_charges!S49,0) -> 0 | T50: =IFERROR(Direct_charges!T49,0) -> 0 | U50: =IFERROR(Direct_charges!U49,0) -> 0 | V50: =IF(AND(Settings!$A$3=1,Settings!A7="TRUE"),0,(IFERROR(Direct_charges!V49,0))) -> 0 | W50: =IF(AND(Settings!$A$3=1,Settings!B7="TRUE"),0,(IFERROR(Direct_charges!W49,0))) -> 0 | X50: 0 | Y50: 0 | Z50: =IFERROR(Direct_charges!Z49,0) -> 0 | AA50: =IFERROR(Direct_charges!AA49,0) -> 0 | AB50: =IFERROR(Direct_charges!AB49,0) -> 0 | AC50: =IFERROR(Direct_charges!AC49,0) -> 0 | AD50: =IFERROR(Direct_charges!AD49,0) -> 0 | AE50: =IF(AND(Settings!$A$3=1,Settings!J7="TRUE"),0,(IFERROR(Direct_charges!AE49,0))) -> 0 | AF50: =IF(AND(Settings!$A$3=1,Settings!K7="TRUE"),0,(IFERROR(Direct_charges!AF49,0))) -> 0 | AG50: 0 | AH50: 0 | AI50: =IFERROR(Direct_charges!AI49,0) -> 0 | AJ50: =IFERROR(Direct_charges!AJ49,0) -> 0 | AK50: =IFERROR(Direct_charges!AK49,0) -> 0 | AL50: =IFERROR(Direct_charges!AL49,0) -> 0 | AM50: =IFERROR(Direct_charges!AM49,0) -> 0 | AN50: =IF(AND(Settings!$A$3=1,Settings!S7="TRUE"),0,(IFERROR(Direct_charges!AN49,0))) -> 0 | AO50: =IF(AND(Settings!$A$3=1,Settings!T7="TRUE"),0,(IFERROR(Direct_charges!AO49,0))) -> 0 | AP50: 0 | AQ50: 0 | AR50: =IFERROR(Direct_charges!AR49,0) -> 0 | AS50: =IFERROR(Direct_charges!AS49,0) -> 0 | AT50: =IFERROR(Direct_charges!AT49,0) -> 0 | AU50: =IFERROR(Direct_charges!AU49,0) -> 0
A51: =COUNTIF(I51:AU51,"<>0")+IF(LEN(F51)>2,1,0) -> 0 | F51: =IFERROR(IF(LEN(Direct_charges!$F50)<3,"", Direct_charges!$F50),"") ->  | I51: =IFERROR(Direct_charges!I50,0) -> 0 | J51: =IFERROR(Direct_charges!J50,0) -> 0 | K51: =IFERROR(Direct_charges!K50,0) -> 0 | L51: =IFERROR(Direct_charges!L50,0) -> 0 | M51: =IFERROR(Direct_charges!M50,0) -> 0 | N51: =IFERROR(Direct_charges!N50,0) -> 0 | O51: =IFERROR(Direct_charges!O50,0) -> 0 | P51: =IFERROR(Direct_charges!P50,0) -> 0 | Q51: =IFERROR(Direct_charges!Q50,0) -> 0 | R51: =IFERROR(Direct_charges!R50,0) -> 0 | S51: =IFERROR(Direct_charges!S50,0) -> 0 | T51: =IFERROR(Direct_charges!T50,0) -> 0 | U51: =IFERROR(Direct_charges!U50,0) -> 0 | V51: =IF(AND(Settings!$A$3=1,Settings!A8="TRUE"),0,(IFERROR(Direct_charges!V50,0))) -> 0 | W51: =IF(AND(Settings!$A$3=1,Settings!B8="TRUE"),0,(IFERROR(Direct_charges!W50,0))) -> 0 | X51: 0 | Y51: 0 | Z51: =IFERROR(Direct_charges!Z50,0) -> 0 | AA51: =IFERROR(Direct_charges!AA50,0) -> 0 | AB51: =IFERROR(Direct_charges!AB50,0) -> 0 | AC51: =IFERROR(Direct_charges!AC50,0) -> 0 | AD51: =IFERROR(Direct_charges!AD50,0) -> 0 | AE51: =IF(AND(Settings!$A$3=1,Settings!J8="TRUE"),0,(IFERROR(Direct_charges!AE50,0))) -> 0 | AF51: =IF(AND(Settings!$A$3=1,Settings!K8="TRUE"),0,(IFERROR(Direct_charges!AF50,0))) -> 0 | AG51: 0 | AH51: 0 | AI51: =IFERROR(Direct_charges!AI50,0) -> 0 | AJ51: =IFERROR(Direct_charges!AJ50,0) -> 0 | AK51: =IFERROR(Direct_charges!AK50,0) -> 0 | AL51: =IFERROR(Direct_charges!AL50,0) -> 0 | AM51: =IFERROR(Direct_charges!AM50,0) -> 0 | AN51: =IF(AND(Settings!$A$3=1,Settings!S8="TRUE"),0,(IFERROR(Direct_charges!AN50,0))) -> 0 | AO51: =IF(AND(Settings!$A$3=1,Settings!T8="TRUE"),0,(IFERROR(Direct_charges!AO50,0))) -> 0 | AP51: 0 | AQ51: 0 | AR51: =IFERROR(Direct_charges!AR50,0) -> 0 | AS51: =IFERROR(Direct_charges!AS50,0) -> 0 | AT51: =IFERROR(Direct_charges!AT50,0) -> 0 | AU51: =IFERROR(Direct_charges!AU50,0) -> 0
F52: =IFERROR(IF(LEN(Direct_charges!$F51)<3,"", Direct_charges!$F51),"") ->  | I52: =IFERROR(Direct_charges!I51,0) -> 0 | J52: =IFERROR(Direct_charges!J51,0) -> 0 | K52: =IFERROR(Direct_charges!K51,0) -> 0 | L52: =IFERROR(Direct_charges!L51,0) -> 0 | M52: =IFERROR(Direct_charges!M51,0) -> 0 | N52: =IFERROR(Direct_charges!N51,0) -> 0 | O52: =IFERROR(Direct_charges!O51,0) -> 0 | P52: =IFERROR(Direct_charges!P51,0) -> 0 | Q52: =IFERROR(Direct_charges!Q51,0) -> 0 | R52: =IFERROR(Direct_charges!R51,0) -> 0 | S52: =IFERROR(Direct_charges!S51,0) -> 0 | T52: =IFERROR(Direct_charges!T51,0) -> 0 | U52: =IFERROR(Direct_charges!U51,0) -> 0 | V52: =IF(AND(Settings!$A$3=1,Settings!A9="TRUE"),0,(IFERROR(Direct_charges!V51,0))) -> 0 | W52: =IF(AND(Settings!$A$3=1,Settings!B9="TRUE"),0,(IFERROR(Direct_charges!W51,0))) -> 0 | X52: =SUM(V52:W52) -> 0 | Y52: =U52+X52 -> 0 | Z52: =IFERROR(Direct_charges!Z51,0) -> 0 | AA52: =IFERROR(Direct_charges!AA51,0) -> 0 | AB52: =IFERROR(Direct_charges!AB51,0) -> 0 | AC52: =IFERROR(Direct_charges!AC51,0) -> 0 | AD52: =IFERROR(Direct_charges!AD51,0) -> 0 | AE52: =IF(AND(Settings!$A$3=1,Settings!J9="TRUE"),0,(IFERROR(Direct_charges!AE51,0))) -> 0 | AF52: =IF(AND(Settings!$A$3=1,Settings!K9="TRUE"),0,(IFERROR(Direct_charges!AF51,0))) -> 0 | AG52: =SUM(AE52:AF52) -> 0 | AH52: =AD52+AG52 -> 0 | AI52: =IFERROR(Direct_charges!AI51,0) -> 0 | AJ52: =IFERROR(Direct_charges!AJ51,0) -> 0 | AK52: =IFERROR(Direct_charges!AK51,0) -> 0 | AL52: =IFERROR(Direct_charges!AL51,0) -> 0 | AM52: =IFERROR(Direct_charges!AM51,0) -> 0 | AN52: =IF(AND(Settings!$A$3=1,Settings!S9="TRUE"),0,(IFERROR(Direct_charges!AN51,0))) -> 0 | AO52: =IF(AND(Settings!$A$3=1,Settings!T9="TRUE"),0,(IFERROR(Direct_charges!AO51,0))) -> 0 | AP52: =SUM(AN52:AO52) -> 0 | AQ52: =AM52+AP52 -> 0 | AR52: =IFERROR(Direct_charges!AR51,0) -> 0 | AS52: =IFERROR(Direct_charges!AS51,0) -> 0 | AT52: =IFERROR(Direct_charges!AT51,0) -> 0 | AU52: =IFERROR(Direct_charges!AU51,0) -> 0
